Organisation Name,Organisation Code,Unique Ref No,Effective Date,Directorate  where expenditure incurred,Supplier Name,Payment Date,Net Amount,Purpose of Spend,Procurement Classification (Higher Level),Procurement Classification (Lower Level),Capital/Revenue
Walsall Council,http://opendatacommunities.org/id/metropolitan-district-council/walsall,WC96-01,30/09/2018,Economy & Environment,11KBW,19/09/2018,"30,155.00",73014-LEGAL FEES-PRIV CONTRACTOR FEES,CEMETERIES CENTRAL ADMINISTRATION,Third Party Payments,Revenue
Walsall Council,http://opendatacommunities.org/id/metropolitan-district-council/walsall,WC96-02,30/09/2018,Childrens,247 CARS (WILLENHALL) LIMITED,04/09/2018,"4,425.00",52000-WITH DRIVER-HIRE OF VEHICLES,HOME TO SCHOOL TRANSPORT,Transport,Revenue
Walsall Council,http://opendatacommunities.org/id/metropolitan-district-council/walsall,WC96-03,30/09/2018,Childrens,247 CARS (WILLENHALL) LIMITED,04/09/2018,"6,536.00",52000-WITH DRIVER-HIRE OF VEHICLES,HOME TO SCHOOL TRANSPORT,Transport,Revenue
Walsall Council,http://opendatacommunities.org/id/metropolitan-district-council/walsall,WC96-04,30/09/2018,Childrens,247 CARS (WILLENHALL) LIMITED,01/09/2018,"7,245.00",52000-WITH DRIVER-HIRE OF VEHICLES,HOME TO SCHOOL TRANSPORT,Transport,Revenue
Walsall Council,http://opendatacommunities.org/id/metropolitan-district-council/walsall,WC96-05,30/09/2018,Childrens,39 ESSEX STREET LLP PFA,06/09/2018,"1,000.00",73014-LEGAL FEES-PRIV CONTRACTOR FEES,PERFORMANCE & OUTCOMES TEAM (C&YP),Third Party Payments,Revenue
Walsall Council,http://opendatacommunities.org/id/metropolitan-district-council/walsall,WC96-06,30/09/2018,Adult Social Care,5 CARE SERVICES LTD,24/09/2018,736.16,73372-DOMICILIARY CARE,OP PACKAGE/PLACEMENT COSTS,Third Party Payments,Revenue
Walsall Council,http://opendatacommunities.org/id/metropolitan-district-council/walsall,WC96-07,30/09/2018,Childrens,5 CARE SERVICES LTD,12/09/2018,"1,491.00",63000-PROFESSIONAL FEES AND SERVICES,DIRECTLY COMMISSIONED NURSING SERVICES,Supplies & Services,Revenue
Walsall Council,http://opendatacommunities.org/id/metropolitan-district-council/walsall,WC96-08,30/09/2018,Economy & Environment,A D T FIRE AND SECURITY PLC,14/09/2018,640.92,"40000-REPAIRS,ALTERATIONS & MAINTENANCE-PREM",ARBORETUM,Premises,Revenue
Walsall Council,http://opendatacommunities.org/id/metropolitan-district-council/walsall,WC96-09,30/09/2018,Economy & Environment,A D T FIRE AND SECURITY PLC,14/09/2018,850.05,"40000-REPAIRS,ALTERATIONS & MAINTENANCE-PREM",ARBORETUM,Premises,Revenue
Walsall Council,http://opendatacommunities.org/id/metropolitan-district-council/walsall,WC96-10,30/09/2018,Resources and Transformation,A D T FIRE AND SECURITY PLC,13/09/2018,863.93,73002-SECURITY-PRIV CONTRACTOR FEES,CENTRALISED MAINTENANCE,Third Party Payments,Revenue
Walsall Council,http://opendatacommunities.org/id/metropolitan-district-council/walsall,WC96-11,30/09/2018,Resources and Transformation,A D T FIRE AND SECURITY PLC,26/09/2018,905.22,73002-SECURITY-PRIV CONTRACTOR FEES,CENTRALISED MAINTENANCE,Third Party Payments,Revenue
Walsall Council,http://opendatacommunities.org/id/metropolitan-district-council/walsall,WC96-12,30/09/2018,Resources and Transformation,A D T FIRE AND SECURITY PLC,03/09/2018,"1,254.00",60008-MAINTENANCE-FURNITURE & EQUIPMENT,CCTV,Supplies & Services,Revenue
Walsall Council,http://opendatacommunities.org/id/metropolitan-district-council/walsall,WC96-13,30/09/2018,Economy & Environment,A F BLAKEMORE & SON LTD,03/09/2018,253.08,61018-DRINKS-PROVISIONS,OAK PARK,Supplies & Services,Revenue
Walsall Council,http://opendatacommunities.org/id/metropolitan-district-council/walsall,WC96-14,30/09/2018,Economy & Environment,A F BLAKEMORE & SON LTD,19/09/2018,264.19,61018-DRINKS-PROVISIONS,OAK PARK,Supplies & Services,Revenue
Walsall Council,http://opendatacommunities.org/id/metropolitan-district-council/walsall,WC96-15,30/09/2018,Economy & Environment,A F BLAKEMORE & SON LTD,17/09/2018,285.02,61008-CONFECTIONERY/SNACKS-PROVISIONS,OAK PARK,Supplies & Services,Revenue
Walsall Council,http://opendatacommunities.org/id/metropolitan-district-council/walsall,WC96-16,30/09/2018,Economy & Environment,A F BLAKEMORE & SON LTD,03/09/2018,312.10,61008-CONFECTIONERY/SNACKS-PROVISIONS,OAK PARK,Supplies & Services,Revenue
Walsall Council,http://opendatacommunities.org/id/metropolitan-district-council/walsall,WC96-17,30/09/2018,Economy & Environment,A F BLAKEMORE & SON LTD,18/09/2018,317.90,61008-CONFECTIONERY/SNACKS-PROVISIONS,WALSALL GALA CENTRE,Supplies & Services,Revenue
Walsall Council,http://opendatacommunities.org/id/metropolitan-district-council/walsall,WC96-18,30/09/2018,Economy & Environment,A F BLAKEMORE & SON LTD,26/09/2018,363.20,61018-DRINKS-PROVISIONS,OAK PARK,Supplies & Services,Revenue
Walsall Council,http://opendatacommunities.org/id/metropolitan-district-council/walsall,WC96-19,30/09/2018,Economy & Environment,A F BLAKEMORE & SON LTD,05/09/2018,367.59,61008-CONFECTIONERY/SNACKS-PROVISIONS,OAK PARK,Supplies & Services,Revenue
Walsall Council,http://opendatacommunities.org/id/metropolitan-district-council/walsall,WC96-20,30/09/2018,Economy & Environment,A F BLAKEMORE & SON LTD,19/09/2018,378.19,61018-DRINKS-PROVISIONS,OAK PARK,Supplies & Services,Revenue
Walsall Council,http://opendatacommunities.org/id/metropolitan-district-council/walsall,WC96-21,30/09/2018,Adult Social Care,A F BLAKEMORE & SON LTD,26/09/2018,382.13,61016-FOOD AND BEVERAGES-PROVISIONS,GOSCOTE,Supplies & Services,Revenue
Walsall Council,http://opendatacommunities.org/id/metropolitan-district-council/walsall,WC96-22,30/09/2018,Economy & Environment,A F BLAKEMORE & SON LTD,12/09/2018,387.19,61008-CONFECTIONERY/SNACKS-PROVISIONS,DARLASTON LEISURE CENTRE,Supplies & Services,Revenue
Walsall Council,http://opendatacommunities.org/id/metropolitan-district-council/walsall,WC96-23,30/09/2018,Economy & Environment,A F BLAKEMORE & SON LTD,12/09/2018,401.70,61018-DRINKS-PROVISIONS,OAK PARK,Supplies & Services,Revenue
Walsall Council,http://opendatacommunities.org/id/metropolitan-district-council/walsall,WC96-24,30/09/2018,Adult Social Care,A F BLAKEMORE & SON LTD,03/09/2018,429.46,61016-FOOD AND BEVERAGES-PROVISIONS,GOSCOTE,Supplies & Services,Revenue
Walsall Council,http://opendatacommunities.org/id/metropolitan-district-council/walsall,WC96-25,30/09/2018,Adult Social Care,A F BLAKEMORE & SON LTD,13/09/2018,443.11,61016-FOOD AND BEVERAGES-PROVISIONS,GOSCOTE,Supplies & Services,Revenue
Walsall Council,http://opendatacommunities.org/id/metropolitan-district-council/walsall,WC96-26,30/09/2018,Economy & Environment,A F BLAKEMORE & SON LTD,24/09/2018,476.87,61018-DRINKS-PROVISIONS,OAK PARK,Supplies & Services,Revenue
Walsall Council,http://opendatacommunities.org/id/metropolitan-district-council/walsall,WC96-27,30/09/2018,Economy & Environment,A F BLAKEMORE & SON LTD,03/09/2018,"1,120.32",61008-CONFECTIONERY/SNACKS-PROVISIONS,OAK PARK,Supplies & Services,Revenue
Walsall Council,http://opendatacommunities.org/id/metropolitan-district-council/walsall,WC96-28,30/09/2018,Childrens,REDACTED,12/09/2018,472.50,73506-DIRECT PAYMENT,FAMILY SUPPORT - DIRECT PAYMENTS,Third Party Payments,Revenue
Walsall Council,http://opendatacommunities.org/id/metropolitan-district-council/walsall,WC96-29,30/09/2018,Childrens,ABC DAY NURSERY (WILLENHALL) LIMITED,01/09/2018,"3,654.00",66505-OTHER-GRANTS TO OTHER ORGS,EARLY YEARS - 3 YR OLDS,Third Party Payments,Revenue
Walsall Council,http://opendatacommunities.org/id/metropolitan-district-council/walsall,WC96-30,30/09/2018,Childrens,ABC DAY NURSERY (WILLENHALL) LIMITED,01/09/2018,"13,154.40",66505-OTHER-GRANTS TO OTHER ORGS,EARLY YEARS - 3 YR OLDS,Third Party Payments,Revenue
Walsall Council,http://opendatacommunities.org/id/metropolitan-district-council/walsall,WC96-31,30/09/2018,Childrens,ABC DAY NURSERY (WILLENHALL) LIMITED,01/09/2018,"23,768.64",66505-OTHER-GRANTS TO OTHER ORGS,EARLY YEARS - 2 YR OLDS,Third Party Payments,Revenue
Walsall Council,http://opendatacommunities.org/id/metropolitan-district-council/walsall,WC96-32,30/09/2018,Childrens,ABC FOSTERING,07/09/2018,"1,885.38",74037-INDEPENDENT FOSTER CARE-OTH AGENCY PROVISION,EXTERNAL FOSTER CARE PROVISION,Third Party Payments,Revenue
Walsall Council,http://opendatacommunities.org/id/metropolitan-district-council/walsall,WC96-33,30/09/2018,Childrens,ABC FOSTERING,07/09/2018,"2,405.19",74037-INDEPENDENT FOSTER CARE-OTH AGENCY PROVISION,EXTERNAL FOSTER CARE PROVISION,Third Party Payments,Revenue
Walsall Council,http://opendatacommunities.org/id/metropolitan-district-council/walsall,WC96-34,30/09/2018,Childrens,ABC FOSTERING,07/09/2018,"2,405.19",74037-INDEPENDENT FOSTER CARE-OTH AGENCY PROVISION,EXTERNAL FOSTER CARE PROVISION,Third Party Payments,Revenue
Walsall Council,http://opendatacommunities.org/id/metropolitan-district-council/walsall,WC96-35,30/09/2018,Childrens,ABC FOSTERING,07/09/2018,"2,513.83",74037-INDEPENDENT FOSTER CARE-OTH AGENCY PROVISION,EXTERNAL FOSTER CARE PROVISION,Third Party Payments,Revenue
Walsall Council,http://opendatacommunities.org/id/metropolitan-district-council/walsall,WC96-36,30/09/2018,Childrens,ABC FOSTERING,07/09/2018,"2,635.20",74037-INDEPENDENT FOSTER CARE-OTH AGENCY PROVISION,EXTERNAL FOSTER CARE PROVISION,Third Party Payments,Revenue
Walsall Council,http://opendatacommunities.org/id/metropolitan-district-council/walsall,WC96-37,30/09/2018,Childrens,ABC FOSTERING,07/09/2018,"2,859.48",74037-INDEPENDENT FOSTER CARE-OTH AGENCY PROVISION,EXTERNAL FOSTER CARE PROVISION,Third Party Payments,Revenue
Walsall Council,http://opendatacommunities.org/id/metropolitan-district-council/walsall,WC96-38,30/09/2018,Childrens,ABC FOSTERING,07/09/2018,"3,042.00",74037-INDEPENDENT FOSTER CARE-OTH AGENCY PROVISION,EXTERNAL FOSTER CARE PROVISION,Third Party Payments,Revenue
Walsall Council,http://opendatacommunities.org/id/metropolitan-district-council/walsall,WC96-39,30/09/2018,Adult Social Care,REDACTED,12/09/2018,"2,026.45",73506-DIRECT PAYMENT,LEARNING DISABILITY SUPPORT,Third Party Payments,Revenue
Walsall Council,http://opendatacommunities.org/id/metropolitan-district-council/walsall,WC96-40,30/09/2018,Economy & Environment,ABEL ALARM CO LTD,20/09/2018,969.95,40015-ALARM CALL OUTS-OP MTCE,CEMETERIES CENTRAL ADMINISTRATION,Premises,Revenue
Walsall Council,http://opendatacommunities.org/id/metropolitan-district-council/walsall,WC96-41,30/09/2018,Economy & Environment,ABEL ALARM CO LTD,20/09/2018,"1,036.44",40015-ALARM CALL OUTS-OP MTCE,STREETLY CREMATORIUM,Premises,Revenue
Walsall Council,http://opendatacommunities.org/id/metropolitan-district-council/walsall,WC96-42,30/09/2018,Adult Social Care,REDACTED,12/09/2018,"2,499.00",73506-DIRECT PAYMENT,LEARNING DISABILITY SUPPORT,Third Party Payments,Revenue
Walsall Council,http://opendatacommunities.org/id/metropolitan-district-council/walsall,WC96-43,30/09/2018,Childrens,ABS TAXIS (ALDRIDGE),01/09/2018,"3,416.80",52000-WITH DRIVER-HIRE OF VEHICLES,HOME TO SCHOOL TRANSPORT,Transport,Revenue
Walsall Council,http://opendatacommunities.org/id/metropolitan-district-council/walsall,WC96-44,30/09/2018,Childrens,ABU BAKR NURSERY,01/09/2018,"14,085.12",66505-OTHER-GRANTS TO OTHER ORGS,EARLY YEARS - 2 YR OLDS,Third Party Payments,Revenue
Walsall Council,http://opendatacommunities.org/id/metropolitan-district-council/walsall,WC96-45,30/09/2018,Childrens,ABU BAKR NURSERY,01/09/2018,"40,194.00",66505-OTHER-GRANTS TO OTHER ORGS,EARLY YEARS - 3 YR OLDS,Third Party Payments,Revenue
Walsall Council,http://opendatacommunities.org/id/metropolitan-district-council/walsall,WC96-46,30/09/2018,Resources and Transformation,ACCESS CONTROL SOLUTIONS (UK) LTD,24/09/2018,944.00,"40000-REPAIRS,ALTERATIONS & MAINTENANCE-PREM",CENTRALISED MAINTENANCE,Premises,Revenue
Walsall Council,http://opendatacommunities.org/id/metropolitan-district-council/walsall,WC96-47,30/09/2018,Adult Social Care,ACCORD HOUSING ASSOCIATION LTD#135,14/09/2018,259.70,73372-DOMICILIARY CARE,MENTAL HEALTH PACKAGE/PLACEMENT COSTS,Third Party Payments,Revenue
Walsall Council,http://opendatacommunities.org/id/metropolitan-district-council/walsall,WC96-48,30/09/2018,Adult Social Care,ACCORD HOUSING ASSOCIATION LTD#135,14/09/2018,267.12,73372-DOMICILIARY CARE,LD PACKAGE/PLACEMENT COSTS,Third Party Payments,Revenue
Walsall Council,http://opendatacommunities.org/id/metropolitan-district-council/walsall,WC96-49,30/09/2018,Adult Social Care,ACCORD HOUSING ASSOCIATION LTD#135,24/09/2018,330.19,73372-DOMICILIARY CARE,MENTAL HEALTH PACKAGE/PLACEMENT COSTS,Third Party Payments,Revenue
Walsall Council,http://opendatacommunities.org/id/metropolitan-district-council/walsall,WC96-50,30/09/2018,Adult Social Care,ACCORD HOUSING ASSOCIATION LTD#135,14/09/2018,422.94,73372-DOMICILIARY CARE,MENTAL HEALTH PACKAGE/PLACEMENT COSTS,Third Party Payments,Revenue
Walsall Council,http://opendatacommunities.org/id/metropolitan-district-council/walsall,WC96-51,30/09/2018,Adult Social Care,ACCORD HOUSING ASSOCIATION LTD#135,24/09/2018,474.88,73372-DOMICILIARY CARE,MENTAL HEALTH PACKAGE/PLACEMENT COSTS,Third Party Payments,Revenue
Walsall Council,http://opendatacommunities.org/id/metropolitan-district-council/walsall,WC96-52,30/09/2018,Adult Social Care,ACCORD HOUSING ASSOCIATION LTD#135,24/09/2018,511.98,73372-DOMICILIARY CARE,MENTAL HEALTH PACKAGE/PLACEMENT COSTS,Third Party Payments,Revenue
Walsall Council,http://opendatacommunities.org/id/metropolitan-district-council/walsall,WC96-53,30/09/2018,Adult Social Care,ACCORD HOUSING ASSOCIATION LTD#135,21/09/2018,596.92,73372-DOMICILIARY CARE,MENTAL HEALTH PACKAGE/PLACEMENT COSTS,Third Party Payments,Revenue
Walsall Council,http://opendatacommunities.org/id/metropolitan-district-council/walsall,WC96-54,30/09/2018,Adult Social Care,ACCORD HOUSING ASSOCIATION LTD#135,21/09/2018,604.48,73372-DOMICILIARY CARE,MENTAL HEALTH PACKAGE/PLACEMENT COSTS,Third Party Payments,Revenue
Walsall Council,http://opendatacommunities.org/id/metropolitan-district-council/walsall,WC96-55,30/09/2018,Adult Social Care,ACCORD HOUSING ASSOCIATION LTD#135,17/09/2018,613.92,73372-DOMICILIARY CARE,MENTAL HEALTH PACKAGE/PLACEMENT COSTS,Third Party Payments,Revenue
Walsall Council,http://opendatacommunities.org/id/metropolitan-district-council/walsall,WC96-56,30/09/2018,Adult Social Care,ACCORD HOUSING ASSOCIATION LTD#135,21/09/2018,661.12,73372-DOMICILIARY CARE,MENTAL HEALTH PACKAGE/PLACEMENT COSTS,Third Party Payments,Revenue
Walsall Council,http://opendatacommunities.org/id/metropolitan-district-council/walsall,WC96-57,30/09/2018,Adult Social Care,ACCORD HOUSING ASSOCIATION LTD#135,21/09/2018,793.36,73372-DOMICILIARY CARE,MENTAL HEALTH PACKAGE/PLACEMENT COSTS,Third Party Payments,Revenue
Walsall Council,http://opendatacommunities.org/id/metropolitan-district-council/walsall,WC96-58,30/09/2018,Adult Social Care,ACCORD HOUSING ASSOCIATION LTD#135,21/09/2018,793.36,73372-DOMICILIARY CARE,MENTAL HEALTH PACKAGE/PLACEMENT COSTS,Third Party Payments,Revenue
Walsall Council,http://opendatacommunities.org/id/metropolitan-district-council/walsall,WC96-59,30/09/2018,Adult Social Care,ACCORD HOUSING ASSOCIATION LTD#135,21/09/2018,982.28,73372-DOMICILIARY CARE,MENTAL HEALTH PACKAGE/PLACEMENT COSTS,Third Party Payments,Revenue
Walsall Council,http://opendatacommunities.org/id/metropolitan-district-council/walsall,WC96-60,30/09/2018,Adult Social Care,ACCORD HOUSING ASSOCIATION LTD#135,21/09/2018,"1,133.40",73372-DOMICILIARY CARE,MENTAL HEALTH PACKAGE/PLACEMENT COSTS,Third Party Payments,Revenue
Walsall Council,http://opendatacommunities.org/id/metropolitan-district-council/walsall,WC96-61,30/09/2018,Adult Social Care,ACCORD HOUSING ASSOCIATION LTD#135,17/09/2018,"1,227.84",73372-DOMICILIARY CARE,MENTAL HEALTH PACKAGE/PLACEMENT COSTS,Third Party Payments,Revenue
Walsall Council,http://opendatacommunities.org/id/metropolitan-district-council/walsall,WC96-62,30/09/2018,Adult Social Care,ACCORD HOUSING ASSOCIATION LTD#135,17/09/2018,"1,227.84",73372-DOMICILIARY CARE,MENTAL HEALTH PACKAGE/PLACEMENT COSTS,Third Party Payments,Revenue
Walsall Council,http://opendatacommunities.org/id/metropolitan-district-council/walsall,WC96-63,30/09/2018,Adult Social Care,ACCORD HOUSING ASSOCIATION LTD#135,18/09/2018,"1,227.84",73372-DOMICILIARY CARE,LD PACKAGE/PLACEMENT COSTS,Third Party Payments,Revenue
Walsall Council,http://opendatacommunities.org/id/metropolitan-district-council/walsall,WC96-64,30/09/2018,Adult Social Care,ACCORD HOUSING ASSOCIATION LTD#135,21/09/2018,"1,322.28",73372-DOMICILIARY CARE,MENTAL HEALTH PACKAGE/PLACEMENT COSTS,Third Party Payments,Revenue
Walsall Council,http://opendatacommunities.org/id/metropolitan-district-council/walsall,WC96-65,30/09/2018,Adult Social Care,ACCORD HOUSING ASSOCIATION LTD#135,21/09/2018,"1,322.28",73372-DOMICILIARY CARE,MENTAL HEALTH PACKAGE/PLACEMENT COSTS,Third Party Payments,Revenue
Walsall Council,http://opendatacommunities.org/id/metropolitan-district-council/walsall,WC96-66,30/09/2018,Adult Social Care,ACCORD HOUSING ASSOCIATION LTD#135,17/09/2018,"1,534.80",73372-DOMICILIARY CARE,MENTAL HEALTH PACKAGE/PLACEMENT COSTS,Third Party Payments,Revenue
Walsall Council,http://opendatacommunities.org/id/metropolitan-district-council/walsall,WC96-67,30/09/2018,Adult Social Care,ACCORD HOUSING ASSOCIATION LTD#135,17/09/2018,"1,534.80",73372-DOMICILIARY CARE,MENTAL HEALTH PACKAGE/PLACEMENT COSTS,Third Party Payments,Revenue
Walsall Council,http://opendatacommunities.org/id/metropolitan-district-council/walsall,WC96-68,30/09/2018,Adult Social Care,ACCORD HOUSING ASSOCIATION LTD#135,21/09/2018,"1,567.84",73372-DOMICILIARY CARE,MENTAL HEALTH PACKAGE/PLACEMENT COSTS,Third Party Payments,Revenue
Walsall Council,http://opendatacommunities.org/id/metropolitan-district-council/walsall,WC96-69,30/09/2018,Adult Social Care,ACCORD HOUSING ASSOCIATION LTD#135,04/09/2018,"1,576.25",70000-SOCIAL SERVICES-FEES TO VOLUNTARY BODIES,COMPLEX NEEDS SLA,Third Party Payments,Revenue
Walsall Council,http://opendatacommunities.org/id/metropolitan-district-council/walsall,WC96-70,30/09/2018,Adult Social Care,ACCORD HOUSING ASSOCIATION LTD#135,14/09/2018,"2,967.25",70000-SOCIAL SERVICES-FEES TO VOLUNTARY BODIES,COMPLEX NEEDS SLA,Third Party Payments,Revenue
Walsall Council,http://opendatacommunities.org/id/metropolitan-district-council/walsall,WC96-71,30/09/2018,Adult Social Care,ACCORD HOUSING ASSOCIATION LTD#135,04/09/2018,"3,185.00",70000-SOCIAL SERVICES-FEES TO VOLUNTARY BODIES,COMPLEX NEEDS SLA,Third Party Payments,Revenue
Walsall Council,http://opendatacommunities.org/id/metropolitan-district-council/walsall,WC96-72,30/09/2018,Adult Social Care,ACCORD HOUSING ASSOCIATION LTD#135,14/09/2018,"4,023.50",70000-SOCIAL SERVICES-FEES TO VOLUNTARY BODIES,COMPLEX NEEDS SLA,Third Party Payments,Revenue
Walsall Council,http://opendatacommunities.org/id/metropolitan-district-council/walsall,WC96-73,30/09/2018,Adult Social Care,ACCORD HOUSING ASSOCIATION LTD#135,04/09/2018,"4,505.40",73373-RESIDENTIAL & NURSING CARE PLACEMENTS,LD PACKAGE/PLACEMENT COSTS,Third Party Payments,Revenue
Walsall Council,http://opendatacommunities.org/id/metropolitan-district-council/walsall,WC96-74,30/09/2018,Adult Social Care,ACCORD HOUSING ASSOCIATION LTD#135,04/09/2018,"4,505.40",73373-RESIDENTIAL & NURSING CARE PLACEMENTS,LD PACKAGE/PLACEMENT COSTS,Third Party Payments,Revenue
Walsall Council,http://opendatacommunities.org/id/metropolitan-district-council/walsall,WC96-75,30/09/2018,Adult Social Care,ACCORD HOUSING ASSOCIATION LTD#135,04/09/2018,"4,505.40",73373-RESIDENTIAL & NURSING CARE PLACEMENTS,LD PACKAGE/PLACEMENT COSTS,Third Party Payments,Revenue
Walsall Council,http://opendatacommunities.org/id/metropolitan-district-council/walsall,WC96-76,30/09/2018,Adult Social Care,ACCORD HOUSING ASSOCIATION LTD#135,04/09/2018,"4,505.40",73373-RESIDENTIAL & NURSING CARE PLACEMENTS,LD PACKAGE/PLACEMENT COSTS,Third Party Payments,Revenue
Walsall Council,http://opendatacommunities.org/id/metropolitan-district-council/walsall,WC96-77,30/09/2018,Adult Social Care,ACCORD HOUSING ASSOCIATION LTD#135,14/09/2018,"4,998.50",70000-SOCIAL SERVICES-FEES TO VOLUNTARY BODIES,COMPLEX NEEDS SLA,Third Party Payments,Revenue
Walsall Council,http://opendatacommunities.org/id/metropolitan-district-council/walsall,WC96-78,30/09/2018,Adult Social Care,ACCORD HOUSING ASSOCIATION LTD#135,14/09/2018,"5,592.00",76423-DIRECT PAYMENTS SUPPORT,DIRECT PAYMENT SUPPORT ORGANISATIONS,Transfer Payments,Revenue
Walsall Council,http://opendatacommunities.org/id/metropolitan-district-council/walsall,WC96-79,30/09/2018,Adult Social Care,ACCORD HOUSING ASSOCIATION LTD#135,04/09/2018,"6,288.08",73373-RESIDENTIAL & NURSING CARE PLACEMENTS,LD PACKAGE/PLACEMENT COSTS,Third Party Payments,Revenue
Walsall Council,http://opendatacommunities.org/id/metropolitan-district-council/walsall,WC96-80,30/09/2018,Adult Social Care,ACCORD HOUSING ASSOCIATION LTD#135,04/09/2018,"6,288.08",73373-RESIDENTIAL & NURSING CARE PLACEMENTS,LD PACKAGE/PLACEMENT COSTS,Third Party Payments,Revenue
Walsall Council,http://opendatacommunities.org/id/metropolitan-district-council/walsall,WC96-81,30/09/2018,Adult Social Care,ACCORD HOUSING ASSOCIATION LTD#135,04/09/2018,"6,288.08",73373-RESIDENTIAL & NURSING CARE PLACEMENTS,LD PACKAGE/PLACEMENT COSTS,Third Party Payments,Revenue
Walsall Council,http://opendatacommunities.org/id/metropolitan-district-council/walsall,WC96-82,30/09/2018,Adult Social Care,ACCORD HOUSING ASSOCIATION LTD#135,14/09/2018,"6,566.50",76423-DIRECT PAYMENTS SUPPORT,DIRECT PAYMENT SUPPORT ORGANISATIONS,Transfer Payments,Revenue
Walsall Council,http://opendatacommunities.org/id/metropolitan-district-council/walsall,WC96-83,30/09/2018,Adult Social Care,ACCORD HOUSING ASSOCIATION LTD#135,14/09/2018,"6,864.00",76423-DIRECT PAYMENTS SUPPORT,DIRECT PAYMENT SUPPORT ORGANISATIONS,Transfer Payments,Revenue
Walsall Council,http://opendatacommunities.org/id/metropolitan-district-council/walsall,WC96-84,30/09/2018,Adult Social Care,ACCORD HOUSING ASSOCIATION LTD#135,14/09/2018,"7,877.50",76423-DIRECT PAYMENTS SUPPORT,DIRECT PAYMENT SUPPORT ORGANISATIONS,Transfer Payments,Revenue
Walsall Council,http://opendatacommunities.org/id/metropolitan-district-council/walsall,WC96-85,30/09/2018,Adult Social Care,ACCORD HOUSING ASSOCIATION LTD#135,13/09/2018,"37,101.07",73372-DOMICILIARY CARE,OP PACKAGE/PLACEMENT COSTS,Third Party Payments,Revenue
Walsall Council,http://opendatacommunities.org/id/metropolitan-district-council/walsall,WC96-86,30/09/2018,Adult Social Care,ACCORD HOUSING ASSOCIATION LTD#135,13/09/2018,"39,662.93",73372-DOMICILIARY CARE,OP PACKAGE/PLACEMENT COSTS,Third Party Payments,Revenue
Walsall Council,http://opendatacommunities.org/id/metropolitan-district-council/walsall,WC96-87,30/09/2018,Resources and Transformation,ACCORD HOUSING ASSOCIATION LTD#135,14/09/2018,"47,217.50",73365-BLOCK GROSS-SUPPORTING PEOPLE,HOMELESS PREVENTION GRANT,Third Party Payments,Revenue
Walsall Council,http://opendatacommunities.org/id/metropolitan-district-council/walsall,WC96-88,30/09/2018,Adult Social Care,ACE CARE AGENCY,05/09/2018,721.76,73372-DOMICILIARY CARE,OP PACKAGE/PLACEMENT COSTS,Third Party Payments,Revenue
Walsall Council,http://opendatacommunities.org/id/metropolitan-district-council/walsall,WC96-89,30/09/2018,Economy & Environment,ACIVICO LTD,14/09/2018,818.07,01001-OTHER CONSULTANTS FEES,CFR 1008 WALSALL MARKET,Capital,Capital
Walsall Council,http://opendatacommunities.org/id/metropolitan-district-council/walsall,WC96-90,30/09/2018,Childrens,ACORNS CHILDRENS HOSPICE TRUST,10/09/2018,750.00,63000-PROFESSIONAL FEES AND SERVICES,DIRECTLY COMMISSIONED NURSING SERVICES,Supplies & Services,Revenue
Walsall Council,http://opendatacommunities.org/id/metropolitan-district-council/walsall,WC96-91,30/09/2018,Childrens,ACORNS CHILDRENS HOSPICE TRUST,24/09/2018,750.00,63000-PROFESSIONAL FEES AND SERVICES,DIRECTLY COMMISSIONED NURSING SERVICES,Supplies & Services,Revenue
Walsall Council,http://opendatacommunities.org/id/metropolitan-district-council/walsall,WC96-92,30/09/2018,Economy & Environment,ACTION DIGITAL MEDIA LTD,10/09/2018,685.00,60500-GENERAL MATERIALS,NAG - ART GALLERY MARKETING,Supplies & Services,Revenue
Walsall Council,http://opendatacommunities.org/id/metropolitan-district-council/walsall,WC96-93,30/09/2018,Economy & Environment,ACTION MIDLANDS LTD,24/09/2018,150.00,63000-PROFESSIONAL FEES AND SERVICES,YEI (IMPACT) PROGRAMME,Supplies & Services,Revenue
Walsall Council,http://opendatacommunities.org/id/metropolitan-district-council/walsall,WC96-94,30/09/2018,Economy & Environment,ACTION MIDLANDS LTD,24/09/2018,150.00,63000-PROFESSIONAL FEES AND SERVICES,YEI ESF FUNDING,Supplies & Services,Revenue
Walsall Council,http://opendatacommunities.org/id/metropolitan-district-council/walsall,WC96-95,30/09/2018,Adult Social Care,REDACTED,12/09/2018,553.15,73506-DIRECT PAYMENT,LEARNING DISABILITY SUPPORT,Third Party Payments,Revenue
Walsall Council,http://opendatacommunities.org/id/metropolitan-district-council/walsall,WC96-96,30/09/2018,Childrens,ADAMS TOURS,14/09/2018,375.00,52000-WITH DRIVER-HIRE OF VEHICLES,SCHOOL IMPROVEMENT-VIRTUAL SCHOOL,Transport,Revenue
Walsall Council,http://opendatacommunities.org/id/metropolitan-district-council/walsall,WC96-97,30/09/2018,Resources and Transformation,ADELIE FOODS LTD,04/09/2018,433.28,61305-CATERING,TOWN HALL RESTAURANT BISTRO,Supplies & Services,Revenue
Walsall Council,http://opendatacommunities.org/id/metropolitan-district-council/walsall,WC96-98,30/09/2018,Resources and Transformation,ADELIE FOODS LTD,04/09/2018,695.46,61305-CATERING,TOWN HALL RESTAURANT BISTRO,Supplies & Services,Revenue
Walsall Council,http://opendatacommunities.org/id/metropolitan-district-council/walsall,WC96-99,30/09/2018,Resources and Transformation,ADELIE FOODS LTD,04/09/2018,750.41,61305-CATERING,TOWN HALL RESTAURANT BISTRO,Supplies & Services,Revenue
Walsall Council,http://opendatacommunities.org/id/metropolitan-district-council/walsall,WC96-100,30/09/2018,Adult Social Care,REDACTED,12/09/2018,"1,273.25",73506-DIRECT PAYMENT,PHYSICAL SUPPORT,Third Party Payments,Revenue
Walsall Council,http://opendatacommunities.org/id/metropolitan-district-council/walsall,WC96-101,30/09/2018,Childrens,ADMIRAL SELF STORAGE LTD,25/09/2018,228.78,63000-PROFESSIONAL FEES AND SERVICES,DIRECTLY COMMISSIONED NURSING SERVICES,Supplies & Services,Revenue
Walsall Council,http://opendatacommunities.org/id/metropolitan-district-council/walsall,WC96-102,30/09/2018,Childrens,ADMIRAL SELF STORAGE LTD,25/09/2018,228.78,63000-PROFESSIONAL FEES AND SERVICES,DIRECTLY COMMISSIONED NURSING SERVICES,Supplies & Services,Revenue
Walsall Council,http://opendatacommunities.org/id/metropolitan-district-council/walsall,WC96-103,30/09/2018,Childrens,ADMIRAL SELF STORAGE LTD,25/09/2018,228.78,63000-PROFESSIONAL FEES AND SERVICES,DIRECTLY COMMISSIONED NURSING SERVICES,Supplies & Services,Revenue
Walsall Council,http://opendatacommunities.org/id/metropolitan-district-council/walsall,WC96-104,30/09/2018,Childrens,REDACTED,24/09/2018,333.12,74510-RESIDENTS ORDERS,ADOPTION ALLOWANCES,Third Party Payments,Revenue
Walsall Council,http://opendatacommunities.org/id/metropolitan-district-council/walsall,WC96-105,30/09/2018,Childrens,REDACTED,24/09/2018,361.12,74510-RESIDENTS ORDERS,ADOPTION ALLOWANCES,Third Party Payments,Revenue
Walsall Council,http://opendatacommunities.org/id/metropolitan-district-council/walsall,WC96-106,30/09/2018,Adult Social Care,REDACTED,12/09/2018,"2,604.00",73506-DIRECT PAYMENT,LEARNING DISABILITY SUPPORT,Third Party Payments,Revenue
Walsall Council,http://opendatacommunities.org/id/metropolitan-district-council/walsall,WC96-107,30/09/2018,Adult Social Care,ADVANCE HEALTH CARE (UK) LTD,26/09/2018,252.90,73025-PROFESSIONAL SERVICES-PRIV CONTRACTOR & OTHER AGENCIES,TRANSITIONAL CARE SUPPORT TEAM,Third Party Payments,Revenue
Walsall Council,http://opendatacommunities.org/id/metropolitan-district-council/walsall,WC96-108,30/09/2018,Adult Social Care,ADVANCE HEALTH CARE (UK) LTD,10/09/2018,266.97,73025-PROFESSIONAL SERVICES-PRIV CONTRACTOR & OTHER AGENCIES,TRANSITIONAL CARE SUPPORT TEAM,Third Party Payments,Revenue
Walsall Council,http://opendatacommunities.org/id/metropolitan-district-council/walsall,WC96-109,30/09/2018,Adult Social Care,ADVANCE HEALTH CARE (UK) LTD,06/09/2018,344.23,73025-PROFESSIONAL SERVICES-PRIV CONTRACTOR & OTHER AGENCIES,TRANSITIONAL CARE SUPPORT TEAM,Third Party Payments,Revenue
Walsall Council,http://opendatacommunities.org/id/metropolitan-district-council/walsall,WC96-110,30/09/2018,Adult Social Care,ADVANCE HEALTH CARE (UK) LTD,26/09/2018,344.23,73025-PROFESSIONAL SERVICES-PRIV CONTRACTOR & OTHER AGENCIES,TRANSITIONAL CARE SUPPORT TEAM,Third Party Payments,Revenue
Walsall Council,http://opendatacommunities.org/id/metropolitan-district-council/walsall,WC96-111,30/09/2018,Adult Social Care,ADVANCE HEALTH CARE (UK) LTD,10/09/2018,344.26,73025-PROFESSIONAL SERVICES-PRIV CONTRACTOR & OTHER AGENCIES,TRANSITIONAL CARE SUPPORT TEAM,Third Party Payments,Revenue
Walsall Council,http://opendatacommunities.org/id/metropolitan-district-council/walsall,WC96-112,30/09/2018,Adult Social Care,ADVANCE HEALTH CARE (UK) LTD,10/09/2018,344.26,73025-PROFESSIONAL SERVICES-PRIV CONTRACTOR & OTHER AGENCIES,TRANSITIONAL CARE SUPPORT TEAM,Third Party Payments,Revenue
Walsall Council,http://opendatacommunities.org/id/metropolitan-district-council/walsall,WC96-113,30/09/2018,Adult Social Care,ADVANCE HEALTH CARE (UK) LTD,10/09/2018,344.26,73025-PROFESSIONAL SERVICES-PRIV CONTRACTOR & OTHER AGENCIES,TRANSITIONAL CARE SUPPORT TEAM,Third Party Payments,Revenue
Walsall Council,http://opendatacommunities.org/id/metropolitan-district-council/walsall,WC96-114,30/09/2018,Adult Social Care,ADVANCE HEALTH CARE (UK) LTD,10/09/2018,344.26,73025-PROFESSIONAL SERVICES-PRIV CONTRACTOR & OTHER AGENCIES,TRANSITIONAL CARE SUPPORT TEAM,Third Party Payments,Revenue
Walsall Council,http://opendatacommunities.org/id/metropolitan-district-council/walsall,WC96-115,30/09/2018,Adult Social Care,ADVANCE HEALTH CARE (UK) LTD,10/09/2018,344.26,73025-PROFESSIONAL SERVICES-PRIV CONTRACTOR & OTHER AGENCIES,TRANSITIONAL CARE SUPPORT TEAM,Third Party Payments,Revenue
Walsall Council,http://opendatacommunities.org/id/metropolitan-district-council/walsall,WC96-116,30/09/2018,Adult Social Care,ADVANCE HEALTH CARE (UK) LTD,10/09/2018,344.26,73025-PROFESSIONAL SERVICES-PRIV CONTRACTOR & OTHER AGENCIES,TRANSITIONAL CARE SUPPORT TEAM,Third Party Payments,Revenue
Walsall Council,http://opendatacommunities.org/id/metropolitan-district-council/walsall,WC96-117,30/09/2018,Adult Social Care,ADVANCE HEALTH CARE (UK) LTD,10/09/2018,344.26,73025-PROFESSIONAL SERVICES-PRIV CONTRACTOR & OTHER AGENCIES,TRANSITIONAL CARE SUPPORT TEAM,Third Party Payments,Revenue
Walsall Council,http://opendatacommunities.org/id/metropolitan-district-council/walsall,WC96-118,30/09/2018,Adult Social Care,ADVANCE HEALTH CARE (UK) LTD,10/09/2018,351.26,73025-PROFESSIONAL SERVICES-PRIV CONTRACTOR & OTHER AGENCIES,TRANSITIONAL CARE SUPPORT TEAM,Third Party Payments,Revenue
Walsall Council,http://opendatacommunities.org/id/metropolitan-district-council/walsall,WC96-119,30/09/2018,Adult Social Care,ADVANCE HEALTH CARE (UK) LTD,06/09/2018,358.28,73025-PROFESSIONAL SERVICES-PRIV CONTRACTOR & OTHER AGENCIES,TRANSITIONAL CARE SUPPORT TEAM,Third Party Payments,Revenue
Walsall Council,http://opendatacommunities.org/id/metropolitan-district-council/walsall,WC96-120,30/09/2018,Adult Social Care,ADVANCE HEALTH CARE (UK) LTD,07/09/2018,358.28,73025-PROFESSIONAL SERVICES-PRIV CONTRACTOR & OTHER AGENCIES,TRANSITIONAL CARE SUPPORT TEAM,Third Party Payments,Revenue
Walsall Council,http://opendatacommunities.org/id/metropolitan-district-council/walsall,WC96-121,30/09/2018,Adult Social Care,ADVANCE HEALTH CARE (UK) LTD,07/09/2018,365.30,73025-PROFESSIONAL SERVICES-PRIV CONTRACTOR & OTHER AGENCIES,TRANSITIONAL CARE SUPPORT TEAM,Third Party Payments,Revenue
Walsall Council,http://opendatacommunities.org/id/metropolitan-district-council/walsall,WC96-122,30/09/2018,Adult Social Care,ADVANCE HEALTH CARE (UK) LTD,06/09/2018,407.45,73025-PROFESSIONAL SERVICES-PRIV CONTRACTOR & OTHER AGENCIES,TRANSITIONAL CARE SUPPORT TEAM,Third Party Payments,Revenue
Walsall Council,http://opendatacommunities.org/id/metropolitan-district-council/walsall,WC96-123,30/09/2018,Adult Social Care,ADVANCE HEALTH CARE (UK) LTD,06/09/2018,442.58,73025-PROFESSIONAL SERVICES-PRIV CONTRACTOR & OTHER AGENCIES,TRANSITIONAL CARE SUPPORT TEAM,Third Party Payments,Revenue
Walsall Council,http://opendatacommunities.org/id/metropolitan-district-council/walsall,WC96-124,30/09/2018,Adult Social Care,ADVANCE HEALTH CARE (UK) LTD,06/09/2018,442.58,73025-PROFESSIONAL SERVICES-PRIV CONTRACTOR & OTHER AGENCIES,TRANSITIONAL CARE SUPPORT TEAM,Third Party Payments,Revenue
Walsall Council,http://opendatacommunities.org/id/metropolitan-district-council/walsall,WC96-125,30/09/2018,Adult Social Care,ADVANCE HEALTH CARE (UK) LTD,06/09/2018,442.58,73025-PROFESSIONAL SERVICES-PRIV CONTRACTOR & OTHER AGENCIES,TRANSITIONAL CARE SUPPORT TEAM,Third Party Payments,Revenue
Walsall Council,http://opendatacommunities.org/id/metropolitan-district-council/walsall,WC96-126,30/09/2018,Adult Social Care,ADVANCE HEALTH CARE (UK) LTD,06/09/2018,442.58,73025-PROFESSIONAL SERVICES-PRIV CONTRACTOR & OTHER AGENCIES,TRANSITIONAL CARE SUPPORT TEAM,Third Party Payments,Revenue
Walsall Council,http://opendatacommunities.org/id/metropolitan-district-council/walsall,WC96-127,30/09/2018,Adult Social Care,ADVANCE HEALTH CARE (UK) LTD,06/09/2018,442.58,73025-PROFESSIONAL SERVICES-PRIV CONTRACTOR & OTHER AGENCIES,TRANSITIONAL CARE SUPPORT TEAM,Third Party Payments,Revenue
Walsall Council,http://opendatacommunities.org/id/metropolitan-district-council/walsall,WC96-128,30/09/2018,Adult Social Care,ADVANCE HEALTH CARE (UK) LTD,06/09/2018,442.58,73025-PROFESSIONAL SERVICES-PRIV CONTRACTOR & OTHER AGENCIES,TRANSITIONAL CARE SUPPORT TEAM,Third Party Payments,Revenue
Walsall Council,http://opendatacommunities.org/id/metropolitan-district-council/walsall,WC96-129,30/09/2018,Adult Social Care,ADVANCE HEALTH CARE (UK) LTD,06/09/2018,442.58,73025-PROFESSIONAL SERVICES-PRIV CONTRACTOR & OTHER AGENCIES,TRANSITIONAL CARE SUPPORT TEAM,Third Party Payments,Revenue
Walsall Council,http://opendatacommunities.org/id/metropolitan-district-council/walsall,WC96-130,30/09/2018,Adult Social Care,ADVANCE HEALTH CARE (UK) LTD,06/09/2018,442.58,73025-PROFESSIONAL SERVICES-PRIV CONTRACTOR & OTHER AGENCIES,TRANSITIONAL CARE SUPPORT TEAM,Third Party Payments,Revenue
Walsall Council,http://opendatacommunities.org/id/metropolitan-district-council/walsall,WC96-131,30/09/2018,Adult Social Care,ADVANCE HEALTH CARE (UK) LTD,06/09/2018,442.58,73025-PROFESSIONAL SERVICES-PRIV CONTRACTOR & OTHER AGENCIES,TRANSITIONAL CARE SUPPORT TEAM,Third Party Payments,Revenue
Walsall Council,http://opendatacommunities.org/id/metropolitan-district-council/walsall,WC96-132,30/09/2018,Adult Social Care,ADVANCE HEALTH CARE (UK) LTD,06/09/2018,442.58,73025-PROFESSIONAL SERVICES-PRIV CONTRACTOR & OTHER AGENCIES,TRANSITIONAL CARE SUPPORT TEAM,Third Party Payments,Revenue
Walsall Council,http://opendatacommunities.org/id/metropolitan-district-council/walsall,WC96-133,30/09/2018,Adult Social Care,ADVANCE HEALTH CARE (UK) LTD,07/09/2018,442.58,73025-PROFESSIONAL SERVICES-PRIV CONTRACTOR & OTHER AGENCIES,TRANSITIONAL CARE SUPPORT TEAM,Third Party Payments,Revenue
Walsall Council,http://opendatacommunities.org/id/metropolitan-district-council/walsall,WC96-134,30/09/2018,Adult Social Care,ADVANCE HEALTH CARE (UK) LTD,07/09/2018,442.58,73025-PROFESSIONAL SERVICES-PRIV CONTRACTOR & OTHER AGENCIES,TRANSITIONAL CARE SUPPORT TEAM,Third Party Payments,Revenue
Walsall Council,http://opendatacommunities.org/id/metropolitan-district-council/walsall,WC96-135,30/09/2018,Adult Social Care,ADVANCE HEALTH CARE (UK) LTD,07/09/2018,442.58,73025-PROFESSIONAL SERVICES-PRIV CONTRACTOR & OTHER AGENCIES,TRANSITIONAL CARE SUPPORT TEAM,Third Party Payments,Revenue
Walsall Council,http://opendatacommunities.org/id/metropolitan-district-council/walsall,WC96-136,30/09/2018,Adult Social Care,ADVANCE HEALTH CARE (UK) LTD,07/09/2018,442.58,73025-PROFESSIONAL SERVICES-PRIV CONTRACTOR & OTHER AGENCIES,TRANSITIONAL CARE SUPPORT TEAM,Third Party Payments,Revenue
Walsall Council,http://opendatacommunities.org/id/metropolitan-district-council/walsall,WC96-137,30/09/2018,Adult Social Care,ADVANCE HEALTH CARE (UK) LTD,07/09/2018,442.58,73025-PROFESSIONAL SERVICES-PRIV CONTRACTOR & OTHER AGENCIES,TRANSITIONAL CARE SUPPORT TEAM,Third Party Payments,Revenue
Walsall Council,http://opendatacommunities.org/id/metropolitan-district-council/walsall,WC96-138,30/09/2018,Adult Social Care,ADVANCE HEALTH CARE (UK) LTD,07/09/2018,442.58,73025-PROFESSIONAL SERVICES-PRIV CONTRACTOR & OTHER AGENCIES,TRANSITIONAL CARE SUPPORT TEAM,Third Party Payments,Revenue
Walsall Council,http://opendatacommunities.org/id/metropolitan-district-council/walsall,WC96-139,30/09/2018,Adult Social Care,ADVANCE HEALTH CARE (UK) LTD,07/09/2018,442.58,73025-PROFESSIONAL SERVICES-PRIV CONTRACTOR & OTHER AGENCIES,TRANSITIONAL CARE SUPPORT TEAM,Third Party Payments,Revenue
Walsall Council,http://opendatacommunities.org/id/metropolitan-district-council/walsall,WC96-140,30/09/2018,Adult Social Care,ADVANCE HEALTH CARE (UK) LTD,07/09/2018,442.58,73025-PROFESSIONAL SERVICES-PRIV CONTRACTOR & OTHER AGENCIES,TRANSITIONAL CARE SUPPORT TEAM,Third Party Payments,Revenue
Walsall Council,http://opendatacommunities.org/id/metropolitan-district-council/walsall,WC96-141,30/09/2018,Adult Social Care,ADVANCE HEALTH CARE (UK) LTD,07/09/2018,442.58,73025-PROFESSIONAL SERVICES-PRIV CONTRACTOR & OTHER AGENCIES,TRANSITIONAL CARE SUPPORT TEAM,Third Party Payments,Revenue
Walsall Council,http://opendatacommunities.org/id/metropolitan-district-council/walsall,WC96-142,30/09/2018,Adult Social Care,ADVANCE HEALTH CARE (UK) LTD,07/09/2018,442.58,73025-PROFESSIONAL SERVICES-PRIV CONTRACTOR & OTHER AGENCIES,TRANSITIONAL CARE SUPPORT TEAM,Third Party Payments,Revenue
Walsall Council,http://opendatacommunities.org/id/metropolitan-district-council/walsall,WC96-143,30/09/2018,Adult Social Care,ADVANCE HEALTH CARE (UK) LTD,07/09/2018,442.58,73025-PROFESSIONAL SERVICES-PRIV CONTRACTOR & OTHER AGENCIES,TRANSITIONAL CARE SUPPORT TEAM,Third Party Payments,Revenue
Walsall Council,http://opendatacommunities.org/id/metropolitan-district-council/walsall,WC96-144,30/09/2018,Adult Social Care,ADVANCE HEALTH CARE (UK) LTD,07/09/2018,442.58,73025-PROFESSIONAL SERVICES-PRIV CONTRACTOR & OTHER AGENCIES,TRANSITIONAL CARE SUPPORT TEAM,Third Party Payments,Revenue
Walsall Council,http://opendatacommunities.org/id/metropolitan-district-council/walsall,WC96-145,30/09/2018,Adult Social Care,ADVANCE HEALTH CARE (UK) LTD,07/09/2018,442.58,73025-PROFESSIONAL SERVICES-PRIV CONTRACTOR & OTHER AGENCIES,TRANSITIONAL CARE SUPPORT TEAM,Third Party Payments,Revenue
Walsall Council,http://opendatacommunities.org/id/metropolitan-district-council/walsall,WC96-146,30/09/2018,Adult Social Care,ADVANCE HEALTH CARE (UK) LTD,07/09/2018,442.58,73025-PROFESSIONAL SERVICES-PRIV CONTRACTOR & OTHER AGENCIES,TRANSITIONAL CARE SUPPORT TEAM,Third Party Payments,Revenue
Walsall Council,http://opendatacommunities.org/id/metropolitan-district-council/walsall,WC96-147,30/09/2018,Adult Social Care,ADVANCE HEALTH CARE (UK) LTD,26/09/2018,442.58,73025-PROFESSIONAL SERVICES-PRIV CONTRACTOR & OTHER AGENCIES,TRANSITIONAL CARE SUPPORT TEAM,Third Party Payments,Revenue
Walsall Council,http://opendatacommunities.org/id/metropolitan-district-council/walsall,WC96-148,30/09/2018,Adult Social Care,ADVANCE HEALTH CARE (UK) LTD,26/09/2018,442.58,73025-PROFESSIONAL SERVICES-PRIV CONTRACTOR & OTHER AGENCIES,TRANSITIONAL CARE SUPPORT TEAM,Third Party Payments,Revenue
Walsall Council,http://opendatacommunities.org/id/metropolitan-district-council/walsall,WC96-149,30/09/2018,Adult Social Care,ADVANCE HEALTH CARE (UK) LTD,26/09/2018,442.58,73025-PROFESSIONAL SERVICES-PRIV CONTRACTOR & OTHER AGENCIES,TRANSITIONAL CARE SUPPORT TEAM,Third Party Payments,Revenue
Walsall Council,http://opendatacommunities.org/id/metropolitan-district-council/walsall,WC96-150,30/09/2018,Adult Social Care,ADVANCE HEALTH CARE (UK) LTD,26/09/2018,442.58,73025-PROFESSIONAL SERVICES-PRIV CONTRACTOR & OTHER AGENCIES,TRANSITIONAL CARE SUPPORT TEAM,Third Party Payments,Revenue
Walsall Council,http://opendatacommunities.org/id/metropolitan-district-council/walsall,WC96-151,30/09/2018,Adult Social Care,ADVANCE HEALTH CARE (UK) LTD,26/09/2018,442.58,73025-PROFESSIONAL SERVICES-PRIV CONTRACTOR & OTHER AGENCIES,TRANSITIONAL CARE SUPPORT TEAM,Third Party Payments,Revenue
Walsall Council,http://opendatacommunities.org/id/metropolitan-district-council/walsall,WC96-152,30/09/2018,Adult Social Care,ADVANCE HEALTH CARE (UK) LTD,26/09/2018,442.58,73025-PROFESSIONAL SERVICES-PRIV CONTRACTOR & OTHER AGENCIES,TRANSITIONAL CARE SUPPORT TEAM,Third Party Payments,Revenue
Walsall Council,http://opendatacommunities.org/id/metropolitan-district-council/walsall,WC96-153,30/09/2018,Adult Social Care,ADVANCE HEALTH CARE (UK) LTD,26/09/2018,442.58,73025-PROFESSIONAL SERVICES-PRIV CONTRACTOR & OTHER AGENCIES,TRANSITIONAL CARE SUPPORT TEAM,Third Party Payments,Revenue
Walsall Council,http://opendatacommunities.org/id/metropolitan-district-council/walsall,WC96-154,30/09/2018,Adult Social Care,ADVANCE HEALTH CARE (UK) LTD,26/09/2018,442.58,73025-PROFESSIONAL SERVICES-PRIV CONTRACTOR & OTHER AGENCIES,TRANSITIONAL CARE SUPPORT TEAM,Third Party Payments,Revenue
Walsall Council,http://opendatacommunities.org/id/metropolitan-district-council/walsall,WC96-155,30/09/2018,Adult Social Care,ADVANCE HEALTH CARE (UK) LTD,26/09/2018,442.58,73025-PROFESSIONAL SERVICES-PRIV CONTRACTOR & OTHER AGENCIES,TRANSITIONAL CARE SUPPORT TEAM,Third Party Payments,Revenue
Walsall Council,http://opendatacommunities.org/id/metropolitan-district-council/walsall,WC96-156,30/09/2018,Adult Social Care,ADVANCE HEALTH CARE (UK) LTD,26/09/2018,442.58,73025-PROFESSIONAL SERVICES-PRIV CONTRACTOR & OTHER AGENCIES,TRANSITIONAL CARE SUPPORT TEAM,Third Party Payments,Revenue
Walsall Council,http://opendatacommunities.org/id/metropolitan-district-council/walsall,WC96-157,30/09/2018,Adult Social Care,ADVANCE HEALTH CARE (UK) LTD,26/09/2018,442.58,73025-PROFESSIONAL SERVICES-PRIV CONTRACTOR & OTHER AGENCIES,TRANSITIONAL CARE SUPPORT TEAM,Third Party Payments,Revenue
Walsall Council,http://opendatacommunities.org/id/metropolitan-district-council/walsall,WC96-158,30/09/2018,Adult Social Care,ADVANCE HEALTH CARE (UK) LTD,26/09/2018,456.63,73025-PROFESSIONAL SERVICES-PRIV CONTRACTOR & OTHER AGENCIES,TRANSITIONAL CARE SUPPORT TEAM,Third Party Payments,Revenue
Walsall Council,http://opendatacommunities.org/id/metropolitan-district-council/walsall,WC96-159,30/09/2018,Adult Social Care,ADVANCE HEALTH CARE (UK) LTD,26/09/2018,463.65,73025-PROFESSIONAL SERVICES-PRIV CONTRACTOR & OTHER AGENCIES,TRANSITIONAL CARE SUPPORT TEAM,Third Party Payments,Revenue
Walsall Council,http://opendatacommunities.org/id/metropolitan-district-council/walsall,WC96-160,30/09/2018,Adult Social Care,ADVANCE HEALTH CARE (UK) LTD,07/09/2018,470.68,73025-PROFESSIONAL SERVICES-PRIV CONTRACTOR & OTHER AGENCIES,TRANSITIONAL CARE SUPPORT TEAM,Third Party Payments,Revenue
Walsall Council,http://opendatacommunities.org/id/metropolitan-district-council/walsall,WC96-161,30/09/2018,Adult Social Care,ADVANCE HEALTH CARE (UK) LTD,06/09/2018,477.70,73025-PROFESSIONAL SERVICES-PRIV CONTRACTOR & OTHER AGENCIES,TRANSITIONAL CARE SUPPORT TEAM,Third Party Payments,Revenue
Walsall Council,http://opendatacommunities.org/id/metropolitan-district-council/walsall,WC96-162,30/09/2018,Adult Social Care,ADVANCE HEALTH CARE (UK) LTD,07/09/2018,505.80,73025-PROFESSIONAL SERVICES-PRIV CONTRACTOR & OTHER AGENCIES,TRANSITIONAL CARE SUPPORT TEAM,Third Party Payments,Revenue
Walsall Council,http://opendatacommunities.org/id/metropolitan-district-council/walsall,WC96-163,30/09/2018,Adult Social Care,ADVANCE HEALTH CARE (UK) LTD,07/09/2018,540.93,73025-PROFESSIONAL SERVICES-PRIV CONTRACTOR & OTHER AGENCIES,TRANSITIONAL CARE SUPPORT TEAM,Third Party Payments,Revenue
Walsall Council,http://opendatacommunities.org/id/metropolitan-district-council/walsall,WC96-164,30/09/2018,Adult Social Care,ADVANCE HEALTH CARE (UK) LTD,07/09/2018,540.93,73025-PROFESSIONAL SERVICES-PRIV CONTRACTOR & OTHER AGENCIES,TRANSITIONAL CARE SUPPORT TEAM,Third Party Payments,Revenue
Walsall Council,http://opendatacommunities.org/id/metropolitan-district-council/walsall,WC96-165,30/09/2018,Adult Social Care,ADVANCE HEALTH CARE (UK) LTD,13/09/2018,655.76,73372-DOMICILIARY CARE,OP PACKAGE/PLACEMENT COSTS,Third Party Payments,Revenue
Walsall Council,http://opendatacommunities.org/id/metropolitan-district-council/walsall,WC96-166,30/09/2018,Adult Social Care,ADVANCE HEALTH CARE (UK) LTD,13/09/2018,"1,217.84",73372-DOMICILIARY CARE,OP PACKAGE/PLACEMENT COSTS,Third Party Payments,Revenue
Walsall Council,http://opendatacommunities.org/id/metropolitan-district-council/walsall,WC96-167,30/09/2018,Adult Social Care,ADVANCE HEALTH CARE (UK) LTD,13/09/2018,"85,527.16",73372-DOMICILIARY CARE,OP PACKAGE/PLACEMENT COSTS,Third Party Payments,Revenue
Walsall Council,http://opendatacommunities.org/id/metropolitan-district-council/walsall,WC96-168,30/09/2018,Childrens,ADVENTURELAND DAY NURSERY,17/09/2018,"4,675.26",66502-TOP UP FUNDING -GRANTS TO SCHOOLS,INDEPENDENT PROVIDERS - SPECIAL & AP,Third Party Payments,Revenue
Walsall Council,http://opendatacommunities.org/id/metropolitan-district-council/walsall,WC96-169,30/09/2018,Childrens,ADVENTURELAND DAY NURSERY,01/09/2018,"8,038.80",66505-OTHER-GRANTS TO OTHER ORGS,EARLY YEARS - 3 YR OLDS,Third Party Payments,Revenue
Walsall Council,http://opendatacommunities.org/id/metropolitan-district-council/walsall,WC96-170,30/09/2018,Childrens,ADVENTURELAND DAY NURSERY,01/09/2018,"10,962.00",66505-OTHER-GRANTS TO OTHER ORGS,EARLY YEARS - 3 YR OLDS,Third Party Payments,Revenue
Walsall Council,http://opendatacommunities.org/id/metropolitan-district-council/walsall,WC96-171,30/09/2018,Childrens,ADVENTURELAND DAY NURSERY,01/09/2018,"17,606.40",66505-OTHER-GRANTS TO OTHER ORGS,EARLY YEARS - 2 YR OLDS,Third Party Payments,Revenue
Walsall Council,http://opendatacommunities.org/id/metropolitan-district-council/walsall,WC96-172,30/09/2018,Economy & Environment,AEBI SCHMIDT UK LIMITED,19/09/2018,706.14,60500-GENERAL MATERIALS,FLEET,Supplies & Services,Revenue
Walsall Council,http://opendatacommunities.org/id/metropolitan-district-council/walsall,WC96-173,30/09/2018,Economy & Environment,AECOM LIMITED,14/09/2018,"10,281.00",01002-PROJECT FEES,CFR 1129 A461 CORRIDOR JUNCTION IMPROVEMENTS,Capital,Capital
Walsall Council,http://opendatacommunities.org/id/metropolitan-district-council/walsall,WC96-174,30/09/2018,Adult Social Care,REDACTED,12/09/2018,"2,616.00",73506-DIRECT PAYMENT,LEARNING DISABILITY SUPPORT,Third Party Payments,Revenue
Walsall Council,http://opendatacommunities.org/id/metropolitan-district-council/walsall,WC96-175,30/09/2018,Adult Social Care,REDACTED,12/09/2018,"1,596.25",73506-DIRECT PAYMENT,PHYSICAL SUPPORT,Third Party Payments,Revenue
Walsall Council,http://opendatacommunities.org/id/metropolitan-district-council/walsall,WC96-176,30/09/2018,Economy & Environment,ALAN DAWKINS T/A CANNOCK SOUND HIRE,18/09/2018,949.99,62523-EVENTS,ARBORETUM,Supplies & Services,Revenue
Walsall Council,http://opendatacommunities.org/id/metropolitan-district-council/walsall,WC96-177,30/09/2018,Adult Social Care,REDACTED,12/09/2018,983.50,73506-DIRECT PAYMENT,PHYSICAL SUPPORT,Third Party Payments,Revenue
Walsall Council,http://opendatacommunities.org/id/metropolitan-district-council/walsall,WC96-178,30/09/2018,Childrens,ALBRIGHTON CARE LTD,07/09/2018,"9,980.00",74036-EXTERNAL RESIDENTIAL CARE-OTH AGENCY PROVISION,INDEPENDENT RESIDENTIAL HOMES,Third Party Payments,Revenue
Walsall Council,http://opendatacommunities.org/id/metropolitan-district-council/walsall,WC96-179,30/09/2018,Childrens,ALBRIGHTON CARE LTD,07/09/2018,"19,460.00",74036-EXTERNAL RESIDENTIAL CARE-OTH AGENCY PROVISION,INDEPENDENT RESIDENTIAL HOMES,Third Party Payments,Revenue
Walsall Council,http://opendatacommunities.org/id/metropolitan-district-council/walsall,WC96-180,30/09/2018,Adult Social Care,ALDERGROVE MANOR LTD,04/09/2018,"2,039.68",73373-RESIDENTIAL & NURSING CARE PLACEMENTS,OP PACKAGE/PLACEMENT COSTS,Third Party Payments,Revenue
Walsall Council,http://opendatacommunities.org/id/metropolitan-district-council/walsall,WC96-181,30/09/2018,Adult Social Care,REDACTED,12/09/2018,"1,686.00",73506-DIRECT PAYMENT,PHYSICAL SUPPORT,Third Party Payments,Revenue
Walsall Council,http://opendatacommunities.org/id/metropolitan-district-council/walsall,WC96-182,30/09/2018,Economy & Environment,REDACTED,05/09/2018,400.00,63000-PROFESSIONAL FEES AND SERVICES,EDUCATION INFORMAL,Supplies & Services,Revenue
Walsall Council,http://opendatacommunities.org/id/metropolitan-district-council/walsall,WC96-183,30/09/2018,Adult Social Care,ALEXANDRA HOUSE CARE SERVICES LTD T/A STONEBRIDGE NURSING HOME,04/09/2018,"2,287.74",73373-RESIDENTIAL & NURSING CARE PLACEMENTS,LD PACKAGE/PLACEMENT COSTS,Third Party Payments,Revenue
Walsall Council,http://opendatacommunities.org/id/metropolitan-district-council/walsall,WC96-184,30/09/2018,Adult Social Care,REDACTED,12/09/2018,"2,214.10",73506-DIRECT PAYMENT,PHYSICAL SUPPORT,Third Party Payments,Revenue
Walsall Council,http://opendatacommunities.org/id/metropolitan-district-council/walsall,WC96-185,30/09/2018,Childrens,REDACTED,12/09/2018,360.00,73506-DIRECT PAYMENT,FAMILY SUPPORT - DIRECT PAYMENTS,Third Party Payments,Revenue
Walsall Council,http://opendatacommunities.org/id/metropolitan-district-council/walsall,WC96-186,30/09/2018,Adult Social Care,REDACTED,03/09/2018,"1,301.64",73372-DOMICILIARY CARE,LD PACKAGE/PLACEMENT COSTS,Third Party Payments,Revenue
Walsall Council,http://opendatacommunities.org/id/metropolitan-district-council/walsall,WC96-187,30/09/2018,Adult Social Care,REDACTED,24/09/2018,"1,301.64",73372-DOMICILIARY CARE,LD PACKAGE/PLACEMENT COSTS,Third Party Payments,Revenue
Walsall Council,http://opendatacommunities.org/id/metropolitan-district-council/walsall,WC96-188,30/09/2018,Childrens,ALL SAINTS NATIONAL ACADEMY #1,04/09/2018,"4,101.93",66502-TOP UP FUNDING -GRANTS TO SCHOOLS,ALL SAINTS NATIONAL ACADEMY,Third Party Payments,Revenue
Walsall Council,http://opendatacommunities.org/id/metropolitan-district-council/walsall,WC96-189,30/09/2018,Economy & Environment,ALLSORTS OFFICE SUPPLIES LTD,13/09/2018,213.20,63800-COMPUTER EQUIPMENT AND SUPPLIES,ENGINEERING MANAGEMENT,Supplies & Services,Revenue
Walsall Council,http://opendatacommunities.org/id/metropolitan-district-council/walsall,WC96-190,30/09/2018,Economy & Environment,ALLSORTS OFFICE SUPPLIES LTD,13/09/2018,637.20,60000-FURNITURE & EQUIPMENT,DEVELOPMENT MANAGEMENT,Supplies & Services,Revenue
Walsall Council,http://opendatacommunities.org/id/metropolitan-district-council/walsall,WC96-191,30/09/2018,Adult Social Care,ALLSORTS OFFICE SUPPLIES LTD,13/09/2018,"1,066.00",60000-FURNITURE & EQUIPMENT,WEST LOCALITY TEAM,Supplies & Services,Revenue
Walsall Council,http://opendatacommunities.org/id/metropolitan-district-council/walsall,WC96-192,30/09/2018,Adult Social Care,ALLSORTS OFFICE SUPPLIES LTD,12/09/2018,"1,662.70",60006-NEW-FURNITURE & EQUIPMENT,SENIOR MANAGEMENT TEAM,Supplies & Services,Revenue
Walsall Council,http://opendatacommunities.org/id/metropolitan-district-council/walsall,WC96-193,30/09/2018,Resources and Transformation,ALLSORTS OFFICE SUPPLIES LTD,25/09/2018,"1,904.00",63800-COMPUTER EQUIPMENT AND SUPPLIES,RECHARGEABLE EQUIPMENT,Supplies & Services,Revenue
Walsall Council,http://opendatacommunities.org/id/metropolitan-district-council/walsall,WC96-194,30/09/2018,Adult Social Care,ALLSORTS OFFICE SUPPLIES LTD,26/09/2018,"3,698.00",60000-FURNITURE & EQUIPMENT,LEARNING DISABILITY TEAM,Supplies & Services,Revenue
Walsall Council,http://opendatacommunities.org/id/metropolitan-district-council/walsall,WC96-195,30/09/2018,Economy & Environment,ALLSORTS OFFICE SUPPLIES LTD,21/09/2018,"6,090.00",60006-NEW-FURNITURE & EQUIPMENT,ENGINEERING MANAGEMENT,Supplies & Services,Revenue
Walsall Council,http://opendatacommunities.org/id/metropolitan-district-council/walsall,WC96-196,30/09/2018,Adult Social Care,ALMA COURT,03/09/2018,"2,790.00",73372-DOMICILIARY CARE,OP PACKAGE/PLACEMENT COSTS,Third Party Payments,Revenue
Walsall Council,http://opendatacommunities.org/id/metropolitan-district-council/walsall,WC96-197,30/09/2018,Adult Social Care,ALMA COURT,07/09/2018,"2,790.00",73372-DOMICILIARY CARE,OP PACKAGE/PLACEMENT COSTS,Third Party Payments,Revenue
Walsall Council,http://opendatacommunities.org/id/metropolitan-district-council/walsall,WC96-198,30/09/2018,Childrens,ALMOZENE NURSERY & CHILDRENS CENTRE,01/09/2018,"4,384.80",66505-OTHER-GRANTS TO OTHER ORGS,EARLY YEARS - 3 YR OLDS,Third Party Payments,Revenue
Walsall Council,http://opendatacommunities.org/id/metropolitan-district-council/walsall,WC96-199,30/09/2018,Childrens,ALMOZENE NURSERY & CHILDRENS CENTRE,01/09/2018,"9,500.40",66505-OTHER-GRANTS TO OTHER ORGS,EARLY YEARS - 3 YR OLDS,Third Party Payments,Revenue
Walsall Council,http://opendatacommunities.org/id/metropolitan-district-council/walsall,WC96-200,30/09/2018,Childrens,ALMOZENE NURSERY & CHILDRENS CENTRE,01/09/2018,"13,732.99",66505-OTHER-GRANTS TO OTHER ORGS,EARLY YEARS - 2 YR OLDS,Third Party Payments,Revenue
Walsall Council,http://opendatacommunities.org/id/metropolitan-district-council/walsall,WC96-201,30/09/2018,Adult Social Care,ALPHA HEALTH CARE LTD,06/09/2018,642.86,73019-PSE'S-PRIV CONTRACTOR FEES,TRANSITIONAL CARE SUPPORT TEAM,Third Party Payments,Revenue
Walsall Council,http://opendatacommunities.org/id/metropolitan-district-council/walsall,WC96-202,30/09/2018,Adult Social Care,ALPHA HEALTH CARE LTD,26/09/2018,"1,285.71",73019-PSE'S-PRIV CONTRACTOR FEES,TRANSITIONAL CARE SUPPORT TEAM,Third Party Payments,Revenue
Walsall Council,http://opendatacommunities.org/id/metropolitan-district-council/walsall,WC96-203,30/09/2018,Adult Social Care,ALPHA HEALTH CARE LTD,26/09/2018,"1,928.57",73019-PSE'S-PRIV CONTRACTOR FEES,TRANSITIONAL CARE SUPPORT TEAM,Third Party Payments,Revenue
Walsall Council,http://opendatacommunities.org/id/metropolitan-district-council/walsall,WC96-204,30/09/2018,Adult Social Care,ALPHA HEALTH CARE LTD,26/09/2018,"1,986.00",73019-PSE'S-PRIV CONTRACTOR FEES,TRANSITIONAL CARE SUPPORT TEAM,Third Party Payments,Revenue
Walsall Council,http://opendatacommunities.org/id/metropolitan-district-council/walsall,WC96-205,30/09/2018,Adult Social Care,ALPHA HEALTH CARE LTD,04/09/2018,"2,171.37",73373-RESIDENTIAL & NURSING CARE PLACEMENTS,OP PACKAGE/PLACEMENT COSTS,Third Party Payments,Revenue
Walsall Council,http://opendatacommunities.org/id/metropolitan-district-council/walsall,WC96-206,30/09/2018,Adult Social Care,ALPHA HEALTH CARE LTD,26/09/2018,"2,314.29",73019-PSE'S-PRIV CONTRACTOR FEES,TRANSITIONAL CARE SUPPORT TEAM,Third Party Payments,Revenue
Walsall Council,http://opendatacommunities.org/id/metropolitan-district-council/walsall,WC96-207,30/09/2018,Adult Social Care,ALPHA HEALTH CARE LTD,06/09/2018,"2,957.14",73025-PROFESSIONAL SERVICES-PRIV CONTRACTOR & OTHER AGENCIES,TRANSITIONAL CARE SUPPORT TEAM,Third Party Payments,Revenue
Walsall Council,http://opendatacommunities.org/id/metropolitan-district-council/walsall,WC96-208,30/09/2018,Childrens,ALPHA TRAINING ACADEMY UK LTD,01/09/2018,"6,618.00",66502-TOP UP FUNDING -GRANTS TO SCHOOLS,INDEPENDENT PROVIDERS - POST SCHOOL,Third Party Payments,Revenue
Walsall Council,http://opendatacommunities.org/id/metropolitan-district-council/walsall,WC96-209,30/09/2018,Childrens,ALTUM RESIDENTIAL CARE LTD,07/09/2018,"9,704.57",74036-EXTERNAL RESIDENTIAL CARE-OTH AGENCY PROVISION,INDEPENDENT RESIDENTIAL HOMES,Third Party Payments,Revenue
Walsall Council,http://opendatacommunities.org/id/metropolitan-district-council/walsall,WC96-210,30/09/2018,Childrens,ALTUM RESIDENTIAL CARE LTD,07/09/2018,"15,000.00",74036-EXTERNAL RESIDENTIAL CARE-OTH AGENCY PROVISION,INDEPENDENT RESIDENTIAL HOMES,Third Party Payments,Revenue
Walsall Council,http://opendatacommunities.org/id/metropolitan-district-council/walsall,WC96-211,30/09/2018,Childrens,ALUMWELLIES NURSERY,28/09/2018,"29,688.75",66505-OTHER-GRANTS TO OTHER ORGS,EARLY YEARS - 3 YR OLDS,Third Party Payments,Revenue
Walsall Council,http://opendatacommunities.org/id/metropolitan-district-council/walsall,WC96-212,30/09/2018,Childrens,AMAH NURSERIES LIMITED T/A BANANA MOON WALSALL,01/09/2018,"5,115.60",66505-OTHER-GRANTS TO OTHER ORGS,EARLY YEARS - 3 YR OLDS,Third Party Payments,Revenue
Walsall Council,http://opendatacommunities.org/id/metropolitan-district-council/walsall,WC96-213,30/09/2018,Childrens,AMAH NURSERIES LIMITED T/A BANANA MOON WALSALL,01/09/2018,"6,577.20",66505-OTHER-GRANTS TO OTHER ORGS,EARLY YEARS - 3 YR OLDS,Third Party Payments,Revenue
Walsall Council,http://opendatacommunities.org/id/metropolitan-district-council/walsall,WC96-214,30/09/2018,Childrens,AMAH NURSERIES LIMITED T/A BANANA MOON WALSALL,01/09/2018,"7,042.56",66505-OTHER-GRANTS TO OTHER ORGS,EARLY YEARS - 2 YR OLDS,Third Party Payments,Revenue
Walsall Council,http://opendatacommunities.org/id/metropolitan-district-council/walsall,WC96-215,30/09/2018,Childrens,REDACTED,24/09/2018,318.08,74510-RESIDENTS ORDERS,ADOPTION ALLOWANCES,Third Party Payments,Revenue
Walsall Council,http://opendatacommunities.org/id/metropolitan-district-council/walsall,WC96-216,30/09/2018,Childrens,REDACTED,24/09/2018,318.08,74510-RESIDENTS ORDERS,ADOPTION ALLOWANCES,Third Party Payments,Revenue
Walsall Council,http://opendatacommunities.org/id/metropolitan-district-council/walsall,WC96-217,30/09/2018,Childrens,REDACTED,24/09/2018,808.04,74009-ADOPTION ALLOWANCE,ADOPTION ALLOWANCES,Transfer Payments,Revenue
Walsall Council,http://opendatacommunities.org/id/metropolitan-district-council/walsall,WC96-218,30/09/2018,Childrens,REDACTED,07/09/2018,-914.29,74508-INTERNAL FOSTER CARERS-CARER FEES,INTERNAL FOSTER CARE PROVISION,Transfer Payments,Revenue
Walsall Council,http://opendatacommunities.org/id/metropolitan-district-council/walsall,WC96-219,30/09/2018,Childrens,REDACTED,07/09/2018,514.28,74501-MAINTENANCE ALLOWANCE-FOSTER CARERS,INTERNAL FOSTER CARE PROVISION,Transfer Payments,Revenue
Walsall Council,http://opendatacommunities.org/id/metropolitan-district-council/walsall,WC96-220,30/09/2018,Childrens,REDACTED,07/09/2018,"2,914.29",74508-INTERNAL FOSTER CARERS-CARER FEES,INTERNAL FOSTER CARE PROVISION,Transfer Payments,Revenue
Walsall Council,http://opendatacommunities.org/id/metropolitan-district-council/walsall,WC96-221,30/09/2018,Adult Social Care,REDACTED,12/09/2018,"1,122.00",73506-DIRECT PAYMENT,LEARNING DISABILITY SUPPORT,Third Party Payments,Revenue
Walsall Council,http://opendatacommunities.org/id/metropolitan-district-council/walsall,WC96-222,30/09/2018,Childrens,AMBUR RADIO,24/09/2018,"5,400.00",68001-PUBLICITY & ADVERTISING (NOT STAFF ADVERTISING),CENTRAL EXP-2 YR OLD TRAJECTORY FUNDING,Supplies & Services,Revenue
Walsall Council,http://opendatacommunities.org/id/metropolitan-district-council/walsall,WC96-223,30/09/2018,Economy & Environment,AMEY LG LIMITED,24/09/2018,"1,226.78",01002-PROJECT FEES,CFR 1280 M6 J10 RESILIENCE PACKAGE NPIF,Capital,Capital
Walsall Council,http://opendatacommunities.org/id/metropolitan-district-council/walsall,WC96-224,30/09/2018,Economy & Environment,AMEY LG LIMITED,07/09/2018,"1,613.78",73025-PROFESSIONAL SERVICES-PRIV CONTRACTOR & OTHER AGENCIES,SECTION 38 OF HIGHWAYS ACT - SUPERVISION,Third Party Payments,Revenue
Walsall Council,http://opendatacommunities.org/id/metropolitan-district-council/walsall,WC96-225,30/09/2018,Economy & Environment,AMEY LG LIMITED,13/09/2018,"1,668.78",01002-PROJECT FEES,CFR 1072 A461 SALTERS ROAD,Capital,Capital
Walsall Council,http://opendatacommunities.org/id/metropolitan-district-council/walsall,WC96-226,30/09/2018,Economy & Environment,AMEY LG LIMITED,03/09/2018,"2,322.79",01006-SITE WORKS MAIN CONTRACTORS,CFR 1281 HIGHWAY EFFICIENCY PROGRAMME,Capital,Capital
Walsall Council,http://opendatacommunities.org/id/metropolitan-district-council/walsall,WC96-227,30/09/2018,Economy & Environment,AMEY LG LIMITED,26/09/2018,"3,060.17",01006-SITE WORKS MAIN CONTRACTORS,CFR 1281 HIGHWAY EFFICIENCY PROGRAMME,Capital,Capital
Walsall Council,http://opendatacommunities.org/id/metropolitan-district-council/walsall,WC96-228,30/09/2018,Economy & Environment,AMEY LG LIMITED,05/09/2018,"16,518.19",01002-PROJECT FEES,CFR 1072 A461 SALTERS ROAD,Capital,Capital
Walsall Council,http://opendatacommunities.org/id/metropolitan-district-council/walsall,WC96-229,30/09/2018,Childrens,AMG NURSING CARE SERVICES,07/09/2018,"2,274.48",63000-PROFESSIONAL FEES AND SERVICES,DIRECTLY COMMISSIONED NURSING SERVICES,Supplies & Services,Revenue
Walsall Council,http://opendatacommunities.org/id/metropolitan-district-council/walsall,WC96-230,30/09/2018,Adult Social Care,AMG NURSING CARE SERVICES,24/09/2018,"3,640.00",73372-DOMICILIARY CARE,PD PACKAGE/PLACEMENT COSTS,Third Party Payments,Revenue
Walsall Council,http://opendatacommunities.org/id/metropolitan-district-council/walsall,WC96-231,30/09/2018,Adult Social Care,AMG NURSING CARE SERVICES,24/09/2018,"10,711.68",73372-DOMICILIARY CARE,OP PACKAGE/PLACEMENT COSTS,Third Party Payments,Revenue
Walsall Council,http://opendatacommunities.org/id/metropolitan-district-council/walsall,WC96-232,30/09/2018,Adult Social Care,REDACTED,12/09/2018,"1,416.80",73506-DIRECT PAYMENT,PHYSICAL SUPPORT,Third Party Payments,Revenue
Walsall Council,http://opendatacommunities.org/id/metropolitan-district-council/walsall,WC96-233,30/09/2018,Economy & Environment,AMX SOLUTIONS LIMITED,01/10/2018,999.80,64500-PUBLICATIONS/ORGANISATIONS-SUBSCRIPTIONS,STRUCTURES & GEOTECHNICS,Supplies & Services,Revenue
Walsall Council,http://opendatacommunities.org/id/metropolitan-district-council/walsall,WC96-234,30/09/2018,Childrens,REDACTED,24/09/2018,340.00,74508-INTERNAL FOSTER CARERS-CARER FEES,FAMILY & FRIENDS FOSTER CARE PROVISION,Transfer Payments,Revenue
Walsall Council,http://opendatacommunities.org/id/metropolitan-district-council/walsall,WC96-235,30/09/2018,Childrens,REDACTED,24/09/2018,600.00,74501-MAINTENANCE ALLOWANCE-FOSTER CARERS,FAMILY & FRIENDS FOSTER CARE PROVISION,Transfer Payments,Revenue
Walsall Council,http://opendatacommunities.org/id/metropolitan-district-council/walsall,WC96-236,30/09/2018,Childrens,REDACTED,24/09/2018,425.08,74510-RESIDENTS ORDERS,ADOPTION ALLOWANCES,Third Party Payments,Revenue
Walsall Council,http://opendatacommunities.org/id/metropolitan-district-council/walsall,WC96-237,30/09/2018,Adult Social Care,ANCHOR,10/09/2018,"-1,705.71",73373-RESIDENTIAL & NURSING CARE PLACEMENTS,OP PACKAGE/PLACEMENT COSTS,Third Party Payments,Revenue
Walsall Council,http://opendatacommunities.org/id/metropolitan-district-council/walsall,WC96-238,30/09/2018,Adult Social Care,ANCHOR,26/09/2018,"-1,072.30",73373-RESIDENTIAL & NURSING CARE PLACEMENTS,OP PACKAGE/PLACEMENT COSTS,Third Party Payments,Revenue
Walsall Council,http://opendatacommunities.org/id/metropolitan-district-council/walsall,WC96-239,30/09/2018,Adult Social Care,ANCHOR,26/09/2018,"-1,072.30",73373-RESIDENTIAL & NURSING CARE PLACEMENTS,OP PACKAGE/PLACEMENT COSTS,Third Party Payments,Revenue
Walsall Council,http://opendatacommunities.org/id/metropolitan-district-council/walsall,WC96-240,30/09/2018,Adult Social Care,ANCHOR,26/09/2018,"-1,072.29",73373-RESIDENTIAL & NURSING CARE PLACEMENTS,OP PACKAGE/PLACEMENT COSTS,Third Party Payments,Revenue
Walsall Council,http://opendatacommunities.org/id/metropolitan-district-council/walsall,WC96-241,30/09/2018,Adult Social Care,ANCHOR,26/09/2018,-965.05,73373-RESIDENTIAL & NURSING CARE PLACEMENTS,OP PACKAGE/PLACEMENT COSTS,Third Party Payments,Revenue
Walsall Council,http://opendatacommunities.org/id/metropolitan-district-council/walsall,WC96-242,30/09/2018,Adult Social Care,ANCHOR,26/09/2018,"1,688.84",73373-RESIDENTIAL & NURSING CARE PLACEMENTS,OP PACKAGE/PLACEMENT COSTS,Third Party Payments,Revenue
Walsall Council,http://opendatacommunities.org/id/metropolitan-district-council/walsall,WC96-243,30/09/2018,Adult Social Care,ANCHOR,26/09/2018,"1,876.52",73373-RESIDENTIAL & NURSING CARE PLACEMENTS,OP PACKAGE/PLACEMENT COSTS,Third Party Payments,Revenue
Walsall Council,http://opendatacommunities.org/id/metropolitan-district-council/walsall,WC96-244,30/09/2018,Adult Social Care,ANCHOR,26/09/2018,"1,876.52",73373-RESIDENTIAL & NURSING CARE PLACEMENTS,OP PACKAGE/PLACEMENT COSTS,Third Party Payments,Revenue
Walsall Council,http://opendatacommunities.org/id/metropolitan-district-council/walsall,WC96-245,30/09/2018,Adult Social Care,ANCHOR,26/09/2018,"1,876.52",73373-RESIDENTIAL & NURSING CARE PLACEMENTS,OP PACKAGE/PLACEMENT COSTS,Third Party Payments,Revenue
Walsall Council,http://opendatacommunities.org/id/metropolitan-district-council/walsall,WC96-246,30/09/2018,Adult Social Care,ANCHOR,10/09/2018,"2,076.52",73373-RESIDENTIAL & NURSING CARE PLACEMENTS,OP PACKAGE/PLACEMENT COSTS,Third Party Payments,Revenue
Walsall Council,http://opendatacommunities.org/id/metropolitan-district-council/walsall,WC96-247,30/09/2018,Adult Social Care,ANCHOR,18/09/2018,"2,412.63",73373-RESIDENTIAL & NURSING CARE PLACEMENTS,OP PACKAGE/PLACEMENT COSTS,Third Party Payments,Revenue
Walsall Council,http://opendatacommunities.org/id/metropolitan-district-council/walsall,WC96-248,30/09/2018,Adult Social Care,ANCHOR,18/09/2018,"2,680.74",73373-RESIDENTIAL & NURSING CARE PLACEMENTS,OP PACKAGE/PLACEMENT COSTS,Third Party Payments,Revenue
Walsall Council,http://opendatacommunities.org/id/metropolitan-district-council/walsall,WC96-249,30/09/2018,Adult Social Care,ANCHOR,18/09/2018,"2,680.75",73373-RESIDENTIAL & NURSING CARE PLACEMENTS,OP PACKAGE/PLACEMENT COSTS,Third Party Payments,Revenue
Walsall Council,http://opendatacommunities.org/id/metropolitan-district-council/walsall,WC96-250,30/09/2018,Adult Social Care,ANCHOR,18/09/2018,"2,680.75",73373-RESIDENTIAL & NURSING CARE PLACEMENTS,OP PACKAGE/PLACEMENT COSTS,Third Party Payments,Revenue
Walsall Council,http://opendatacommunities.org/id/metropolitan-district-council/walsall,WC96-251,30/09/2018,Adult Social Care,ANCHOR,18/09/2018,"3,726.73",73373-RESIDENTIAL & NURSING CARE PLACEMENTS,OP PACKAGE/PLACEMENT COSTS,Third Party Payments,Revenue
Walsall Council,http://opendatacommunities.org/id/metropolitan-district-council/walsall,WC96-252,30/09/2018,Childrens,REDACTED,24/09/2018,314.44,74509-SPECIAL GUARDIANSHIP ORDERS,ADOPTION ALLOWANCES,Transfer Payments,Revenue
Walsall Council,http://opendatacommunities.org/id/metropolitan-district-council/walsall,WC96-253,30/09/2018,Childrens,REDACTED,07/09/2018,720.00,74501-MAINTENANCE ALLOWANCE-FOSTER CARERS,INTERNAL FOSTER CARE PROVISION,Transfer Payments,Revenue
Walsall Council,http://opendatacommunities.org/id/metropolitan-district-council/walsall,WC96-254,30/09/2018,Childrens,REDACTED,07/09/2018,"1,000.00",74508-INTERNAL FOSTER CARERS-CARER FEES,INTERNAL FOSTER CARE PROVISION,Transfer Payments,Revenue
Walsall Council,http://opendatacommunities.org/id/metropolitan-district-council/walsall,WC96-255,30/09/2018,Adult Social Care,REDACTED,12/09/2018,"2,214.10",73506-DIRECT PAYMENT,PHYSICAL SUPPORT,Third Party Payments,Revenue
Walsall Council,http://opendatacommunities.org/id/metropolitan-district-council/walsall,WC96-256,30/09/2018,Adult Social Care,ANGEL COURT RESIDENTIAL CARE HOME,10/09/2018,"1,869.72",73373-RESIDENTIAL & NURSING CARE PLACEMENTS,OP PACKAGE/PLACEMENT COSTS,Third Party Payments,Revenue
Walsall Council,http://opendatacommunities.org/id/metropolitan-district-council/walsall,WC96-257,30/09/2018,Adult Social Care,ANGEL COURT RESIDENTIAL CARE HOME,10/09/2018,"2,077.58",73373-RESIDENTIAL & NURSING CARE PLACEMENTS,OP PACKAGE/PLACEMENT COSTS,Third Party Payments,Revenue
Walsall Council,http://opendatacommunities.org/id/metropolitan-district-council/walsall,WC96-258,30/09/2018,Adult Social Care,ANGEL COURT RESIDENTIAL CARE HOME,10/09/2018,"2,158.57",73373-RESIDENTIAL & NURSING CARE PLACEMENTS,OP PACKAGE/PLACEMENT COSTS,Third Party Payments,Revenue
Walsall Council,http://opendatacommunities.org/id/metropolitan-district-council/walsall,WC96-259,30/09/2018,Adult Social Care,ANGEL COURT RESIDENTIAL CARE HOME,10/09/2018,"2,190.50",73373-RESIDENTIAL & NURSING CARE PLACEMENTS,OP PACKAGE/PLACEMENT COSTS,Third Party Payments,Revenue
Walsall Council,http://opendatacommunities.org/id/metropolitan-district-council/walsall,WC96-260,30/09/2018,Childrens,REDACTED,24/09/2018,368.76,74509-SPECIAL GUARDIANSHIP ORDERS,ADOPTION ALLOWANCES,Transfer Payments,Revenue
Walsall Council,http://opendatacommunities.org/id/metropolitan-district-council/walsall,WC96-261,30/09/2018,Childrens,REDACTED,24/09/2018,368.76,74509-SPECIAL GUARDIANSHIP ORDERS,ADOPTION ALLOWANCES,Transfer Payments,Revenue
Walsall Council,http://opendatacommunities.org/id/metropolitan-district-council/walsall,WC96-262,30/09/2018,Childrens,REDACTED,24/09/2018,500.16,74509-SPECIAL GUARDIANSHIP ORDERS,ADOPTION ALLOWANCES,Transfer Payments,Revenue
Walsall Council,http://opendatacommunities.org/id/metropolitan-district-council/walsall,WC96-263,30/09/2018,Childrens,REDACTED,24/09/2018,312.04,74509-SPECIAL GUARDIANSHIP ORDERS,ADOPTION ALLOWANCES,Transfer Payments,Revenue
Walsall Council,http://opendatacommunities.org/id/metropolitan-district-council/walsall,WC96-264,30/09/2018,Adult Social Care,REDACTED,12/09/2018,409.20,73506-DIRECT PAYMENT,LEARNING DISABILITY SUPPORT,Third Party Payments,Revenue
Walsall Council,http://opendatacommunities.org/id/metropolitan-district-council/walsall,WC96-265,30/09/2018,Adult Social Care,REDACTED,12/09/2018,"1,440.15",73506-DIRECT PAYMENT,PHYSICAL SUPPORT,Third Party Payments,Revenue
Walsall Council,http://opendatacommunities.org/id/metropolitan-district-council/walsall,WC96-266,30/09/2018,Adult Social Care,ANSON COURT RESIDENTIAL HOME,04/09/2018,"-1,206.34",73373-RESIDENTIAL & NURSING CARE PLACEMENTS,OP PACKAGE/PLACEMENT COSTS,Third Party Payments,Revenue
Walsall Council,http://opendatacommunities.org/id/metropolitan-district-council/walsall,WC96-267,30/09/2018,Adult Social Care,ANSON COURT RESIDENTIAL HOME,04/09/2018,871.24,73373-RESIDENTIAL & NURSING CARE PLACEMENTS,OP PACKAGE/PLACEMENT COSTS,Third Party Payments,Revenue
Walsall Council,http://opendatacommunities.org/id/metropolitan-district-council/walsall,WC96-268,30/09/2018,Adult Social Care,ANSON COURT RESIDENTIAL HOME,04/09/2018,871.24,73373-RESIDENTIAL & NURSING CARE PLACEMENTS,OP PACKAGE/PLACEMENT COSTS,Third Party Payments,Revenue
Walsall Council,http://opendatacommunities.org/id/metropolitan-district-council/walsall,WC96-269,30/09/2018,Adult Social Care,ANSON COURT RESIDENTIAL HOME,04/09/2018,871.24,73373-RESIDENTIAL & NURSING CARE PLACEMENTS,OP PACKAGE/PLACEMENT COSTS,Third Party Payments,Revenue
Walsall Council,http://opendatacommunities.org/id/metropolitan-district-council/walsall,WC96-270,30/09/2018,Adult Social Care,ANSON COURT RESIDENTIAL HOME,04/09/2018,871.24,73373-RESIDENTIAL & NURSING CARE PLACEMENTS,OP PACKAGE/PLACEMENT COSTS,Third Party Payments,Revenue
Walsall Council,http://opendatacommunities.org/id/metropolitan-district-council/walsall,WC96-271,30/09/2018,Adult Social Care,ANSON COURT RESIDENTIAL HOME,04/09/2018,871.24,73373-RESIDENTIAL & NURSING CARE PLACEMENTS,OP PACKAGE/PLACEMENT COSTS,Third Party Payments,Revenue
Walsall Council,http://opendatacommunities.org/id/metropolitan-district-council/walsall,WC96-272,30/09/2018,Adult Social Care,ANSON COURT RESIDENTIAL HOME,04/09/2018,871.24,73373-RESIDENTIAL & NURSING CARE PLACEMENTS,MENTAL HEALTH PACKAGE/PLACEMENT COSTS,Third Party Payments,Revenue
Walsall Council,http://opendatacommunities.org/id/metropolitan-district-council/walsall,WC96-273,30/09/2018,Adult Social Care,ANSON COURT RESIDENTIAL HOME,04/09/2018,871.24,73373-RESIDENTIAL & NURSING CARE PLACEMENTS,OP PACKAGE/PLACEMENT COSTS,Third Party Payments,Revenue
Walsall Council,http://opendatacommunities.org/id/metropolitan-district-council/walsall,WC96-274,30/09/2018,Adult Social Care,ANSON COURT RESIDENTIAL HOME,04/09/2018,871.24,73373-RESIDENTIAL & NURSING CARE PLACEMENTS,OP PACKAGE/PLACEMENT COSTS,Third Party Payments,Revenue
Walsall Council,http://opendatacommunities.org/id/metropolitan-district-council/walsall,WC96-275,30/09/2018,Adult Social Care,ANSON COURT RESIDENTIAL HOME,04/09/2018,871.24,73373-RESIDENTIAL & NURSING CARE PLACEMENTS,OP PACKAGE/PLACEMENT COSTS,Third Party Payments,Revenue
Walsall Council,http://opendatacommunities.org/id/metropolitan-district-council/walsall,WC96-276,30/09/2018,Adult Social Care,ANSON COURT RESIDENTIAL HOME,04/09/2018,871.24,73373-RESIDENTIAL & NURSING CARE PLACEMENTS,OP PACKAGE/PLACEMENT COSTS,Third Party Payments,Revenue
Walsall Council,http://opendatacommunities.org/id/metropolitan-district-council/walsall,WC96-277,30/09/2018,Adult Social Care,ANSON COURT RESIDENTIAL HOME,04/09/2018,871.24,73373-RESIDENTIAL & NURSING CARE PLACEMENTS,OP PACKAGE/PLACEMENT COSTS,Third Party Payments,Revenue
Walsall Council,http://opendatacommunities.org/id/metropolitan-district-council/walsall,WC96-278,30/09/2018,Adult Social Care,ANSON COURT RESIDENTIAL HOME,04/09/2018,871.24,73373-RESIDENTIAL & NURSING CARE PLACEMENTS,OP PACKAGE/PLACEMENT COSTS,Third Party Payments,Revenue
Walsall Council,http://opendatacommunities.org/id/metropolitan-district-council/walsall,WC96-279,30/09/2018,Adult Social Care,ANSON COURT RESIDENTIAL HOME,04/09/2018,871.24,73373-RESIDENTIAL & NURSING CARE PLACEMENTS,OP PACKAGE/PLACEMENT COSTS,Third Party Payments,Revenue
Walsall Council,http://opendatacommunities.org/id/metropolitan-district-council/walsall,WC96-280,30/09/2018,Adult Social Care,ANSON COURT RESIDENTIAL HOME,04/09/2018,871.25,73373-RESIDENTIAL & NURSING CARE PLACEMENTS,OP PACKAGE/PLACEMENT COSTS,Third Party Payments,Revenue
Walsall Council,http://opendatacommunities.org/id/metropolitan-district-council/walsall,WC96-281,30/09/2018,Adult Social Care,ANSON COURT RESIDENTIAL HOME,04/09/2018,871.25,73373-RESIDENTIAL & NURSING CARE PLACEMENTS,OP PACKAGE/PLACEMENT COSTS,Third Party Payments,Revenue
Walsall Council,http://opendatacommunities.org/id/metropolitan-district-council/walsall,WC96-282,30/09/2018,Adult Social Care,ANSON COURT RESIDENTIAL HOME,04/09/2018,908.38,73373-RESIDENTIAL & NURSING CARE PLACEMENTS,OP PACKAGE/PLACEMENT COSTS,Third Party Payments,Revenue
Walsall Council,http://opendatacommunities.org/id/metropolitan-district-council/walsall,WC96-283,30/09/2018,Adult Social Care,ANSON COURT RESIDENTIAL HOME,04/09/2018,908.38,73373-RESIDENTIAL & NURSING CARE PLACEMENTS,OP PACKAGE/PLACEMENT COSTS,Third Party Payments,Revenue
Walsall Council,http://opendatacommunities.org/id/metropolitan-district-council/walsall,WC96-284,30/09/2018,Adult Social Care,ANSON COURT RESIDENTIAL HOME,04/09/2018,908.38,73373-RESIDENTIAL & NURSING CARE PLACEMENTS,OP PACKAGE/PLACEMENT COSTS,Third Party Payments,Revenue
Walsall Council,http://opendatacommunities.org/id/metropolitan-district-council/walsall,WC96-285,30/09/2018,Adult Social Care,ANSON COURT RESIDENTIAL HOME,04/09/2018,908.38,73373-RESIDENTIAL & NURSING CARE PLACEMENTS,OP PACKAGE/PLACEMENT COSTS,Third Party Payments,Revenue
Walsall Council,http://opendatacommunities.org/id/metropolitan-district-council/walsall,WC96-286,30/09/2018,Adult Social Care,ANSON COURT RESIDENTIAL HOME,04/09/2018,926.96,73373-RESIDENTIAL & NURSING CARE PLACEMENTS,OP PACKAGE/PLACEMENT COSTS,Third Party Payments,Revenue
Walsall Council,http://opendatacommunities.org/id/metropolitan-district-council/walsall,WC96-287,30/09/2018,Adult Social Care,ANSON COURT RESIDENTIAL HOME,04/09/2018,"2,301.24",73373-RESIDENTIAL & NURSING CARE PLACEMENTS,MENTAL HEALTH PACKAGE/PLACEMENT COSTS,Third Party Payments,Revenue
Walsall Council,http://opendatacommunities.org/id/metropolitan-district-council/walsall,WC96-288,30/09/2018,Childrens,REDACTED,24/09/2018,604.00,74510-RESIDENTS ORDERS,ADOPTION ALLOWANCES,Third Party Payments,Revenue
Walsall Council,http://opendatacommunities.org/id/metropolitan-district-council/walsall,WC96-289,30/09/2018,Childrens,REDACTED,24/09/2018,333.12,74509-SPECIAL GUARDIANSHIP ORDERS,ADOPTION ALLOWANCES,Transfer Payments,Revenue
Walsall Council,http://opendatacommunities.org/id/metropolitan-district-council/walsall,WC96-290,30/09/2018,Childrens,APP CARZ,10/09/2018,"6,005.00",52000-WITH DRIVER-HIRE OF VEHICLES,HOME TO SCHOOL TRANSPORT,Transport,Revenue
Walsall Council,http://opendatacommunities.org/id/metropolitan-district-council/walsall,WC96-291,30/09/2018,Childrens,APP CARZ,10/09/2018,"6,516.00",52000-WITH DRIVER-HIRE OF VEHICLES,HOME TO SCHOOL TRANSPORT,Transport,Revenue
Walsall Council,http://opendatacommunities.org/id/metropolitan-district-council/walsall,WC96-292,30/09/2018,Childrens,AQUAID (BIRMINGHAM CENTRAL),11/09/2018,230.00,61009-BEVERAGES-PROVISIONS,PELSALL EDC,Supplies & Services,Revenue
Walsall Council,http://opendatacommunities.org/id/metropolitan-district-council/walsall,WC96-293,30/09/2018,Economy & Environment,AQUALYMPIC,03/09/2018,987.50,34305-AGENCY STAFF-EMPLOYEES,OAK PARK,Employees,Revenue
Walsall Council,http://opendatacommunities.org/id/metropolitan-district-council/walsall,WC96-294,30/09/2018,Economy & Environment,AQUAMO LTD,04/09/2018,744.00,60006-NEW-FURNITURE & EQUIPMENT,DARLASTON LEISURE CENTRE,Supplies & Services,Revenue
Walsall Council,http://opendatacommunities.org/id/metropolitan-district-council/walsall,WC96-295,30/09/2018,Adult Social Care,ARBORETUM NURSING HOME.,10/09/2018,364.23,73373-RESIDENTIAL & NURSING CARE PLACEMENTS,OP PACKAGE/PLACEMENT COSTS,Third Party Payments,Revenue
Walsall Council,http://opendatacommunities.org/id/metropolitan-district-council/walsall,WC96-296,30/09/2018,Adult Social Care,ARBORETUM NURSING HOME.,10/09/2018,364.24,73373-RESIDENTIAL & NURSING CARE PLACEMENTS,PD PACKAGE/PLACEMENT COSTS,Third Party Payments,Revenue
Walsall Council,http://opendatacommunities.org/id/metropolitan-district-council/walsall,WC96-297,30/09/2018,Adult Social Care,ARBORETUM NURSING HOME.,10/09/2018,378.51,73373-RESIDENTIAL & NURSING CARE PLACEMENTS,OP PACKAGE/PLACEMENT COSTS,Third Party Payments,Revenue
Walsall Council,http://opendatacommunities.org/id/metropolitan-district-council/walsall,WC96-298,30/09/2018,Adult Social Care,ARBORETUM NURSING HOME.,10/09/2018,"3,779.44",73373-RESIDENTIAL & NURSING CARE PLACEMENTS,OP PACKAGE/PLACEMENT COSTS,Third Party Payments,Revenue
Walsall Council,http://opendatacommunities.org/id/metropolitan-district-council/walsall,WC96-299,30/09/2018,Adult Social Care,ARBORETUM NURSING HOME.,26/09/2018,"8,940.00",73025-PROFESSIONAL SERVICES-PRIV CONTRACTOR & OTHER AGENCIES,TRANSITIONAL CARE SUPPORT TEAM,Third Party Payments,Revenue
Walsall Council,http://opendatacommunities.org/id/metropolitan-district-council/walsall,WC96-300,30/09/2018,Adult Social Care,ARBORETUM NURSING HOME.,26/09/2018,"14,900.00",73019-PSE'S-PRIV CONTRACTOR FEES,INTEGRATED DISCHARGE TEAM,Third Party Payments,Revenue
Walsall Council,http://opendatacommunities.org/id/metropolitan-district-council/walsall,WC96-301,30/09/2018,Economy & Environment,ARCADIS,14/09/2018,"13,000.00",63000-PROFESSIONAL FEES AND SERVICES,UNCAPITALISED SPEND,Supplies & Services,Revenue
Walsall Council,http://opendatacommunities.org/id/metropolitan-district-council/walsall,WC96-302,30/09/2018,Childrens,ARCHWAY ACADEMY,01/09/2018,"5,453.80",66502-TOP UP FUNDING -GRANTS TO SCHOOLS,INDEPENDENT PROVIDERS - SPECIAL & AP,Third Party Payments,Revenue
Walsall Council,http://opendatacommunities.org/id/metropolitan-district-council/walsall,WC96-303,30/09/2018,Economy & Environment,ARCHWAY TCS LTD,06/09/2018,707.50,60537-VEHICLE WASH PLANT-MATERIALS,DEPOT,Supplies & Services,Revenue
Walsall Council,http://opendatacommunities.org/id/metropolitan-district-council/walsall,WC96-304,30/09/2018,Resources and Transformation,ARK CONSULTANCY LIMITED,11/09/2018,"5,000.00",01001-OTHER CONSULTANTS FEES,CFR 805 PLANNED PROPERTY MAINTENANCE,Capital,Capital
Walsall Council,http://opendatacommunities.org/id/metropolitan-district-council/walsall,WC96-305,30/09/2018,Childrens,ARTHUR M GRIFFITHS & SON LTD,19/09/2018,"52,501.17",01006-SITE WORKS MAIN CONTRACTORS,CFR 929 KING CHARLES PRIMARY SIGNIFICANT ENLARGEMENT,Capital,Capital
Walsall Council,http://opendatacommunities.org/id/metropolitan-district-council/walsall,WC96-306,30/09/2018,Childrens,ARTHUR M GRIFFITHS & SON LTD,19/09/2018,"55,577.88",01006-SITE WORKS MAIN CONTRACTORS,CFR 929 FIBBERSLEY PRIMARY SIGNIFICANT ENLARGEMENT,Capital,Capital
Walsall Council,http://opendatacommunities.org/id/metropolitan-district-council/walsall,WC96-307,30/09/2018,Adult Social Care,ASH GRANGE CARE HOME,10/09/2018,"1,447.58",73373-RESIDENTIAL & NURSING CARE PLACEMENTS,OP PACKAGE/PLACEMENT COSTS,Third Party Payments,Revenue
Walsall Council,http://opendatacommunities.org/id/metropolitan-district-council/walsall,WC96-308,30/09/2018,Adult Social Care,ASH GRANGE CARE HOME,10/09/2018,"1,447.58",73373-RESIDENTIAL & NURSING CARE PLACEMENTS,OP PACKAGE/PLACEMENT COSTS,Third Party Payments,Revenue
Walsall Council,http://opendatacommunities.org/id/metropolitan-district-council/walsall,WC96-309,30/09/2018,Adult Social Care,ASH GRANGE CARE HOME,10/09/2018,"1,748.29",73373-RESIDENTIAL & NURSING CARE PLACEMENTS,OP PACKAGE/PLACEMENT COSTS,Third Party Payments,Revenue
Walsall Council,http://opendatacommunities.org/id/metropolitan-district-council/walsall,WC96-310,30/09/2018,Adult Social Care,ASH GRANGE CARE HOME,10/09/2018,"1,748.29",73373-RESIDENTIAL & NURSING CARE PLACEMENTS,OP PACKAGE/PLACEMENT COSTS,Third Party Payments,Revenue
Walsall Council,http://opendatacommunities.org/id/metropolitan-district-council/walsall,WC96-311,30/09/2018,Adult Social Care,ASH GRANGE CARE HOME,10/09/2018,"1,748.29",73373-RESIDENTIAL & NURSING CARE PLACEMENTS,OP PACKAGE/PLACEMENT COSTS,Third Party Payments,Revenue
Walsall Council,http://opendatacommunities.org/id/metropolitan-district-council/walsall,WC96-312,30/09/2018,Adult Social Care,ASH GRANGE CARE HOME,04/09/2018,"1,748.30",73373-RESIDENTIAL & NURSING CARE PLACEMENTS,OP PACKAGE/PLACEMENT COSTS,Third Party Payments,Revenue
Walsall Council,http://opendatacommunities.org/id/metropolitan-district-council/walsall,WC96-313,30/09/2018,Adult Social Care,ASH GRANGE CARE HOME,10/09/2018,"1,748.30",73373-RESIDENTIAL & NURSING CARE PLACEMENTS,MENTAL HEALTH PACKAGE/PLACEMENT COSTS,Third Party Payments,Revenue
Walsall Council,http://opendatacommunities.org/id/metropolitan-district-council/walsall,WC96-314,30/09/2018,Adult Social Care,ASH GRANGE CARE HOME,10/09/2018,"1,748.30",73373-RESIDENTIAL & NURSING CARE PLACEMENTS,OP PACKAGE/PLACEMENT COSTS,Third Party Payments,Revenue
Walsall Council,http://opendatacommunities.org/id/metropolitan-district-council/walsall,WC96-315,30/09/2018,Adult Social Care,ASH GRANGE CARE HOME,10/09/2018,"1,748.30",73373-RESIDENTIAL & NURSING CARE PLACEMENTS,OP PACKAGE/PLACEMENT COSTS,Third Party Payments,Revenue
Walsall Council,http://opendatacommunities.org/id/metropolitan-district-council/walsall,WC96-316,30/09/2018,Adult Social Care,ASH GRANGE CARE HOME,10/09/2018,"1,748.30",73373-RESIDENTIAL & NURSING CARE PLACEMENTS,OP PACKAGE/PLACEMENT COSTS,Third Party Payments,Revenue
Walsall Council,http://opendatacommunities.org/id/metropolitan-district-council/walsall,WC96-317,30/09/2018,Adult Social Care,ASH GRANGE CARE HOME,10/09/2018,"1,748.30",73373-RESIDENTIAL & NURSING CARE PLACEMENTS,OP PACKAGE/PLACEMENT COSTS,Third Party Payments,Revenue
Walsall Council,http://opendatacommunities.org/id/metropolitan-district-council/walsall,WC96-318,30/09/2018,Adult Social Care,ASH GRANGE CARE HOME,10/09/2018,"1,748.30",73373-RESIDENTIAL & NURSING CARE PLACEMENTS,OP PACKAGE/PLACEMENT COSTS,Third Party Payments,Revenue
Walsall Council,http://opendatacommunities.org/id/metropolitan-district-council/walsall,WC96-319,30/09/2018,Adult Social Care,ASH GRANGE CARE HOME,10/09/2018,"1,748.30",73373-RESIDENTIAL & NURSING CARE PLACEMENTS,OP PACKAGE/PLACEMENT COSTS,Third Party Payments,Revenue
Walsall Council,http://opendatacommunities.org/id/metropolitan-district-council/walsall,WC96-320,30/09/2018,Adult Social Care,ASH GRANGE CARE HOME,10/09/2018,"1,923.12",73373-RESIDENTIAL & NURSING CARE PLACEMENTS,OP PACKAGE/PLACEMENT COSTS,Third Party Payments,Revenue
Walsall Council,http://opendatacommunities.org/id/metropolitan-district-council/walsall,WC96-321,30/09/2018,Adult Social Care,ASH GRANGE CARE HOME,10/09/2018,"1,923.12",73373-RESIDENTIAL & NURSING CARE PLACEMENTS,OP PACKAGE/PLACEMENT COSTS,Third Party Payments,Revenue
Walsall Council,http://opendatacommunities.org/id/metropolitan-district-council/walsall,WC96-322,30/09/2018,Adult Social Care,ASH GRANGE CARE HOME,10/09/2018,"1,988.30",73373-RESIDENTIAL & NURSING CARE PLACEMENTS,OP PACKAGE/PLACEMENT COSTS,Third Party Payments,Revenue
Walsall Council,http://opendatacommunities.org/id/metropolitan-district-council/walsall,WC96-323,30/09/2018,Adult Social Care,ASH GRANGE CARE HOME,04/09/2018,"2,039.68",73373-RESIDENTIAL & NURSING CARE PLACEMENTS,OP PACKAGE/PLACEMENT COSTS,Third Party Payments,Revenue
Walsall Council,http://opendatacommunities.org/id/metropolitan-district-council/walsall,WC96-324,30/09/2018,Adult Social Care,ASH GRANGE CARE HOME,04/09/2018,"2,039.68",73373-RESIDENTIAL & NURSING CARE PLACEMENTS,OP PACKAGE/PLACEMENT COSTS,Third Party Payments,Revenue
Walsall Council,http://opendatacommunities.org/id/metropolitan-district-council/walsall,WC96-325,30/09/2018,Adult Social Care,ASH GRANGE CARE HOME,04/09/2018,"2,039.68",73373-RESIDENTIAL & NURSING CARE PLACEMENTS,OP PACKAGE/PLACEMENT COSTS,Third Party Payments,Revenue
Walsall Council,http://opendatacommunities.org/id/metropolitan-district-council/walsall,WC96-326,30/09/2018,Adult Social Care,ASH GRANGE CARE HOME,10/09/2018,"2,139.19",73373-RESIDENTIAL & NURSING CARE PLACEMENTS,PD PACKAGE/PLACEMENT COSTS,Third Party Payments,Revenue
Walsall Council,http://opendatacommunities.org/id/metropolitan-district-council/walsall,WC96-327,30/09/2018,Adult Social Care,ASH GRANGE CARE HOME,10/09/2018,"2,745.71",73373-RESIDENTIAL & NURSING CARE PLACEMENTS,OP PACKAGE/PLACEMENT COSTS,Third Party Payments,Revenue
Walsall Council,http://opendatacommunities.org/id/metropolitan-district-council/walsall,WC96-328,30/09/2018,Economy & Environment,ASHDOWN SUPPLIES,12/09/2018,270.72,60500-GENERAL MATERIALS,STREETLY CREMATORIUM,Supplies & Services,Revenue
Walsall Council,http://opendatacommunities.org/id/metropolitan-district-council/walsall,WC96-329,30/09/2018,Adult Social Care,REDACTED,12/09/2018,527.50,73506-DIRECT PAYMENT,LEARNING DISABILITY SUPPORT,Third Party Payments,Revenue
Walsall Council,http://opendatacommunities.org/id/metropolitan-district-council/walsall,WC96-330,30/09/2018,Adult Social Care,REDACTED,12/09/2018,"1,365.00",73506-DIRECT PAYMENT,LEARNING DISABILITY SUPPORT,Third Party Payments,Revenue
Walsall Council,http://opendatacommunities.org/id/metropolitan-district-council/walsall,WC96-331,30/09/2018,Adult Social Care,REDACTED,12/09/2018,"1,071.00",73506-DIRECT PAYMENT,PHYSICAL SUPPORT,Third Party Payments,Revenue
Walsall Council,http://opendatacommunities.org/id/metropolitan-district-council/walsall,WC96-332,30/09/2018,Childrens,ASPIRE RESIDENTIAL CARE HOME,07/09/2018,"29,339.28",74036-EXTERNAL RESIDENTIAL CARE-OTH AGENCY PROVISION,INDEPENDENT RESIDENTIAL HOMES,Third Party Payments,Revenue
Walsall Council,http://opendatacommunities.org/id/metropolitan-district-council/walsall,WC96-333,30/09/2018,Economy & Environment,ATHWAL NEWS LTD,07/09/2018,283.32,60501-LIBRARY BOOKS,LIBRARY OPERATIONS CENTRAL,Supplies & Services,Revenue
Walsall Council,http://opendatacommunities.org/id/metropolitan-district-council/walsall,WC96-334,30/09/2018,Economy & Environment,ATHWAL NEWS LTD,20/09/2018,284.79,60501-LIBRARY BOOKS,LIBRARY OPERATIONS CENTRAL,Supplies & Services,Revenue
Walsall Council,http://opendatacommunities.org/id/metropolitan-district-council/walsall,WC96-335,30/09/2018,Economy & Environment,ATHWAL NEWS LTD,13/09/2018,357.82,60501-LIBRARY BOOKS,LIBRARY OPERATIONS CENTRAL,Supplies & Services,Revenue
Walsall Council,http://opendatacommunities.org/id/metropolitan-district-council/walsall,WC96-336,30/09/2018,Economy & Environment,ATHWAL NEWS LTD,20/09/2018,357.82,60501-LIBRARY BOOKS,LIBRARY OPERATIONS CENTRAL,Supplies & Services,Revenue
Walsall Council,http://opendatacommunities.org/id/metropolitan-district-council/walsall,WC96-337,30/09/2018,Adult Social Care,AUTISM WEST MIDLANDS,04/09/2018,"7,862.35",73373-RESIDENTIAL & NURSING CARE PLACEMENTS,LD PACKAGE/PLACEMENT COSTS,Third Party Payments,Revenue
Walsall Council,http://opendatacommunities.org/id/metropolitan-district-council/walsall,WC96-338,30/09/2018,Adult Social Care,AUTISM WEST MIDLANDS 001,04/09/2018,"5,255.57",73373-RESIDENTIAL & NURSING CARE PLACEMENTS,LD PACKAGE/PLACEMENT COSTS,Third Party Payments,Revenue
Walsall Council,http://opendatacommunities.org/id/metropolitan-district-council/walsall,WC96-339,30/09/2018,Economy & Environment,AUTO EXTRACT SYSTEMS LTD,13/09/2018,580.00,73025-PROFESSIONAL SERVICES-PRIV CONTRACTOR & OTHER AGENCIES,DEPOT,Third Party Payments,Revenue
Walsall Council,http://opendatacommunities.org/id/metropolitan-district-council/walsall,WC96-340,30/09/2018,Economy & Environment,AVADO LEARNING LIMITED,05/09/2018,"1,125.00",63000-PROFESSIONAL FEES AND SERVICES,YEI (IMPACT) PROGRAMME,Supplies & Services,Revenue
Walsall Council,http://opendatacommunities.org/id/metropolitan-district-council/walsall,WC96-341,30/09/2018,Economy & Environment,AVADO LEARNING LIMITED,05/09/2018,"1,125.00",63000-PROFESSIONAL FEES AND SERVICES,YEI ESF FUNDING,Supplies & Services,Revenue
Walsall Council,http://opendatacommunities.org/id/metropolitan-district-council/walsall,WC96-342,30/09/2018,Adult Social Care,REDACTED,12/09/2018,734.76,73506-DIRECT PAYMENT,SUPPORT WITH MEMORY & COGNITION,Third Party Payments,Revenue
Walsall Council,http://opendatacommunities.org/id/metropolitan-district-council/walsall,WC96-343,30/09/2018,Adult Social Care,REDACTED,03/09/2018,989.04,73506-DIRECT PAYMENT,SUPPORT WITH MEMORY & COGNITION,Third Party Payments,Revenue
Walsall Council,http://opendatacommunities.org/id/metropolitan-district-council/walsall,WC96-344,30/09/2018,Economy & Environment,AXIELL LIMITED,11/09/2018,240.69,63800-COMPUTER EQUIPMENT AND SUPPLIES,BLOXWICH LIBRARY,Supplies & Services,Revenue
Walsall Council,http://opendatacommunities.org/id/metropolitan-district-council/walsall,WC96-345,30/09/2018,Economy & Environment,AXIELL LIMITED,05/09/2018,282.58,63800-COMPUTER EQUIPMENT AND SUPPLIES,BLOXWICH LIBRARY,Supplies & Services,Revenue
Walsall Council,http://opendatacommunities.org/id/metropolitan-district-council/walsall,WC96-346,30/09/2018,Economy & Environment,AXIELL LIMITED,05/09/2018,307.43,63800-COMPUTER EQUIPMENT AND SUPPLIES,BLOXWICH LIBRARY,Supplies & Services,Revenue
Walsall Council,http://opendatacommunities.org/id/metropolitan-district-council/walsall,WC96-347,30/09/2018,Economy & Environment,AXIELL LIMITED,05/09/2018,347.19,63800-COMPUTER EQUIPMENT AND SUPPLIES,BLOXWICH LIBRARY,Supplies & Services,Revenue
Walsall Council,http://opendatacommunities.org/id/metropolitan-district-council/walsall,WC96-348,30/09/2018,Economy & Environment,AXIELL LIMITED,05/09/2018,400.00,63800-COMPUTER EQUIPMENT AND SUPPLIES,BLOXWICH LIBRARY,Supplies & Services,Revenue
Walsall Council,http://opendatacommunities.org/id/metropolitan-district-council/walsall,WC96-349,30/09/2018,Economy & Environment,AXIELL LIMITED,05/09/2018,"17,387.73",63800-COMPUTER EQUIPMENT AND SUPPLIES,BLOXWICH LIBRARY,Supplies & Services,Revenue
Walsall Council,http://opendatacommunities.org/id/metropolitan-district-council/walsall,WC96-350,30/09/2018,Childrens,REDACTED,12/09/2018,"1,834.30",73506-DIRECT PAYMENT,FAMILY SUPPORT - DIRECT PAYMENTS,Third Party Payments,Revenue
Walsall Council,http://opendatacommunities.org/id/metropolitan-district-council/walsall,WC96-351,30/09/2018,Adult Social Care,REDACTED,12/09/2018,"3,978.00",73506-DIRECT PAYMENT,LEARNING DISABILITY SUPPORT,Third Party Payments,Revenue
Walsall Council,http://opendatacommunities.org/id/metropolitan-district-council/walsall,WC96-352,30/09/2018,Childrens,REDACTED,12/09/2018,464.00,76000-TRANSFER PAYMENTS - SOCIAL SERVICES CLIENTS,TRANSITION AND LEAVING CARE PLACEMENTS,Transfer Payments,Revenue
Walsall Council,http://opendatacommunities.org/id/metropolitan-district-council/walsall,WC96-353,30/09/2018,Childrens,REDACTED,12/09/2018,464.00,76000-TRANSFER PAYMENTS - SOCIAL SERVICES CLIENTS,TRANSITION AND LEAVING CARE PLACEMENTS,Transfer Payments,Revenue
Walsall Council,http://opendatacommunities.org/id/metropolitan-district-council/walsall,WC96-354,30/09/2018,Childrens,REDACTED,26/09/2018,464.00,76000-TRANSFER PAYMENTS - SOCIAL SERVICES CLIENTS,TRANSITION AND LEAVING CARE PLACEMENTS,Transfer Payments,Revenue
Walsall Council,http://opendatacommunities.org/id/metropolitan-district-council/walsall,WC96-355,30/09/2018,Childrens,REDACTED,26/09/2018,464.00,76000-TRANSFER PAYMENTS - SOCIAL SERVICES CLIENTS,TRANSITION AND LEAVING CARE PLACEMENTS,Transfer Payments,Revenue
Walsall Council,http://opendatacommunities.org/id/metropolitan-district-council/walsall,WC96-356,30/09/2018,Economy & Environment,BAKER HALL PARTNERSHIP,13/09/2018,752.25,63000-PROFESSIONAL FEES AND SERVICES,BUILDING CONTROL REVENUE FUNDED,Supplies & Services,Revenue
Walsall Council,http://opendatacommunities.org/id/metropolitan-district-council/walsall,WC96-357,30/09/2018,Adult Social Care,REDACTED,12/09/2018,"4,161.00",73506-DIRECT PAYMENT,LEARNING DISABILITY SUPPORT,Third Party Payments,Revenue
Walsall Council,http://opendatacommunities.org/id/metropolitan-district-council/walsall,WC96-358,30/09/2018,Adult Social Care,REDACTED,12/09/2018,"1,978.60",73506-DIRECT PAYMENT,PHYSICAL SUPPORT,Third Party Payments,Revenue
Walsall Council,http://opendatacommunities.org/id/metropolitan-district-council/walsall,WC96-359,30/09/2018,Childrens,REDACTED,24/09/2018,240.00,60006-NEW-FURNITURE & EQUIPMENT,FAMILY & FRIENDS FOSTER CARE PROVISION,Supplies & Services,Revenue
Walsall Council,http://opendatacommunities.org/id/metropolitan-district-council/walsall,WC96-360,30/09/2018,Childrens,REDACTED,24/09/2018,340.00,74508-INTERNAL FOSTER CARERS-CARER FEES,FAMILY & FRIENDS FOSTER CARE PROVISION,Transfer Payments,Revenue
Walsall Council,http://opendatacommunities.org/id/metropolitan-district-council/walsall,WC96-361,30/09/2018,Childrens,REDACTED,24/09/2018,540.00,74501-MAINTENANCE ALLOWANCE-FOSTER CARERS,FAMILY & FRIENDS FOSTER CARE PROVISION,Transfer Payments,Revenue
Walsall Council,http://opendatacommunities.org/id/metropolitan-district-council/walsall,WC96-362,30/09/2018,Adult Social Care,REDACTED,12/09/2018,"1,018.65",73506-DIRECT PAYMENT,SUPPORT WITH MEMORY & COGNITION,Third Party Payments,Revenue
Walsall Council,http://opendatacommunities.org/id/metropolitan-district-council/walsall,WC96-363,30/09/2018,Childrens,BARNARDOS SERVICES LTD,07/09/2018,"3,116.40",74037-INDEPENDENT FOSTER CARE-OTH AGENCY PROVISION,EXTERNAL FOSTER CARE PROVISION,Third Party Payments,Revenue
Walsall Council,http://opendatacommunities.org/id/metropolitan-district-council/walsall,WC96-364,30/09/2018,Childrens,BARR BEACON SCHOOL TRUST,14/09/2018,"1,375.00",77300-ISB-FORMULA ALLOCATION,BARR BEACON SCHOOL TRUST (ACADEMY),Transfer Payments,Revenue
Walsall Council,http://opendatacommunities.org/id/metropolitan-district-council/walsall,WC96-365,30/09/2018,Childrens,BARR BEACON SCHOOL TRUST,04/09/2018,"19,355.16",66502-TOP UP FUNDING -GRANTS TO SCHOOLS,BARR BEACON SCHOOL TRUST (ACADEMY),Third Party Payments,Revenue
Walsall Council,http://opendatacommunities.org/id/metropolitan-district-council/walsall,WC96-366,30/09/2018,Adult Social Care,BARTHOLAMEW LODGE CARE HOME,04/09/2018,"1,815.07",73373-RESIDENTIAL & NURSING CARE PLACEMENTS,OP PACKAGE/PLACEMENT COSTS,Third Party Payments,Revenue
Walsall Council,http://opendatacommunities.org/id/metropolitan-district-council/walsall,WC96-367,30/09/2018,Childrens,BASE 25,26/09/2018,650.00,63000-PROFESSIONAL FEES AND SERVICES,VIRTUAL SCHOOL CENTRAL PUPIL PREMIUM,Supplies & Services,Revenue
Walsall Council,http://opendatacommunities.org/id/metropolitan-district-council/walsall,WC96-368,30/09/2018,Childrens,BASE 25,07/09/2018,"1,440.00",63000-PROFESSIONAL FEES AND SERVICES,VIRTUAL SCHOOL CENTRAL PUPIL PREMIUM,Supplies & Services,Revenue
Walsall Council,http://opendatacommunities.org/id/metropolitan-district-council/walsall,WC96-369,30/09/2018,Adult Social Care,REDACTED,12/09/2018,613.00,73506-DIRECT PAYMENT,PHYSICAL SUPPORT,Third Party Payments,Revenue
Walsall Council,http://opendatacommunities.org/id/metropolitan-district-council/walsall,WC96-370,30/09/2018,Economy & Environment,BAT FABRICATIONS LTD,14/09/2018,750.00,"40000-REPAIRS,ALTERATIONS & MAINTENANCE-PREM",GREEN SPACE MANAGEMENT,Premises,Revenue
Walsall Council,http://opendatacommunities.org/id/metropolitan-district-council/walsall,WC96-371,30/09/2018,Resources and Transformation,BAT FABRICATIONS LTD,26/09/2018,750.00,"40000-REPAIRS,ALTERATIONS & MAINTENANCE-PREM",AREA PARTNERSHIPS,Premises,Revenue
Walsall Council,http://opendatacommunities.org/id/metropolitan-district-council/walsall,WC96-372,30/09/2018,Childrens,BAT FABRICATIONS LTD,01/09/2018,"2,325.00",01006-SITE WORKS MAIN CONTRACTORS,CFR 1297 OLD CHURCH PRIMARY SCHOOL EXPANSION,Capital,Capital
Walsall Council,http://opendatacommunities.org/id/metropolitan-district-council/walsall,WC96-373,30/09/2018,Childrens,REDACTED,07/09/2018,800.00,74508-INTERNAL FOSTER CARERS-CARER FEES,INTERNAL FOSTER CARE PROVISION,Transfer Payments,Revenue
Walsall Council,http://opendatacommunities.org/id/metropolitan-district-council/walsall,WC96-374,30/09/2018,Adult Social Care,REDACTED,12/09/2018,"1,060.88",73506-DIRECT PAYMENT,PHYSICAL SUPPORT,Third Party Payments,Revenue
Walsall Council,http://opendatacommunities.org/id/metropolitan-district-council/walsall,WC96-375,30/09/2018,Childrens,REDACTED,17/09/2018,"1,461.60",66505-OTHER-GRANTS TO OTHER ORGS,EARLY YEARS - 3 YR OLDS,Third Party Payments,Revenue
Walsall Council,http://opendatacommunities.org/id/metropolitan-district-council/walsall,WC96-376,30/09/2018,Childrens,REDACTED,17/09/2018,"2,640.96",66505-OTHER-GRANTS TO OTHER ORGS,EARLY YEARS - 2 YR OLDS,Third Party Payments,Revenue
Walsall Council,http://opendatacommunities.org/id/metropolitan-district-council/walsall,WC96-377,30/09/2018,Adult Social Care,REDACTED,12/09/2018,"3,212.05",73506-DIRECT PAYMENT,LEARNING DISABILITY SUPPORT,Third Party Payments,Revenue
Walsall Council,http://opendatacommunities.org/id/metropolitan-district-council/walsall,WC96-378,30/09/2018,Adult Social Care,BENTLEY COURT PRIORY,04/09/2018,"1,869.79",73373-RESIDENTIAL & NURSING CARE PLACEMENTS,OP PACKAGE/PLACEMENT COSTS,Third Party Payments,Revenue
Walsall Council,http://opendatacommunities.org/id/metropolitan-district-council/walsall,WC96-379,30/09/2018,Adult Social Care,BENTLEY COURT PRIORY,04/09/2018,"2,109.24",73373-RESIDENTIAL & NURSING CARE PLACEMENTS,OP PACKAGE/PLACEMENT COSTS,Third Party Payments,Revenue
Walsall Council,http://opendatacommunities.org/id/metropolitan-district-council/walsall,WC96-380,30/09/2018,Adult Social Care,BENTLEY COURT PRIORY,04/09/2018,"2,258.22",73373-RESIDENTIAL & NURSING CARE PLACEMENTS,OP PACKAGE/PLACEMENT COSTS,Third Party Payments,Revenue
Walsall Council,http://opendatacommunities.org/id/metropolitan-district-council/walsall,WC96-381,30/09/2018,Adult Social Care,BENTLEY COURT PRIORY,04/09/2018,"2,484.03",73373-RESIDENTIAL & NURSING CARE PLACEMENTS,OP PACKAGE/PLACEMENT COSTS,Third Party Payments,Revenue
Walsall Council,http://opendatacommunities.org/id/metropolitan-district-council/walsall,WC96-382,30/09/2018,Adult Social Care,BENTLEY COURT PRIORY,04/09/2018,"2,484.03",73373-RESIDENTIAL & NURSING CARE PLACEMENTS,OP PACKAGE/PLACEMENT COSTS,Third Party Payments,Revenue
Walsall Council,http://opendatacommunities.org/id/metropolitan-district-council/walsall,WC96-383,30/09/2018,Adult Social Care,BENTLEY COURT PRIORY,04/09/2018,"2,484.03",73373-RESIDENTIAL & NURSING CARE PLACEMENTS,OP PACKAGE/PLACEMENT COSTS,Third Party Payments,Revenue
Walsall Council,http://opendatacommunities.org/id/metropolitan-district-council/walsall,WC96-384,30/09/2018,Adult Social Care,BENTLEY COURT PRIORY,04/09/2018,"2,484.03",73373-RESIDENTIAL & NURSING CARE PLACEMENTS,OP PACKAGE/PLACEMENT COSTS,Third Party Payments,Revenue
Walsall Council,http://opendatacommunities.org/id/metropolitan-district-council/walsall,WC96-385,30/09/2018,Adult Social Care,BENTLEY COURT PRIORY,04/09/2018,"2,484.03",73373-RESIDENTIAL & NURSING CARE PLACEMENTS,MENTAL HEALTH PACKAGE/PLACEMENT COSTS,Third Party Payments,Revenue
Walsall Council,http://opendatacommunities.org/id/metropolitan-district-council/walsall,WC96-386,30/09/2018,Adult Social Care,BENTLEY COURT PRIORY,04/09/2018,"2,528.36",73373-RESIDENTIAL & NURSING CARE PLACEMENTS,OP PACKAGE/PLACEMENT COSTS,Third Party Payments,Revenue
Walsall Council,http://opendatacommunities.org/id/metropolitan-district-council/walsall,WC96-387,30/09/2018,Adult Social Care,BENTLEY COURT PRIORY,04/09/2018,"3,100.00",73373-RESIDENTIAL & NURSING CARE PLACEMENTS,OP PACKAGE/PLACEMENT COSTS,Third Party Payments,Revenue
Walsall Council,http://opendatacommunities.org/id/metropolitan-district-council/walsall,WC96-388,30/09/2018,Adult Social Care,BENTLEY COURT PRIORY,12/09/2018,"3,299.29",73019-PSE'S-PRIV CONTRACTOR FEES,TRANSITIONAL CARE SUPPORT TEAM,Third Party Payments,Revenue
Walsall Council,http://opendatacommunities.org/id/metropolitan-district-council/walsall,WC96-389,30/09/2018,Adult Social Care,BENTLEY COURT PRIORY,12/09/2018,"3,299.29",73019-PSE'S-PRIV CONTRACTOR FEES,TRANSITIONAL CARE SUPPORT TEAM,Third Party Payments,Revenue
Walsall Council,http://opendatacommunities.org/id/metropolitan-district-council/walsall,WC96-390,30/09/2018,Adult Social Care,BENTLEY COURT PRIORY,12/09/2018,"3,299.29",73019-PSE'S-PRIV CONTRACTOR FEES,TRANSITIONAL CARE SUPPORT TEAM,Third Party Payments,Revenue
Walsall Council,http://opendatacommunities.org/id/metropolitan-district-council/walsall,WC96-391,30/09/2018,Childrens,REDACTED,17/09/2018,880.32,66505-OTHER-GRANTS TO OTHER ORGS,EARLY YEARS - 2 YR OLDS,Third Party Payments,Revenue
Walsall Council,http://opendatacommunities.org/id/metropolitan-district-council/walsall,WC96-392,30/09/2018,Holding Accounts,BERRYMANS LACE MAWER LLP,26/09/2018,"1,000.50",67001-MISC INSURANCES - PAYMENT OF CLAIMS,PUBLIC LIABILITY,Supplies & Services,Revenue
Walsall Council,http://opendatacommunities.org/id/metropolitan-district-council/walsall,WC96-393,30/09/2018,Holding Accounts,BERRYMANS LACE MAWER LLP,26/09/2018,"8,406.50",67001-MISC INSURANCES - PAYMENT OF CLAIMS,PUBLIC LIABILITY,Supplies & Services,Revenue
Walsall Council,http://opendatacommunities.org/id/metropolitan-district-council/walsall,WC96-394,30/09/2018,Adult Social Care,REDACTED,12/09/2018,"1,353.10",73506-DIRECT PAYMENT,PHYSICAL SUPPORT,Third Party Payments,Revenue
Walsall Council,http://opendatacommunities.org/id/metropolitan-district-council/walsall,WC96-395,30/09/2018,Adult Social Care,REDACTED,12/09/2018,"2,179.00",73506-DIRECT PAYMENT,PHYSICAL SUPPORT,Third Party Payments,Revenue
Walsall Council,http://opendatacommunities.org/id/metropolitan-district-council/walsall,WC96-396,30/09/2018,Childrens,REDACTED,07/09/2018,"1,053.57",74508-INTERNAL FOSTER CARERS-CARER FEES,INTERNAL FOSTER CARE PROVISION,Transfer Payments,Revenue
Walsall Council,http://opendatacommunities.org/id/metropolitan-district-council/walsall,WC96-397,30/09/2018,Adult Social Care,BESCOT LODGE RESIDENTIAL CARE HOME,26/09/2018,"1,072.30",73373-RESIDENTIAL & NURSING CARE PLACEMENTS,OP PACKAGE/PLACEMENT COSTS,Third Party Payments,Revenue
Walsall Council,http://opendatacommunities.org/id/metropolitan-district-council/walsall,WC96-398,30/09/2018,Adult Social Care,BESCOT LODGE RESIDENTIAL CARE HOME,26/09/2018,"2,077.58",73373-RESIDENTIAL & NURSING CARE PLACEMENTS,OP PACKAGE/PLACEMENT COSTS,Third Party Payments,Revenue
Walsall Council,http://opendatacommunities.org/id/metropolitan-district-council/walsall,WC96-399,30/09/2018,Adult Social Care,BESCOT LODGE RESIDENTIAL CARE HOME,26/09/2018,"2,077.58",73373-RESIDENTIAL & NURSING CARE PLACEMENTS,OP PACKAGE/PLACEMENT COSTS,Third Party Payments,Revenue
Walsall Council,http://opendatacommunities.org/id/metropolitan-district-council/walsall,WC96-400,30/09/2018,Adult Social Care,BESCOT LODGE RESIDENTIAL CARE HOME,26/09/2018,"2,412.67",73373-RESIDENTIAL & NURSING CARE PLACEMENTS,OP PACKAGE/PLACEMENT COSTS,Third Party Payments,Revenue
Walsall Council,http://opendatacommunities.org/id/metropolitan-district-council/walsall,WC96-401,30/09/2018,Economy & Environment,BESCOT STADIUM SUNDAY MARKET LTD,19/09/2018,"2,600.00",73025-PROFESSIONAL SERVICES-PRIV CONTRACTOR & OTHER AGENCIES,WILLENHALL MARKET,Third Party Payments,Revenue
Walsall Council,http://opendatacommunities.org/id/metropolitan-district-council/walsall,WC96-402,30/09/2018,Adult Social Care,BESS CARE LIMITED,05/09/2018,688.45,73372-DOMICILIARY CARE,OP PACKAGE/PLACEMENT COSTS,Third Party Payments,Revenue
Walsall Council,http://opendatacommunities.org/id/metropolitan-district-council/walsall,WC96-403,30/09/2018,Childrens,BESTUITION,05/09/2018,"2,475.00",63000-PROFESSIONAL FEES AND SERVICES,VIRTUAL SCHOOL CENTRAL PUPIL PREMIUM,Supplies & Services,Revenue
Walsall Council,http://opendatacommunities.org/id/metropolitan-district-council/walsall,WC96-404,30/09/2018,Adult Social Care,BETHPHAGE.,12/09/2018,"5,744.04",73372-DOMICILIARY CARE,LD PACKAGE/PLACEMENT COSTS,Third Party Payments,Revenue
Walsall Council,http://opendatacommunities.org/id/metropolitan-district-council/walsall,WC96-405,30/09/2018,Adult Social Care,BETHPHAGE.,12/09/2018,"5,744.04",73372-DOMICILIARY CARE,LD PACKAGE/PLACEMENT COSTS,Third Party Payments,Revenue
Walsall Council,http://opendatacommunities.org/id/metropolitan-district-council/walsall,WC96-406,30/09/2018,Adult Social Care,BETHPHAGE.,12/09/2018,"7,180.05",73372-DOMICILIARY CARE,LD PACKAGE/PLACEMENT COSTS,Third Party Payments,Revenue
Walsall Council,http://opendatacommunities.org/id/metropolitan-district-council/walsall,WC96-407,30/09/2018,Adult Social Care,BETHPHAGE.,12/09/2018,"7,180.05",73372-DOMICILIARY CARE,LD PACKAGE/PLACEMENT COSTS,Third Party Payments,Revenue
Walsall Council,http://opendatacommunities.org/id/metropolitan-district-council/walsall,WC96-408,30/09/2018,Adult Social Care,REDACTED,12/09/2018,"1,186.90",73506-DIRECT PAYMENT,PHYSICAL SUPPORT,Third Party Payments,Revenue
Walsall Council,http://opendatacommunities.org/id/metropolitan-district-council/walsall,WC96-409,30/09/2018,Adult Social Care,REDACTED,12/09/2018,"3,459.80",73506-DIRECT PAYMENT,PHYSICAL SUPPORT,Third Party Payments,Revenue
Walsall Council,http://opendatacommunities.org/id/metropolitan-district-council/walsall,WC96-410,30/09/2018,Economy & Environment,BIFFA WASTE SERVICES LTD,19/09/2018,233.00,73029-HAZARDOUS WASTE REMOVAL/DISPOSAL-PRIV CONTRACTOR FEES,WASTE DISPOSAL - RESIDUAL,Third Party Payments,Revenue
Walsall Council,http://opendatacommunities.org/id/metropolitan-district-council/walsall,WC96-411,30/09/2018,Economy & Environment,BIFFA WASTE SERVICES LTD,19/09/2018,370.03,73039-LANDFILL TAX-PRIV CONTRACTOR FEES,WASTE DISPOSAL - RESIDUAL,Third Party Payments,Revenue
Walsall Council,http://opendatacommunities.org/id/metropolitan-district-council/walsall,WC96-412,30/09/2018,Childrens,REDACTED,12/09/2018,647.40,73506-DIRECT PAYMENT,FAMILY SUPPORT - DIRECT PAYMENTS,Third Party Payments,Revenue
Walsall Council,http://opendatacommunities.org/id/metropolitan-district-council/walsall,WC96-413,30/09/2018,Economy & Environment,BIOGAS TECHNOLOGY LIMITED,17/09/2018,347.00,60008-MAINTENANCE-FURNITURE & EQUIPMENT,POLLUTION DIVISION,Supplies & Services,Revenue
Walsall Council,http://opendatacommunities.org/id/metropolitan-district-council/walsall,WC96-414,30/09/2018,Economy & Environment,BIOGAS TECHNOLOGY LIMITED,21/09/2018,347.00,60008-MAINTENANCE-FURNITURE & EQUIPMENT,POLLUTION DIVISION,Supplies & Services,Revenue
Walsall Council,http://opendatacommunities.org/id/metropolitan-district-council/walsall,WC96-415,30/09/2018,Economy & Environment,BIOGAS TECHNOLOGY LIMITED,21/09/2018,694.00,60008-MAINTENANCE-FURNITURE & EQUIPMENT,POLLUTION DIVISION,Supplies & Services,Revenue
Walsall Council,http://opendatacommunities.org/id/metropolitan-district-council/walsall,WC96-416,30/09/2018,Childrens,BIRCHILLS C OF E COMMUNITY ACADEMY,04/09/2018,"18,110.79",66502-TOP UP FUNDING -GRANTS TO SCHOOLS,BIRCHILLS CE COMMUNITY ACADEMY,Third Party Payments,Revenue
Walsall Council,http://opendatacommunities.org/id/metropolitan-district-council/walsall,WC96-417,30/09/2018,Childrens,BIRCHILLS C OF E COMMUNITY ACADEMY,01/09/2018,"35,626.50",66505-OTHER-GRANTS TO OTHER ORGS,EARLY YEARS - 3 YR OLDS,Third Party Payments,Revenue
Walsall Council,http://opendatacommunities.org/id/metropolitan-district-council/walsall,WC96-418,30/09/2018,Economy & Environment,BIRMINGHAM AND BLACK COUNTRY BAT GROUP,25/09/2018,"1,800.00",73025-PROFESSIONAL SERVICES-PRIV CONTRACTOR & OTHER AGENCIES,BARR BEACON MANAGEMENT & EVENTS,Third Party Payments,Revenue
Walsall Council,http://opendatacommunities.org/id/metropolitan-district-council/walsall,WC96-419,30/09/2018,Childrens,BIRMINGHAM CITY COUNCIL,07/09/2018,"1,956.16",74037-INDEPENDENT FOSTER CARE-OTH AGENCY PROVISION,EXTERNAL FOSTER CARE PROVISION,Third Party Payments,Revenue
Walsall Council,http://opendatacommunities.org/id/metropolitan-district-council/walsall,WC96-420,30/09/2018,Childrens,BIRMINGHAM CITY COUNCIL,12/09/2018,"5,256.00",63000-PROFESSIONAL FEES AND SERVICES,VIRTUAL SCHOOL CENTRAL PUPIL PREMIUM,Supplies & Services,Revenue
Walsall Council,http://opendatacommunities.org/id/metropolitan-district-council/walsall,WC96-421,30/09/2018,Centrally Held,BIRMINGHAM CITY COUNCIL,26/09/2018,"8,304.00",64500-PUBLICATIONS/ORGANISATIONS-SUBSCRIPTIONS,CORPORATE EXPENSES,Supplies & Services,Revenue
Walsall Council,http://opendatacommunities.org/id/metropolitan-district-council/walsall,WC96-422,30/09/2018,Childrens,BLACK COUNTRY WOMENS AID,26/09/2018,"16,654.25",63000-PROFESSIONAL FEES AND SERVICES,TOXIC TRIO,Supplies & Services,Revenue
Walsall Council,http://opendatacommunities.org/id/metropolitan-district-council/walsall,WC96-423,30/09/2018,Childrens,BLOXWICH ACADEMY,25/09/2018,720.00,77300-ISB-FORMULA ALLOCATION,BLOXWICH ACADEMY,Transfer Payments,Revenue
Walsall Council,http://opendatacommunities.org/id/metropolitan-district-council/walsall,WC96-424,30/09/2018,Childrens,BLOXWICH ACADEMY,04/09/2018,"10,370.77",66502-TOP UP FUNDING -GRANTS TO SCHOOLS,BLOXWICH ACADEMY,Third Party Payments,Revenue
Walsall Council,http://opendatacommunities.org/id/metropolitan-district-council/walsall,WC96-425,30/09/2018,Childrens,BLOXWICH ACADEMY,04/09/2018,"11,287.52",66502-TOP UP FUNDING -GRANTS TO SCHOOLS,BLOXWICH ACADEMY,Third Party Payments,Revenue
Walsall Council,http://opendatacommunities.org/id/metropolitan-district-council/walsall,WC96-426,30/09/2018,Childrens,BLOXWICH ACADEMY,01/09/2018,"41,107.50",66505-OTHER-GRANTS TO OTHER ORGS,EARLY YEARS - 3 YR OLDS,Third Party Payments,Revenue
Walsall Council,http://opendatacommunities.org/id/metropolitan-district-council/walsall,WC96-427,30/09/2018,Resources and Transformation,BLOXWICH COMMUNITY PARTNERSHIP.,06/09/2018,464.58,61002-DRY FOODS-PROVISIONS,TOWN HALL RESTAURANT BISTRO,Supplies & Services,Revenue
Walsall Council,http://opendatacommunities.org/id/metropolitan-district-council/walsall,WC96-428,30/09/2018,Childrens,BLOXWICH COMMUNITY PARTNERSHIP.,01/09/2018,"6,957.30",60500-GENERAL MATERIALS,PUPIL REFERAL UNIT EXCLUSIONS,Supplies & Services,Revenue
Walsall Council,http://opendatacommunities.org/id/metropolitan-district-council/walsall,WC96-429,30/09/2018,Resources and Transformation,BLOXWICH COMMUNITY PARTNERSHIP.,12/09/2018,"7,000.00",66500-GRANTS TO OTHER ORGS,BLOXWICH COMMUNITY PARTNERSHIP,Third Party Payments,Revenue
Walsall Council,http://opendatacommunities.org/id/metropolitan-district-council/walsall,WC96-430,30/09/2018,Childrens,BLOXWICH COMMUNITY PARTNERSHIP.,01/09/2018,"9,915.06",60500-GENERAL MATERIALS,PUPIL REFERAL UNIT EXCLUSIONS,Supplies & Services,Revenue
Walsall Council,http://opendatacommunities.org/id/metropolitan-district-council/walsall,WC96-431,30/09/2018,Childrens,BLOXWICH COMMUNITY PARTNERSHIP.,01/09/2018,"10,344.90",60500-GENERAL MATERIALS,PUPIL REFERAL UNIT EXCLUSIONS,Supplies & Services,Revenue
Walsall Council,http://opendatacommunities.org/id/metropolitan-district-council/walsall,WC96-432,30/09/2018,Childrens,BLOXWICH COMMUNITY PARTNERSHIP.,01/09/2018,"10,473.75",60500-GENERAL MATERIALS,PUPIL REFERAL UNIT EXCLUSIONS,Supplies & Services,Revenue
Walsall Council,http://opendatacommunities.org/id/metropolitan-district-council/walsall,WC96-433,30/09/2018,Childrens,BLOXWICH COMMUNITY PARTNERSHIP.,01/09/2018,"14,087.02",60500-GENERAL MATERIALS,PUPIL REFERAL UNIT EXCLUSIONS,Supplies & Services,Revenue
Walsall Council,http://opendatacommunities.org/id/metropolitan-district-council/walsall,WC96-434,30/09/2018,Childrens,BLOXWICH COMMUNITY PARTNERSHIP.,01/09/2018,"15,012.34",60500-GENERAL MATERIALS,PUPIL REFERAL UNIT EXCLUSIONS,Supplies & Services,Revenue
Walsall Council,http://opendatacommunities.org/id/metropolitan-district-council/walsall,WC96-435,30/09/2018,Childrens,BLUE COAT CHURCH OF ENGLAND ACADEMY,04/09/2018,"19,596.28",66502-TOP UP FUNDING -GRANTS TO SCHOOLS,BLUE COAT CofE ACADEMY,Third Party Payments,Revenue
Walsall Council,http://opendatacommunities.org/id/metropolitan-district-council/walsall,WC96-436,30/09/2018,Childrens,BLUE GIRAFFE CHILDCARE,01/09/2018,"5,611.50",66505-OTHER-GRANTS TO OTHER ORGS,EARLY YEARS - 3 YR OLDS,Third Party Payments,Revenue
Walsall Council,http://opendatacommunities.org/id/metropolitan-district-council/walsall,WC96-437,30/09/2018,Childrens,BLUE GIRAFFE CHILDCARE,01/09/2018,"7,600.32",66505-OTHER-GRANTS TO OTHER ORGS,EARLY YEARS - 3 YR OLDS,Third Party Payments,Revenue
Walsall Council,http://opendatacommunities.org/id/metropolitan-district-council/walsall,WC96-438,30/09/2018,Childrens,BLUE GIRAFFE CHILDCARE,01/09/2018,"12,324.48",66505-OTHER-GRANTS TO OTHER ORGS,EARLY YEARS - 2 YR OLDS,Third Party Payments,Revenue
Walsall Council,http://opendatacommunities.org/id/metropolitan-district-council/walsall,WC96-439,30/09/2018,Childrens,REDACTED,12/09/2018,"1,137.00",73506-DIRECT PAYMENT,FAMILY SUPPORT - DIRECT PAYMENTS,Third Party Payments,Revenue
Walsall Council,http://opendatacommunities.org/id/metropolitan-district-council/walsall,WC96-440,30/09/2018,Economy & Environment,BOC LTD,11/09/2018,471.82,60500-GENERAL MATERIALS,FLEET,Supplies & Services,Revenue
Walsall Council,http://opendatacommunities.org/id/metropolitan-district-council/walsall,WC96-441,30/09/2018,Economy & Environment,BOOKS ASIA,10/09/2018,257.66,60501-LIBRARY BOOKS,LIBRARY STOCK AND PERFORMANCE,Supplies & Services,Revenue
Walsall Council,http://opendatacommunities.org/id/metropolitan-district-council/walsall,WC96-442,30/09/2018,Economy & Environment,BOOKS ASIA,20/09/2018,380.60,60501-LIBRARY BOOKS,LIBRARY STOCK AND PERFORMANCE,Supplies & Services,Revenue
Walsall Council,http://opendatacommunities.org/id/metropolitan-district-council/walsall,WC96-443,30/09/2018,Economy & Environment,BOOKS ASIA,10/09/2018,407.27,60501-LIBRARY BOOKS,LIBRARY STOCK AND PERFORMANCE,Supplies & Services,Revenue
Walsall Council,http://opendatacommunities.org/id/metropolitan-district-council/walsall,WC96-444,30/09/2018,Resources and Transformation,BORSHCH LTD,05/09/2018,270.83,60000-FURNITURE & EQUIPMENT,WALSALL CRISIS SUPPORT SCHEME,Supplies & Services,Revenue
Walsall Council,http://opendatacommunities.org/id/metropolitan-district-council/walsall,WC96-445,30/09/2018,Resources and Transformation,BORSHCH LTD,19/09/2018,283.33,60000-FURNITURE & EQUIPMENT,WALSALL CRISIS SUPPORT SCHEME,Supplies & Services,Revenue
Walsall Council,http://opendatacommunities.org/id/metropolitan-district-council/walsall,WC96-446,30/09/2018,Resources and Transformation,BORSHCH LTD,05/09/2018,287.50,60000-FURNITURE & EQUIPMENT,WALSALL CRISIS SUPPORT SCHEME,Supplies & Services,Revenue
Walsall Council,http://opendatacommunities.org/id/metropolitan-district-council/walsall,WC96-447,30/09/2018,Resources and Transformation,BORSHCH LTD,11/09/2018,287.50,60000-FURNITURE & EQUIPMENT,WALSALL CRISIS SUPPORT SCHEME,Supplies & Services,Revenue
Walsall Council,http://opendatacommunities.org/id/metropolitan-district-council/walsall,WC96-448,30/09/2018,Resources and Transformation,BORSHCH LTD,11/09/2018,287.50,60000-FURNITURE & EQUIPMENT,WALSALL CRISIS SUPPORT SCHEME,Supplies & Services,Revenue
Walsall Council,http://opendatacommunities.org/id/metropolitan-district-council/walsall,WC96-449,30/09/2018,Resources and Transformation,BORSHCH LTD,19/09/2018,287.50,60000-FURNITURE & EQUIPMENT,WALSALL CRISIS SUPPORT SCHEME,Supplies & Services,Revenue
Walsall Council,http://opendatacommunities.org/id/metropolitan-district-council/walsall,WC96-450,30/09/2018,Resources and Transformation,BORSHCH LTD,05/09/2018,291.66,60000-FURNITURE & EQUIPMENT,WALSALL CRISIS SUPPORT SCHEME,Supplies & Services,Revenue
Walsall Council,http://opendatacommunities.org/id/metropolitan-district-council/walsall,WC96-451,30/09/2018,Resources and Transformation,BORSHCH LTD,11/09/2018,291.66,60000-FURNITURE & EQUIPMENT,WALSALL CRISIS SUPPORT SCHEME,Supplies & Services,Revenue
Walsall Council,http://opendatacommunities.org/id/metropolitan-district-council/walsall,WC96-452,30/09/2018,Resources and Transformation,BORSHCH LTD,12/09/2018,291.66,60000-FURNITURE & EQUIPMENT,WALSALL CRISIS SUPPORT SCHEME,Supplies & Services,Revenue
Walsall Council,http://opendatacommunities.org/id/metropolitan-district-council/walsall,WC96-453,30/09/2018,Resources and Transformation,BORSHCH LTD,12/09/2018,291.66,60000-FURNITURE & EQUIPMENT,WALSALL CRISIS SUPPORT SCHEME,Supplies & Services,Revenue
Walsall Council,http://opendatacommunities.org/id/metropolitan-district-council/walsall,WC96-454,30/09/2018,Resources and Transformation,BORSHCH LTD,14/09/2018,291.66,60000-FURNITURE & EQUIPMENT,WALSALL CRISIS SUPPORT SCHEME,Supplies & Services,Revenue
Walsall Council,http://opendatacommunities.org/id/metropolitan-district-council/walsall,WC96-455,30/09/2018,Resources and Transformation,BORSHCH LTD,19/09/2018,291.66,60000-FURNITURE & EQUIPMENT,WALSALL CRISIS SUPPORT SCHEME,Supplies & Services,Revenue
Walsall Council,http://opendatacommunities.org/id/metropolitan-district-council/walsall,WC96-456,30/09/2018,Resources and Transformation,BORSHCH LTD,19/09/2018,337.50,60000-FURNITURE & EQUIPMENT,WALSALL CRISIS SUPPORT SCHEME,Supplies & Services,Revenue
Walsall Council,http://opendatacommunities.org/id/metropolitan-district-council/walsall,WC96-457,30/09/2018,Resources and Transformation,BORSHCH LTD,19/09/2018,341.67,60000-FURNITURE & EQUIPMENT,WALSALL CRISIS SUPPORT SCHEME,Supplies & Services,Revenue
Walsall Council,http://opendatacommunities.org/id/metropolitan-district-council/walsall,WC96-458,30/09/2018,Resources and Transformation,BORSHCH LTD,04/09/2018,345.83,60000-FURNITURE & EQUIPMENT,WALSALL CRISIS SUPPORT SCHEME,Supplies & Services,Revenue
Walsall Council,http://opendatacommunities.org/id/metropolitan-district-council/walsall,WC96-459,30/09/2018,Resources and Transformation,BORSHCH LTD,04/09/2018,379.16,60000-FURNITURE & EQUIPMENT,WALSALL CRISIS SUPPORT SCHEME,Supplies & Services,Revenue
Walsall Council,http://opendatacommunities.org/id/metropolitan-district-council/walsall,WC96-460,30/09/2018,Resources and Transformation,BORSHCH LTD,11/09/2018,379.16,60000-FURNITURE & EQUIPMENT,WALSALL CRISIS SUPPORT SCHEME,Supplies & Services,Revenue
Walsall Council,http://opendatacommunities.org/id/metropolitan-district-council/walsall,WC96-461,30/09/2018,Resources and Transformation,BORSHCH LTD,10/09/2018,416.67,60000-FURNITURE & EQUIPMENT,WALSALL CRISIS SUPPORT SCHEME,Supplies & Services,Revenue
Walsall Council,http://opendatacommunities.org/id/metropolitan-district-council/walsall,WC96-462,30/09/2018,Resources and Transformation,BORSHCH LTD,24/09/2018,425.00,60000-FURNITURE & EQUIPMENT,WALSALL CRISIS SUPPORT SCHEME,Supplies & Services,Revenue
Walsall Council,http://opendatacommunities.org/id/metropolitan-district-council/walsall,WC96-463,30/09/2018,Resources and Transformation,BORSHCH LTD,14/09/2018,429.17,60000-FURNITURE & EQUIPMENT,WALSALL CRISIS SUPPORT SCHEME,Supplies & Services,Revenue
Walsall Council,http://opendatacommunities.org/id/metropolitan-district-council/walsall,WC96-464,30/09/2018,Resources and Transformation,BORSHCH LTD,04/09/2018,433.33,60000-FURNITURE & EQUIPMENT,WALSALL CRISIS SUPPORT SCHEME,Supplies & Services,Revenue
Walsall Council,http://opendatacommunities.org/id/metropolitan-district-council/walsall,WC96-465,30/09/2018,Resources and Transformation,BORSHCH LTD,04/09/2018,433.33,60000-FURNITURE & EQUIPMENT,WALSALL CRISIS SUPPORT SCHEME,Supplies & Services,Revenue
Walsall Council,http://opendatacommunities.org/id/metropolitan-district-council/walsall,WC96-466,30/09/2018,Resources and Transformation,BORSHCH LTD,04/09/2018,433.33,60000-FURNITURE & EQUIPMENT,WALSALL CRISIS SUPPORT SCHEME,Supplies & Services,Revenue
Walsall Council,http://opendatacommunities.org/id/metropolitan-district-council/walsall,WC96-467,30/09/2018,Resources and Transformation,BORSHCH LTD,04/09/2018,433.33,60000-FURNITURE & EQUIPMENT,WALSALL CRISIS SUPPORT SCHEME,Supplies & Services,Revenue
Walsall Council,http://opendatacommunities.org/id/metropolitan-district-council/walsall,WC96-468,30/09/2018,Resources and Transformation,BORSHCH LTD,05/09/2018,433.33,60000-FURNITURE & EQUIPMENT,WALSALL CRISIS SUPPORT SCHEME,Supplies & Services,Revenue
Walsall Council,http://opendatacommunities.org/id/metropolitan-district-council/walsall,WC96-469,30/09/2018,Resources and Transformation,BORSHCH LTD,05/09/2018,433.33,60000-FURNITURE & EQUIPMENT,WALSALL CRISIS SUPPORT SCHEME,Supplies & Services,Revenue
Walsall Council,http://opendatacommunities.org/id/metropolitan-district-council/walsall,WC96-470,30/09/2018,Resources and Transformation,BORSHCH LTD,11/09/2018,433.33,60000-FURNITURE & EQUIPMENT,WALSALL CRISIS SUPPORT SCHEME,Supplies & Services,Revenue
Walsall Council,http://opendatacommunities.org/id/metropolitan-district-council/walsall,WC96-471,30/09/2018,Resources and Transformation,BORSHCH LTD,14/09/2018,433.33,60000-FURNITURE & EQUIPMENT,WALSALL CRISIS SUPPORT SCHEME,Supplies & Services,Revenue
Walsall Council,http://opendatacommunities.org/id/metropolitan-district-council/walsall,WC96-472,30/09/2018,Resources and Transformation,BORSHCH LTD,14/09/2018,433.33,60000-FURNITURE & EQUIPMENT,WALSALL CRISIS SUPPORT SCHEME,Supplies & Services,Revenue
Walsall Council,http://opendatacommunities.org/id/metropolitan-district-council/walsall,WC96-473,30/09/2018,Resources and Transformation,BORSHCH LTD,14/09/2018,433.33,60000-FURNITURE & EQUIPMENT,WALSALL CRISIS SUPPORT SCHEME,Supplies & Services,Revenue
Walsall Council,http://opendatacommunities.org/id/metropolitan-district-council/walsall,WC96-474,30/09/2018,Resources and Transformation,BORSHCH LTD,18/09/2018,433.33,60000-FURNITURE & EQUIPMENT,WALSALL CRISIS SUPPORT SCHEME,Supplies & Services,Revenue
Walsall Council,http://opendatacommunities.org/id/metropolitan-district-council/walsall,WC96-475,30/09/2018,Resources and Transformation,BORSHCH LTD,10/09/2018,470.83,60000-FURNITURE & EQUIPMENT,WALSALL CRISIS SUPPORT SCHEME,Supplies & Services,Revenue
Walsall Council,http://opendatacommunities.org/id/metropolitan-district-council/walsall,WC96-476,30/09/2018,Economy & Environment,BOULTONS NURSERIES,10/09/2018,417.35,60500-GENERAL MATERIALS,ARBORETUM,Supplies & Services,Revenue
Walsall Council,http://opendatacommunities.org/id/metropolitan-district-council/walsall,WC96-477,30/09/2018,Economy & Environment,BOWDON CONSULTING LIMITED,05/09/2018,"2,000.00",73025-PROFESSIONAL SERVICES-PRIV CONTRACTOR & OTHER AGENCIES,SECTION 38 OF HIGHWAYS ACT - SUPERVISION,Third Party Payments,Revenue
Walsall Council,http://opendatacommunities.org/id/metropolitan-district-council/walsall,WC96-478,30/09/2018,Economy & Environment,BRADVALE LTD T/A INSPIRE HEALTHCARE SERVICES,14/09/2018,612.25,60500-GENERAL MATERIALS,ARBORETUM VISITOR CENTRE,Supplies & Services,Revenue
Walsall Council,http://opendatacommunities.org/id/metropolitan-district-council/walsall,WC96-479,30/09/2018,Economy & Environment,BRADVALE LTD T/A INSPIRE HEALTHCARE SERVICES,18/09/2018,622.31,73025-PROFESSIONAL SERVICES-PRIV CONTRACTOR & OTHER AGENCIES,DEPOT,Third Party Payments,Revenue
Walsall Council,http://opendatacommunities.org/id/metropolitan-district-council/walsall,WC96-480,30/09/2018,Economy & Environment,BRAMBLE HUB LIMITED,05/09/2018,"2,222.22",01044-PURCHASE OF FURNITURE & EQUIPMENT,CFR 1155 LEISURE MANAGEMENT SYSTEM,Capital,Capital
Walsall Council,http://opendatacommunities.org/id/metropolitan-district-council/walsall,WC96-481,30/09/2018,Economy & Environment,BRELMAYNE LTD,12/09/2018,352.50,60007-REPAIR OF EQUIPMENT-EQUIPMENT,OAK PARK,Supplies & Services,Revenue
Walsall Council,http://opendatacommunities.org/id/metropolitan-district-council/walsall,WC96-482,30/09/2018,Resources and Transformation,BRELMAYNE LTD,05/09/2018,620.27,60007-REPAIR OF EQUIPMENT-EQUIPMENT,TOWN HALL RESTAURANT BISTRO,Supplies & Services,Revenue
Walsall Council,http://opendatacommunities.org/id/metropolitan-district-council/walsall,WC96-483,30/09/2018,Resources and Transformation,BRELMAYNE LTD,07/09/2018,650.00,01044-PURCHASE OF FURNITURE & EQUIPMENT,CFR 1190 SCHOOLS PROJECT,Capital,Capital
Walsall Council,http://opendatacommunities.org/id/metropolitan-district-council/walsall,WC96-484,30/09/2018,Resources and Transformation,BRELMAYNE LTD,07/09/2018,"2,199.85","40000-REPAIRS,ALTERATIONS & MAINTENANCE-PREM",CENTRALISED MAINTENANCE,Premises,Revenue
Walsall Council,http://opendatacommunities.org/id/metropolitan-district-council/walsall,WC96-485,30/09/2018,Resources and Transformation,BRELMAYNE LTD,03/09/2018,"3,648.00","40000-REPAIRS,ALTERATIONS & MAINTENANCE-PREM",CENTRALISED MAINTENANCE,Premises,Revenue
Walsall Council,http://opendatacommunities.org/id/metropolitan-district-council/walsall,WC96-486,30/09/2018,Resources and Transformation,BRELMAYNE LTD,07/09/2018,"10,819.00",01044-PURCHASE OF FURNITURE & EQUIPMENT,CFR 1190 SCHOOLS PROJECT,Capital,Capital
Walsall Council,http://opendatacommunities.org/id/metropolitan-district-council/walsall,WC96-487,30/09/2018,Childrens,BRELMAYNE LTD,07/09/2018,"15,300.00",01006-SITE WORKS MAIN CONTRACTORS,CFR 1193 FULLBROOK NURSERY - REPLACEMENT BOILER HOUSE PLANT,Capital,Capital
Walsall Council,http://opendatacommunities.org/id/metropolitan-district-council/walsall,WC96-488,30/09/2018,Childrens,BRELMAYNE LTD,03/09/2018,"17,888.00",01006-SITE WORKS MAIN CONTRACTORS,CFR 1299 VARIOUS KITCHEN VENTILATION UPGRADES,Capital,Capital
Walsall Council,http://opendatacommunities.org/id/metropolitan-district-council/walsall,WC96-489,30/09/2018,Adult Social Care,REDACTED,12/09/2018,550.00,73506-DIRECT PAYMENT,LEARNING DISABILITY SUPPORT,Third Party Payments,Revenue
Walsall Council,http://opendatacommunities.org/id/metropolitan-district-council/walsall,WC96-490,30/09/2018,Childrens,REDACTED,07/09/2018,720.00,74501-MAINTENANCE ALLOWANCE-FOSTER CARERS,INTERNAL FOSTER CARE PROVISION,Transfer Payments,Revenue
Walsall Council,http://opendatacommunities.org/id/metropolitan-district-council/walsall,WC96-491,30/09/2018,Childrens,REDACTED,07/09/2018,720.00,74501-MAINTENANCE ALLOWANCE-FOSTER CARERS,INTERNAL FOSTER CARE PROVISION,Transfer Payments,Revenue
Walsall Council,http://opendatacommunities.org/id/metropolitan-district-council/walsall,WC96-492,30/09/2018,Childrens,REDACTED,07/09/2018,"1,600.00",74508-INTERNAL FOSTER CARERS-CARER FEES,INTERNAL FOSTER CARE PROVISION,Transfer Payments,Revenue
Walsall Council,http://opendatacommunities.org/id/metropolitan-district-council/walsall,WC96-493,30/09/2018,Economy & Environment,BRENNTAG UK LIMITED,18/09/2018,394.39,60503-CHEMICALS & SCIENTIFIC MATS-MATERIALS,OAK PARK,Supplies & Services,Revenue
Walsall Council,http://opendatacommunities.org/id/metropolitan-district-council/walsall,WC96-494,30/09/2018,Economy & Environment,BRENNTAG UK LIMITED,01/09/2018,406.39,60503-CHEMICALS & SCIENTIFIC MATS-MATERIALS,OAK PARK,Supplies & Services,Revenue
Walsall Council,http://opendatacommunities.org/id/metropolitan-district-council/walsall,WC96-495,30/09/2018,Economy & Environment,BRENNTAG UK LIMITED,18/09/2018,406.39,60503-CHEMICALS & SCIENTIFIC MATS-MATERIALS,BLOXWICH LEISURE CENTRE,Supplies & Services,Revenue
Walsall Council,http://opendatacommunities.org/id/metropolitan-district-council/walsall,WC96-496,30/09/2018,Economy & Environment,BRENNTAG UK LIMITED,18/09/2018,447.04,60503-CHEMICALS & SCIENTIFIC MATS-MATERIALS,BLOXWICH LEISURE CENTRE,Supplies & Services,Revenue
Walsall Council,http://opendatacommunities.org/id/metropolitan-district-council/walsall,WC96-497,30/09/2018,Adult Social Care,REDACTED,03/09/2018,"1,337.64",73372-DOMICILIARY CARE,LD PACKAGE/PLACEMENT COSTS,Third Party Payments,Revenue
Walsall Council,http://opendatacommunities.org/id/metropolitan-district-council/walsall,WC96-498,30/09/2018,Adult Social Care,REDACTED,18/09/2018,"1,337.64",73372-DOMICILIARY CARE,LD PACKAGE/PLACEMENT COSTS,Third Party Payments,Revenue
Walsall Council,http://opendatacommunities.org/id/metropolitan-district-council/walsall,WC96-499,30/09/2018,Adult Social Care,REDACTED,03/09/2018,"1,597.60",73372-DOMICILIARY CARE,LD PACKAGE/PLACEMENT COSTS,Third Party Payments,Revenue
Walsall Council,http://opendatacommunities.org/id/metropolitan-district-council/walsall,WC96-500,30/09/2018,Adult Social Care,REDACTED,18/09/2018,"1,597.60",73372-DOMICILIARY CARE,LD PACKAGE/PLACEMENT COSTS,Third Party Payments,Revenue
Walsall Council,http://opendatacommunities.org/id/metropolitan-district-council/walsall,WC96-501,30/09/2018,Adult Social Care,REDACTED,12/09/2018,"1,785.00",73506-DIRECT PAYMENT,PHYSICAL SUPPORT,Third Party Payments,Revenue
Walsall Council,http://opendatacommunities.org/id/metropolitan-district-council/walsall,WC96-502,30/09/2018,Adult Social Care,REDACTED,12/09/2018,"1,045.50",73506-DIRECT PAYMENT,PHYSICAL SUPPORT,Third Party Payments,Revenue
Walsall Council,http://opendatacommunities.org/id/metropolitan-district-council/walsall,WC96-503,30/09/2018,Adult Social Care,BRIDGEWOOD HEALTH CARE LTD,04/09/2018,"5,382.30",73373-RESIDENTIAL & NURSING CARE PLACEMENTS,PD PACKAGE/PLACEMENT COSTS,Third Party Payments,Revenue
Walsall Council,http://opendatacommunities.org/id/metropolitan-district-council/walsall,WC96-504,30/09/2018,Resources and Transformation,BRITANNIA HOTELS LTD T/A BRITANNIA HOTEL WOLVERHAMPTON,04/09/2018,208.35,75501-BED & BREAKFAST PAYMENTS,BED & BREAKFAST PAYMENTS,Third Party Payments,Revenue
Walsall Council,http://opendatacommunities.org/id/metropolitan-district-council/walsall,WC96-505,30/09/2018,Resources and Transformation,BRITANNIA HOTELS LTD T/A BRITANNIA HOTEL WOLVERHAMPTON,04/09/2018,210.84,75501-BED & BREAKFAST PAYMENTS,BED & BREAKFAST PAYMENTS,Third Party Payments,Revenue
Walsall Council,http://opendatacommunities.org/id/metropolitan-district-council/walsall,WC96-506,30/09/2018,Resources and Transformation,BRITANNIA HOTELS LTD T/A BRITANNIA HOTEL WOLVERHAMPTON,13/09/2018,236.68,75501-BED & BREAKFAST PAYMENTS,BED & BREAKFAST PAYMENTS,Third Party Payments,Revenue
Walsall Council,http://opendatacommunities.org/id/metropolitan-district-council/walsall,WC96-507,30/09/2018,Resources and Transformation,BRITANNIA HOTELS LTD T/A BRITANNIA HOTEL WOLVERHAMPTON,01/09/2018,261.26,75501-BED & BREAKFAST PAYMENTS,BED & BREAKFAST PAYMENTS,Third Party Payments,Revenue
Walsall Council,http://opendatacommunities.org/id/metropolitan-district-council/walsall,WC96-508,30/09/2018,Resources and Transformation,BRITANNIA HOTELS LTD T/A BRITANNIA HOTEL WOLVERHAMPTON,01/09/2018,269.17,75501-BED & BREAKFAST PAYMENTS,BED & BREAKFAST PAYMENTS,Third Party Payments,Revenue
Walsall Council,http://opendatacommunities.org/id/metropolitan-district-council/walsall,WC96-509,30/09/2018,Childrens,BRITISH YOUTH COUNCIL,12/09/2018,600.00,63000-PROFESSIONAL FEES AND SERVICES,TARGETED YOUTH WORK,Supplies & Services,Revenue
Walsall Council,http://opendatacommunities.org/id/metropolitan-district-council/walsall,WC96-510,30/09/2018,Holding Accounts,BROWNE JACOBSON SOLICITORS,03/09/2018,894.50,67001-MISC INSURANCES - PAYMENT OF CLAIMS,PUBLIC LIABILITY,Supplies & Services,Revenue
Walsall Council,http://opendatacommunities.org/id/metropolitan-district-council/walsall,WC96-511,30/09/2018,Economy & Environment,BROWNHILLS ASPHALT & TARMAC LIMITED,26/09/2018,262.00,60500-GENERAL MATERIALS,INFRASTRUCTURE MAINTENANCE,Supplies & Services,Revenue
Walsall Council,http://opendatacommunities.org/id/metropolitan-district-council/walsall,WC96-512,30/09/2018,Economy & Environment,BROWNHILLS ASPHALT & TARMAC LIMITED,26/09/2018,"1,967.00",60006-NEW-FURNITURE & EQUIPMENT,INFRASTRUCTURE MAINTENANCE,Supplies & Services,Revenue
Walsall Council,http://opendatacommunities.org/id/metropolitan-district-council/walsall,WC96-513,30/09/2018,Childrens,BROWNHILLS ASPHALT & TARMAC LIMITED,05/09/2018,"21,169.00",01006-SITE WORKS MAIN CONTRACTORS,CFR 1137 ST GILES PRIMARY EXPANSION,Capital,Capital
Walsall Council,http://opendatacommunities.org/id/metropolitan-district-council/walsall,WC96-514,30/09/2018,Childrens,BROWNHILLS COMMUNITY ASSOCIATION,14/09/2018,"4,344.00",63120-CRECHE FACILITIES-SERVICES-FEES,FAMILY PLACEMENTS,Supplies & Services,Revenue
Walsall Council,http://opendatacommunities.org/id/metropolitan-district-council/walsall,WC96-515,30/09/2018,Childrens,BROWNHILLS COMMUNITY ASSOCIATION,01/09/2018,"6,577.20",66505-OTHER-GRANTS TO OTHER ORGS,EARLY YEARS - 3 YR OLDS,Third Party Payments,Revenue
Walsall Council,http://opendatacommunities.org/id/metropolitan-district-council/walsall,WC96-516,30/09/2018,Resources and Transformation,BROWNHILLS COMMUNITY ASSOCIATION,12/09/2018,"7,000.00",66500-GRANTS TO OTHER ORGS,BROWNHILLS COMMUNITY ASSOCIATION,Third Party Payments,Revenue
Walsall Council,http://opendatacommunities.org/id/metropolitan-district-council/walsall,WC96-517,30/09/2018,Childrens,BROWNHILLS COMMUNITY ASSOCIATION,01/09/2018,"8,098.94",66505-OTHER-GRANTS TO OTHER ORGS,EARLY YEARS - 2 YR OLDS,Third Party Payments,Revenue
Walsall Council,http://opendatacommunities.org/id/metropolitan-district-council/walsall,WC96-518,30/09/2018,Adult Social Care,REDACTED,12/09/2018,"2,142.00",73506-DIRECT PAYMENT,LEARNING DISABILITY SUPPORT,Third Party Payments,Revenue
Walsall Council,http://opendatacommunities.org/id/metropolitan-district-council/walsall,WC96-519,30/09/2018,Resources and Transformation,REDACTED,26/09/2018,300.00,"40000-REPAIRS,ALTERATIONS & MAINTENANCE-PREM",WALSALL TOWN HALL,Premises,Revenue
Walsall Council,http://opendatacommunities.org/id/metropolitan-district-council/walsall,WC96-520,30/09/2018,Resources and Transformation,REDACTED,20/09/2018,400.00,"40000-REPAIRS,ALTERATIONS & MAINTENANCE-PREM",WALSALL TOWN HALL,Premises,Revenue
Walsall Council,http://opendatacommunities.org/id/metropolitan-district-council/walsall,WC96-521,30/09/2018,Resources and Transformation,BT,10/09/2018,681.00,63603-COST OF CALLS-TELEPHONES,PROCESSING,Supplies & Services,Revenue
Walsall Council,http://opendatacommunities.org/id/metropolitan-district-council/walsall,WC96-522,30/09/2018,Resources and Transformation,BT,10/09/2018,"4,919.96",63601-COSTS (NOT INTERNAL RECHARGES)-TELEPHONES,CENTRAL COMMUNICATIONS RECHARGES,Supplies & Services,Revenue
Walsall Council,http://opendatacommunities.org/id/metropolitan-district-council/walsall,WC96-523,30/09/2018,Resources and Transformation,BT,10/09/2018,"14,842.07",63601-COSTS (NOT INTERNAL RECHARGES)-TELEPHONES,CENTRAL COMMUNICATIONS RECHARGES,Supplies & Services,Revenue
Walsall Council,http://opendatacommunities.org/id/metropolitan-district-council/walsall,WC96-524,30/09/2018,Resources and Transformation,BT PLC,10/09/2018,"1,668.35",63807-COMMS LINKS-COMPUTER,NETWORKS,Supplies & Services,Revenue
Walsall Council,http://opendatacommunities.org/id/metropolitan-district-council/walsall,WC96-525,30/09/2018,Economy & Environment,BUFFET EXPRESS LTD,26/09/2018,217.75,61009-BEVERAGES-PROVISIONS,FOREST ARTS CENTRE,Supplies & Services,Revenue
Walsall Council,http://opendatacommunities.org/id/metropolitan-district-council/walsall,WC96-526,30/09/2018,Adult Social Care,BUPA CARE HOMES (CFHCARE) LTD,10/09/2018,"2,530.91",73373-RESIDENTIAL & NURSING CARE PLACEMENTS,OP PACKAGE/PLACEMENT COSTS,Third Party Payments,Revenue
Walsall Council,http://opendatacommunities.org/id/metropolitan-district-council/walsall,WC96-527,30/09/2018,Adult Social Care,BUPA CARE HOMES (CFHCARE) LTD,10/09/2018,"2,655.20",73373-RESIDENTIAL & NURSING CARE PLACEMENTS,OP PACKAGE/PLACEMENT COSTS,Third Party Payments,Revenue
Walsall Council,http://opendatacommunities.org/id/metropolitan-district-council/walsall,WC96-528,30/09/2018,Childrens,BUSY BEES CHILDCARE LTD,01/09/2018,"2,192.40",66505-OTHER-GRANTS TO OTHER ORGS,EARLY YEARS - 3 YR OLDS,Third Party Payments,Revenue
Walsall Council,http://opendatacommunities.org/id/metropolitan-district-council/walsall,WC96-529,30/09/2018,Childrens,BUSY BEES CHILDCARE LTD,01/09/2018,"8,526.00",66505-OTHER-GRANTS TO OTHER ORGS,EARLY YEARS - 3 YR OLDS,Third Party Payments,Revenue
Walsall Council,http://opendatacommunities.org/id/metropolitan-district-council/walsall,WC96-530,30/09/2018,Childrens,BY THE BRIDGE,07/09/2018,"3,996.00",74037-INDEPENDENT FOSTER CARE-OTH AGENCY PROVISION,EXTERNAL FOSTER CARE PROVISION,Third Party Payments,Revenue
Walsall Council,http://opendatacommunities.org/id/metropolitan-district-council/walsall,WC96-531,30/09/2018,Childrens,BY THE BRIDGE,07/09/2018,"5,137.71",74037-INDEPENDENT FOSTER CARE-OTH AGENCY PROVISION,EXTERNAL FOSTER CARE PROVISION,Third Party Payments,Revenue
Walsall Council,http://opendatacommunities.org/id/metropolitan-district-council/walsall,WC96-532,30/09/2018,Adult Social Care,C & V ORCHARD MANOR LTD,04/09/2018,-0.01,73373-RESIDENTIAL & NURSING CARE PLACEMENTS,OP PACKAGE/PLACEMENT COSTS,Third Party Payments,Revenue
Walsall Council,http://opendatacommunities.org/id/metropolitan-district-council/walsall,WC96-533,30/09/2018,Adult Social Care,C & V ORCHARD MANOR LTD,04/09/2018,353.79,73373-RESIDENTIAL & NURSING CARE PLACEMENTS,OP PACKAGE/PLACEMENT COSTS,Third Party Payments,Revenue
Walsall Council,http://opendatacommunities.org/id/metropolitan-district-council/walsall,WC96-534,30/09/2018,Adult Social Care,C & V ORCHARD MANOR LTD,04/09/2018,404.40,73373-RESIDENTIAL & NURSING CARE PLACEMENTS,OP PACKAGE/PLACEMENT COSTS,Third Party Payments,Revenue
Walsall Council,http://opendatacommunities.org/id/metropolitan-district-council/walsall,WC96-535,30/09/2018,Adult Social Care,C & V ORCHARD MANOR LTD,04/09/2018,405.00,73373-RESIDENTIAL & NURSING CARE PLACEMENTS,MENTAL HEALTH PACKAGE/PLACEMENT COSTS,Third Party Payments,Revenue
Walsall Council,http://opendatacommunities.org/id/metropolitan-district-council/walsall,WC96-536,30/09/2018,Adult Social Care,C & V ORCHARD MANOR LTD,04/09/2018,"1,620.00",73373-RESIDENTIAL & NURSING CARE PLACEMENTS,MENTAL HEALTH PACKAGE/PLACEMENT COSTS,Third Party Payments,Revenue
Walsall Council,http://opendatacommunities.org/id/metropolitan-district-council/walsall,WC96-537,30/09/2018,Adult Social Care,C & V ORCHARD MANOR LTD,04/09/2018,"1,664.12",73373-RESIDENTIAL & NURSING CARE PLACEMENTS,OP PACKAGE/PLACEMENT COSTS,Third Party Payments,Revenue
Walsall Council,http://opendatacommunities.org/id/metropolitan-district-council/walsall,WC96-538,30/09/2018,Adult Social Care,C & V ORCHARD MANOR LTD,04/09/2018,"1,677.86",73373-RESIDENTIAL & NURSING CARE PLACEMENTS,OP PACKAGE/PLACEMENT COSTS,Third Party Payments,Revenue
Walsall Council,http://opendatacommunities.org/id/metropolitan-district-council/walsall,WC96-539,30/09/2018,Adult Social Care,C & V ORCHARD RESIDENTIAL LTD,04/09/2018,53.32,73373-RESIDENTIAL & NURSING CARE PLACEMENTS,OP PACKAGE/PLACEMENT COSTS,Third Party Payments,Revenue
Walsall Council,http://opendatacommunities.org/id/metropolitan-district-council/walsall,WC96-540,30/09/2018,Adult Social Care,C & V ORCHARD RESIDENTIAL LTD,04/09/2018,354.86,73373-RESIDENTIAL & NURSING CARE PLACEMENTS,OP PACKAGE/PLACEMENT COSTS,Third Party Payments,Revenue
Walsall Council,http://opendatacommunities.org/id/metropolitan-district-council/walsall,WC96-541,30/09/2018,Adult Social Care,C & V ORCHARD RESIDENTIAL LTD,04/09/2018,394.28,73373-RESIDENTIAL & NURSING CARE PLACEMENTS,OP PACKAGE/PLACEMENT COSTS,Third Party Payments,Revenue
Walsall Council,http://opendatacommunities.org/id/metropolitan-district-council/walsall,WC96-542,30/09/2018,Adult Social Care,C & V ORCHARD RESIDENTIAL LTD,04/09/2018,394.29,73373-RESIDENTIAL & NURSING CARE PLACEMENTS,MENTAL HEALTH PACKAGE/PLACEMENT COSTS,Third Party Payments,Revenue
Walsall Council,http://opendatacommunities.org/id/metropolitan-district-council/walsall,WC96-543,30/09/2018,Adult Social Care,C & V ORCHARD RESIDENTIAL LTD,04/09/2018,448.18,73373-RESIDENTIAL & NURSING CARE PLACEMENTS,OP PACKAGE/PLACEMENT COSTS,Third Party Payments,Revenue
Walsall Council,http://opendatacommunities.org/id/metropolitan-district-council/walsall,WC96-544,30/09/2018,Adult Social Care,C & V ORCHARD RESIDENTIAL LTD,04/09/2018,460.00,73373-RESIDENTIAL & NURSING CARE PLACEMENTS,OP PACKAGE/PLACEMENT COSTS,Third Party Payments,Revenue
Walsall Council,http://opendatacommunities.org/id/metropolitan-district-council/walsall,WC96-545,30/09/2018,Adult Social Care,C & V ORCHARD RESIDENTIAL LTD,04/09/2018,473.14,73373-RESIDENTIAL & NURSING CARE PLACEMENTS,OP PACKAGE/PLACEMENT COSTS,Third Party Payments,Revenue
Walsall Council,http://opendatacommunities.org/id/metropolitan-district-council/walsall,WC96-546,30/09/2018,Adult Social Care,C & V ORCHARD RESIDENTIAL LTD,04/09/2018,591.42,73373-RESIDENTIAL & NURSING CARE PLACEMENTS,OP PACKAGE/PLACEMENT COSTS,Third Party Payments,Revenue
Walsall Council,http://opendatacommunities.org/id/metropolitan-district-council/walsall,WC96-547,30/09/2018,Adult Social Care,C & V ORCHARD RESIDENTIAL LTD,04/09/2018,636.43,73373-RESIDENTIAL & NURSING CARE PLACEMENTS,OP PACKAGE/PLACEMENT COSTS,Third Party Payments,Revenue
Walsall Council,http://opendatacommunities.org/id/metropolitan-district-council/walsall,WC96-548,30/09/2018,Adult Social Care,C & V ORCHARD RESIDENTIAL LTD,10/09/2018,749.62,73373-RESIDENTIAL & NURSING CARE PLACEMENTS,OP PACKAGE/PLACEMENT COSTS,Third Party Payments,Revenue
Walsall Council,http://opendatacommunities.org/id/metropolitan-district-council/walsall,WC96-549,30/09/2018,Adult Social Care,C & V ORCHARD RESIDENTIAL LTD,04/09/2018,771.43,73373-RESIDENTIAL & NURSING CARE PLACEMENTS,OP PACKAGE/PLACEMENT COSTS,Third Party Payments,Revenue
Walsall Council,http://opendatacommunities.org/id/metropolitan-district-council/walsall,WC96-550,30/09/2018,Adult Social Care,C & V ORCHARD RESIDENTIAL LTD,04/09/2018,"1,005.43",73373-RESIDENTIAL & NURSING CARE PLACEMENTS,OP PACKAGE/PLACEMENT COSTS,Third Party Payments,Revenue
Walsall Council,http://opendatacommunities.org/id/metropolitan-district-council/walsall,WC96-551,30/09/2018,Adult Social Care,C & V ORCHARD RESIDENTIAL LTD,04/09/2018,"1,041.43",73373-RESIDENTIAL & NURSING CARE PLACEMENTS,OP PACKAGE/PLACEMENT COSTS,Third Party Payments,Revenue
Walsall Council,http://opendatacommunities.org/id/metropolitan-district-council/walsall,WC96-552,30/09/2018,Adult Social Care,C & V ORCHARD RESIDENTIAL LTD,04/09/2018,"1,642.86",73373-RESIDENTIAL & NURSING CARE PLACEMENTS,OP PACKAGE/PLACEMENT COSTS,Third Party Payments,Revenue
Walsall Council,http://opendatacommunities.org/id/metropolitan-district-council/walsall,WC96-553,30/09/2018,Adult Social Care,C & V ORCHARD RESIDENTIAL LTD,04/09/2018,"1,840.00",73373-RESIDENTIAL & NURSING CARE PLACEMENTS,OP PACKAGE/PLACEMENT COSTS,Third Party Payments,Revenue
Walsall Council,http://opendatacommunities.org/id/metropolitan-district-council/walsall,WC96-554,30/09/2018,Adult Social Care,C & V ORCHARD RESIDENTIAL LTD,04/09/2018,"1,840.00",73373-RESIDENTIAL & NURSING CARE PLACEMENTS,OP PACKAGE/PLACEMENT COSTS,Third Party Payments,Revenue
Walsall Council,http://opendatacommunities.org/id/metropolitan-district-council/walsall,WC96-555,30/09/2018,Adult Social Care,C & V ORCHARD RESIDENTIAL LTD,04/09/2018,"1,905.72",73373-RESIDENTIAL & NURSING CARE PLACEMENTS,OP PACKAGE/PLACEMENT COSTS,Third Party Payments,Revenue
Walsall Council,http://opendatacommunities.org/id/metropolitan-district-council/walsall,WC96-556,30/09/2018,Adult Social Care,C & V ORCHARD RESIDENTIAL LTD,04/09/2018,"2,010.86",73373-RESIDENTIAL & NURSING CARE PLACEMENTS,OP PACKAGE/PLACEMENT COSTS,Third Party Payments,Revenue
Walsall Council,http://opendatacommunities.org/id/metropolitan-district-council/walsall,WC96-557,30/09/2018,Adult Social Care,C & V ORCHARD RESIDENTIAL LTD,04/09/2018,"2,234.28",73373-RESIDENTIAL & NURSING CARE PLACEMENTS,OP PACKAGE/PLACEMENT COSTS,Third Party Payments,Revenue
Walsall Council,http://opendatacommunities.org/id/metropolitan-district-council/walsall,WC96-558,30/09/2018,Adult Social Care,C & V ORCHARD RESIDENTIAL LTD,04/09/2018,"3,607.72",73373-RESIDENTIAL & NURSING CARE PLACEMENTS,OP PACKAGE/PLACEMENT COSTS,Third Party Payments,Revenue
Walsall Council,http://opendatacommunities.org/id/metropolitan-district-council/walsall,WC96-559,30/09/2018,Adult Social Care,C & V ORCHARD RESIDENTIAL LTD,04/09/2018,"4,074.29",73373-RESIDENTIAL & NURSING CARE PLACEMENTS,OP PACKAGE/PLACEMENT COSTS,Third Party Payments,Revenue
Walsall Council,http://opendatacommunities.org/id/metropolitan-district-council/walsall,WC96-560,30/09/2018,Childrens,REDACTED,07/09/2018,150.00,74503-BIRTHDAY ALLOWANCE-FOSTER CARERS,INTERNAL FOSTER CARE PROVISION,Transfer Payments,Revenue
Walsall Council,http://opendatacommunities.org/id/metropolitan-district-council/walsall,WC96-561,30/09/2018,Childrens,REDACTED,07/09/2018,540.00,74501-MAINTENANCE ALLOWANCE-FOSTER CARERS,INTERNAL FOSTER CARE PROVISION,Transfer Payments,Revenue
Walsall Council,http://opendatacommunities.org/id/metropolitan-district-council/walsall,WC96-562,30/09/2018,Childrens,REDACTED,07/09/2018,720.00,74501-MAINTENANCE ALLOWANCE-FOSTER CARERS,INTERNAL FOSTER CARE PROVISION,Transfer Payments,Revenue
Walsall Council,http://opendatacommunities.org/id/metropolitan-district-council/walsall,WC96-563,30/09/2018,Childrens,REDACTED,07/09/2018,720.00,74501-MAINTENANCE ALLOWANCE-FOSTER CARERS,INTERNAL FOSTER CARE PROVISION,Transfer Payments,Revenue
Walsall Council,http://opendatacommunities.org/id/metropolitan-district-council/walsall,WC96-564,30/09/2018,Childrens,REDACTED,07/09/2018,860.00,74501-MAINTENANCE ALLOWANCE-FOSTER CARERS,INTERNAL FOSTER CARE PROVISION,Transfer Payments,Revenue
Walsall Council,http://opendatacommunities.org/id/metropolitan-district-council/walsall,WC96-565,30/09/2018,Childrens,REDACTED,07/09/2018,"2,700.00",74508-INTERNAL FOSTER CARERS-CARER FEES,INTERNAL FOSTER CARE PROVISION,Transfer Payments,Revenue
Walsall Council,http://opendatacommunities.org/id/metropolitan-district-council/walsall,WC96-566,30/09/2018,Childrens,REDACTED,07/09/2018,720.00,74501-MAINTENANCE ALLOWANCE-FOSTER CARERS,INTERNAL FOSTER CARE PROVISION,Transfer Payments,Revenue
Walsall Council,http://opendatacommunities.org/id/metropolitan-district-council/walsall,WC96-567,30/09/2018,Childrens,REDACTED,07/09/2018,860.00,74501-MAINTENANCE ALLOWANCE-FOSTER CARERS,INTERNAL FOSTER CARE PROVISION,Transfer Payments,Revenue
Walsall Council,http://opendatacommunities.org/id/metropolitan-district-council/walsall,WC96-568,30/09/2018,Childrens,REDACTED,07/09/2018,"1,600.00",74508-INTERNAL FOSTER CARERS-CARER FEES,INTERNAL FOSTER CARE PROVISION,Transfer Payments,Revenue
Walsall Council,http://opendatacommunities.org/id/metropolitan-district-council/walsall,WC96-569,30/09/2018,Childrens,C M H T SOLICITORS LLP,13/09/2018,301.05,73014-LEGAL FEES-PRIV CONTRACTOR FEES,GENERAL MANAGEMENT SUPPORT (INC LEGAL),Third Party Payments,Revenue
Walsall Council,http://opendatacommunities.org/id/metropolitan-district-council/walsall,WC96-570,30/09/2018,Childrens,C M H T SOLICITORS LLP,17/09/2018,"2,320.83",73014-LEGAL FEES-PRIV CONTRACTOR FEES,GENERAL MANAGEMENT SUPPORT (INC LEGAL),Third Party Payments,Revenue
Walsall Council,http://opendatacommunities.org/id/metropolitan-district-council/walsall,WC96-571,30/09/2018,Economy & Environment,C P DAVIDSON & SONS LTD,10/09/2018,245.32,60500-GENERAL MATERIALS,FLEET,Supplies & Services,Revenue
Walsall Council,http://opendatacommunities.org/id/metropolitan-district-council/walsall,WC96-572,30/09/2018,Economy & Environment,C P DAVIDSON & SONS LTD,26/09/2018,315.00,73025-PROFESSIONAL SERVICES-PRIV CONTRACTOR & OTHER AGENCIES,FLEET,Third Party Payments,Revenue
Walsall Council,http://opendatacommunities.org/id/metropolitan-district-council/walsall,WC96-573,30/09/2018,Economy & Environment,C P DAVIDSON & SONS LTD,25/09/2018,933.25,60500-GENERAL MATERIALS,FLEET,Supplies & Services,Revenue
Walsall Council,http://opendatacommunities.org/id/metropolitan-district-council/walsall,WC96-574,30/09/2018,Economy & Environment,C P DAVIDSON & SONS LTD,10/09/2018,"1,054.54",60500-GENERAL MATERIALS,FLEET,Supplies & Services,Revenue
Walsall Council,http://opendatacommunities.org/id/metropolitan-district-council/walsall,WC96-575,30/09/2018,Economy & Environment,C P DAVIDSON & SONS LTD,10/09/2018,"1,070.75",60514-MATERIALS TO STORES,FLEET PARTS STOCK ACCOUNT,Supplies & Services,Revenue
Walsall Council,http://opendatacommunities.org/id/metropolitan-district-council/walsall,WC96-576,30/09/2018,Economy & Environment,C P DAVIDSON & SONS LTD,04/09/2018,"5,632.49",60500-GENERAL MATERIALS,FLEET,Supplies & Services,Revenue
Walsall Council,http://opendatacommunities.org/id/metropolitan-district-council/walsall,WC96-577,30/09/2018,Childrens,REDACTED,24/09/2018,600.00,74501-MAINTENANCE ALLOWANCE-FOSTER CARERS,FAMILY & FRIENDS FOSTER CARE PROVISION,Transfer Payments,Revenue
Walsall Council,http://opendatacommunities.org/id/metropolitan-district-council/walsall,WC96-578,30/09/2018,Childrens,REDACTED,24/09/2018,600.00,74501-MAINTENANCE ALLOWANCE-FOSTER CARERS,FAMILY & FRIENDS FOSTER CARE PROVISION,Transfer Payments,Revenue
Walsall Council,http://opendatacommunities.org/id/metropolitan-district-council/walsall,WC96-579,30/09/2018,Resources and Transformation,CADLINE LTD,26/09/2018,"31,460.00",63820-RECHARGE FOR MAINTENANCE/APPLICATION COSTS-COMPUTER,APPLICATIONS,Supplies & Services,Revenue
Walsall Council,http://opendatacommunities.org/id/metropolitan-district-council/walsall,WC96-580,30/09/2018,Adult Social Care,CALDMORE AREA HOUSING ASS LTD,04/09/2018,446.74,73373-RESIDENTIAL & NURSING CARE PLACEMENTS,MENTAL HEALTH PACKAGE/PLACEMENT COSTS,Third Party Payments,Revenue
Walsall Council,http://opendatacommunities.org/id/metropolitan-district-council/walsall,WC96-581,30/09/2018,Adult Social Care,CALDMORE AREA HOUSING ASS LTD,04/09/2018,542.79,73373-RESIDENTIAL & NURSING CARE PLACEMENTS,MENTAL HEALTH PACKAGE/PLACEMENT COSTS,Third Party Payments,Revenue
Walsall Council,http://opendatacommunities.org/id/metropolitan-district-council/walsall,WC96-582,30/09/2018,Adult Social Care,CALDMORE AREA HOUSING ASS LTD,04/09/2018,"2,533.04",73373-RESIDENTIAL & NURSING CARE PLACEMENTS,MENTAL HEALTH PACKAGE/PLACEMENT COSTS,Third Party Payments,Revenue
Walsall Council,http://opendatacommunities.org/id/metropolitan-district-council/walsall,WC96-583,30/09/2018,Adult Social Care,CALDMORE AREA HOUSING ASS LTD,04/09/2018,"2,533.04",73373-RESIDENTIAL & NURSING CARE PLACEMENTS,MENTAL HEALTH PACKAGE/PLACEMENT COSTS,Third Party Payments,Revenue
Walsall Council,http://opendatacommunities.org/id/metropolitan-district-council/walsall,WC96-584,30/09/2018,Adult Social Care,CALDMORE AREA HOUSING ASS LTD,04/09/2018,"2,613.24",73373-RESIDENTIAL & NURSING CARE PLACEMENTS,MENTAL HEALTH PACKAGE/PLACEMENT COSTS,Third Party Payments,Revenue
Walsall Council,http://opendatacommunities.org/id/metropolitan-district-council/walsall,WC96-585,30/09/2018,Adult Social Care,CALDMORE AREA HOUSING ASS LTD,04/09/2018,"2,613.24",73373-RESIDENTIAL & NURSING CARE PLACEMENTS,MENTAL HEALTH PACKAGE/PLACEMENT COSTS,Third Party Payments,Revenue
Walsall Council,http://opendatacommunities.org/id/metropolitan-district-council/walsall,WC96-586,30/09/2018,Adult Social Care,CALDMORE AREA HOUSING ASS LTD,04/09/2018,"2,613.24",73373-RESIDENTIAL & NURSING CARE PLACEMENTS,MENTAL HEALTH PACKAGE/PLACEMENT COSTS,Third Party Payments,Revenue
Walsall Council,http://opendatacommunities.org/id/metropolitan-district-council/walsall,WC96-587,30/09/2018,Adult Social Care,CALDMORE AREA HOUSING ASS LTD,04/09/2018,"2,613.24",73373-RESIDENTIAL & NURSING CARE PLACEMENTS,MENTAL HEALTH PACKAGE/PLACEMENT COSTS,Third Party Payments,Revenue
Walsall Council,http://opendatacommunities.org/id/metropolitan-district-council/walsall,WC96-588,30/09/2018,Adult Social Care,CALDMORE AREA HOUSING ASS LTD,04/09/2018,"2,613.24",73373-RESIDENTIAL & NURSING CARE PLACEMENTS,MENTAL HEALTH PACKAGE/PLACEMENT COSTS,Third Party Payments,Revenue
Walsall Council,http://opendatacommunities.org/id/metropolitan-district-council/walsall,WC96-589,30/09/2018,Adult Social Care,CALDMORE AREA HOUSING ASS LTD,04/09/2018,"2,613.24",73373-RESIDENTIAL & NURSING CARE PLACEMENTS,MENTAL HEALTH PACKAGE/PLACEMENT COSTS,Third Party Payments,Revenue
Walsall Council,http://opendatacommunities.org/id/metropolitan-district-council/walsall,WC96-590,30/09/2018,Adult Social Care,CALDMORE AREA HOUSING ASS LTD,04/09/2018,"2,713.97",73373-RESIDENTIAL & NURSING CARE PLACEMENTS,MENTAL HEALTH PACKAGE/PLACEMENT COSTS,Third Party Payments,Revenue
Walsall Council,http://opendatacommunities.org/id/metropolitan-district-council/walsall,WC96-591,30/09/2018,Adult Social Care,CALDMORE AREA HOUSING ASS LTD,04/09/2018,"2,985.37",73373-RESIDENTIAL & NURSING CARE PLACEMENTS,MENTAL HEALTH PACKAGE/PLACEMENT COSTS,Third Party Payments,Revenue
Walsall Council,http://opendatacommunities.org/id/metropolitan-district-council/walsall,WC96-592,30/09/2018,Adult Social Care,CALDMORE AREA HOUSING ASS LTD,26/09/2018,"3,138.39",73373-RESIDENTIAL & NURSING CARE PLACEMENTS,MENTAL HEALTH PACKAGE/PLACEMENT COSTS,Third Party Payments,Revenue
Walsall Council,http://opendatacommunities.org/id/metropolitan-district-council/walsall,WC96-593,30/09/2018,Adult Social Care,CALDMORE AREA HOUSING ASS LTD,26/09/2018,"3,138.39",73373-RESIDENTIAL & NURSING CARE PLACEMENTS,MENTAL HEALTH PACKAGE/PLACEMENT COSTS,Third Party Payments,Revenue
Walsall Council,http://opendatacommunities.org/id/metropolitan-district-council/walsall,WC96-594,30/09/2018,Adult Social Care,CALDMORE AREA HOUSING ASS LTD,26/09/2018,"3,138.39",73373-RESIDENTIAL & NURSING CARE PLACEMENTS,MENTAL HEALTH PACKAGE/PLACEMENT COSTS,Third Party Payments,Revenue
Walsall Council,http://opendatacommunities.org/id/metropolitan-district-council/walsall,WC96-595,30/09/2018,Adult Social Care,CALDMORE AREA HOUSING ASS LTD,26/09/2018,"3,138.39",73373-RESIDENTIAL & NURSING CARE PLACEMENTS,MENTAL HEALTH PACKAGE/PLACEMENT COSTS,Third Party Payments,Revenue
Walsall Council,http://opendatacommunities.org/id/metropolitan-district-council/walsall,WC96-596,30/09/2018,Adult Social Care,CALDMORE AREA HOUSING ASS LTD,26/09/2018,"3,138.39",73373-RESIDENTIAL & NURSING CARE PLACEMENTS,MENTAL HEALTH PACKAGE/PLACEMENT COSTS,Third Party Payments,Revenue
Walsall Council,http://opendatacommunities.org/id/metropolitan-district-council/walsall,WC96-597,30/09/2018,Adult Social Care,CALDMORE AREA HOUSING ASS LTD,26/09/2018,"3,138.39",73373-RESIDENTIAL & NURSING CARE PLACEMENTS,MENTAL HEALTH PACKAGE/PLACEMENT COSTS,Third Party Payments,Revenue
Walsall Council,http://opendatacommunities.org/id/metropolitan-district-council/walsall,WC96-598,30/09/2018,Adult Social Care,CALDMORE AREA HOUSING ASS LTD,26/09/2018,"3,138.39",73373-RESIDENTIAL & NURSING CARE PLACEMENTS,MENTAL HEALTH PACKAGE/PLACEMENT COSTS,Third Party Payments,Revenue
Walsall Council,http://opendatacommunities.org/id/metropolitan-district-council/walsall,WC96-599,30/09/2018,Adult Social Care,CALDMORE AREA HOUSING ASS LTD,04/09/2018,"3,166.30",73373-RESIDENTIAL & NURSING CARE PLACEMENTS,MENTAL HEALTH PACKAGE/PLACEMENT COSTS,Third Party Payments,Revenue
Walsall Council,http://opendatacommunities.org/id/metropolitan-district-council/walsall,WC96-600,30/09/2018,Adult Social Care,CALDMORE AREA HOUSING ASS LTD,04/09/2018,"3,166.30",73373-RESIDENTIAL & NURSING CARE PLACEMENTS,MENTAL HEALTH PACKAGE/PLACEMENT COSTS,Third Party Payments,Revenue
Walsall Council,http://opendatacommunities.org/id/metropolitan-district-council/walsall,WC96-601,30/09/2018,Adult Social Care,CALDMORE AREA HOUSING ASS LTD,04/09/2018,"3,173.22",73373-RESIDENTIAL & NURSING CARE PLACEMENTS,MENTAL HEALTH PACKAGE/PLACEMENT COSTS,Third Party Payments,Revenue
Walsall Council,http://opendatacommunities.org/id/metropolitan-district-council/walsall,WC96-602,30/09/2018,Adult Social Care,CALDMORE AREA HOUSING ASS LTD,04/09/2018,"3,266.55",73373-RESIDENTIAL & NURSING CARE PLACEMENTS,MENTAL HEALTH PACKAGE/PLACEMENT COSTS,Third Party Payments,Revenue
Walsall Council,http://opendatacommunities.org/id/metropolitan-district-council/walsall,WC96-603,30/09/2018,Childrens,CALDMORE PRIMARY ACADEMY,18/09/2018,"2,934.47",66502-TOP UP FUNDING -GRANTS TO SCHOOLS,CALDMORE PRIMARY ACADEMY,Third Party Payments,Revenue
Walsall Council,http://opendatacommunities.org/id/metropolitan-district-council/walsall,WC96-604,30/09/2018,Childrens,CALDMORE PRIMARY ACADEMY,04/09/2018,"7,563.47",66502-TOP UP FUNDING -GRANTS TO SCHOOLS,CALDMORE PRIMARY ACADEMY,Third Party Payments,Revenue
Walsall Council,http://opendatacommunities.org/id/metropolitan-district-council/walsall,WC96-605,30/09/2018,Childrens,CALDMORE PRIMARY ACADEMY,01/09/2018,"36,540.00",66505-OTHER-GRANTS TO OTHER ORGS,EARLY YEARS - 3 YR OLDS,Third Party Payments,Revenue
Walsall Council,http://opendatacommunities.org/id/metropolitan-district-council/walsall,WC96-606,30/09/2018,Childrens,REDACTED,24/09/2018,375.88,74510-RESIDENTS ORDERS,ADOPTION ALLOWANCES,Third Party Payments,Revenue
Walsall Council,http://opendatacommunities.org/id/metropolitan-district-council/walsall,WC96-607,30/09/2018,Adult Social Care,REDACTED,12/09/2018,"1,667.60",73506-DIRECT PAYMENT,LEARNING DISABILITY SUPPORT,Third Party Payments,Revenue
Walsall Council,http://opendatacommunities.org/id/metropolitan-district-council/walsall,WC96-608,30/09/2018,Childrens,CANNOCK CHASE HIGH SCHOOL,05/09/2018,278.00,77300-ISB-FORMULA ALLOCATION,OUT OF BOROUGH SCHOOLS,Transfer Payments,Revenue
Walsall Council,http://opendatacommunities.org/id/metropolitan-district-council/walsall,WC96-609,30/09/2018,Childrens,CAPSTONE FOSTER CARE (SOUTH EAST) LIMITED,07/09/2018,"3,003.12",74037-INDEPENDENT FOSTER CARE-OTH AGENCY PROVISION,EXTERNAL FOSTER CARE PROVISION,Third Party Payments,Revenue
Walsall Council,http://opendatacommunities.org/id/metropolitan-district-council/walsall,WC96-610,30/09/2018,Childrens,CAPSTONE FOSTER CARE (SOUTH EAST) LIMITED,07/09/2018,"3,124.44",74037-INDEPENDENT FOSTER CARE-OTH AGENCY PROVISION,EXTERNAL FOSTER CARE PROVISION,Third Party Payments,Revenue
Walsall Council,http://opendatacommunities.org/id/metropolitan-district-council/walsall,WC96-611,30/09/2018,Childrens,CAPSTONE FOSTER CARE (SOUTH EAST) LIMITED,07/09/2018,"3,194.04",74037-INDEPENDENT FOSTER CARE-OTH AGENCY PROVISION,EXTERNAL FOSTER CARE PROVISION,Third Party Payments,Revenue
Walsall Council,http://opendatacommunities.org/id/metropolitan-district-council/walsall,WC96-612,30/09/2018,Childrens,CAPSTONE FOSTER CARE (SOUTH EAST) LIMITED,07/09/2018,"3,194.04",74037-INDEPENDENT FOSTER CARE-OTH AGENCY PROVISION,EXTERNAL FOSTER CARE PROVISION,Third Party Payments,Revenue
Walsall Council,http://opendatacommunities.org/id/metropolitan-district-council/walsall,WC96-613,30/09/2018,Adult Social Care,CARE 2 U LIMITED,24/09/2018,309.10,73372-DOMICILIARY CARE,OP PACKAGE/PLACEMENT COSTS,Third Party Payments,Revenue
Walsall Council,http://opendatacommunities.org/id/metropolitan-district-council/walsall,WC96-614,30/09/2018,Adult Social Care,CARE 2 U LIMITED,13/09/2018,"29,794.72",73372-DOMICILIARY CARE,OP PACKAGE/PLACEMENT COSTS,Third Party Payments,Revenue
Walsall Council,http://opendatacommunities.org/id/metropolitan-district-council/walsall,WC96-615,30/09/2018,Adult Social Care,CARE 2 U LIMITED,10/09/2018,"31,357.67",73372-DOMICILIARY CARE,OP PACKAGE/PLACEMENT COSTS,Third Party Payments,Revenue
Walsall Council,http://opendatacommunities.org/id/metropolitan-district-council/walsall,WC96-616,30/09/2018,Adult Social Care,CARE AVENUES LTD,26/09/2018,"43,362.36",73372-DOMICILIARY CARE,OP PACKAGE/PLACEMENT COSTS,Third Party Payments,Revenue
Walsall Council,http://opendatacommunities.org/id/metropolitan-district-council/walsall,WC96-617,30/09/2018,Adult Social Care,CARE FIRST MANAGEMENT SERVICES LTD,10/09/2018,780.00,73372-DOMICILIARY CARE,PD PACKAGE/PLACEMENT COSTS,Third Party Payments,Revenue
Walsall Council,http://opendatacommunities.org/id/metropolitan-district-council/walsall,WC96-618,30/09/2018,Childrens,CARE PERSPECTIVES LTD,07/09/2018,"21,300.00",74036-EXTERNAL RESIDENTIAL CARE-OTH AGENCY PROVISION,INDEPENDENT RESIDENTIAL HOMES,Third Party Payments,Revenue
Walsall Council,http://opendatacommunities.org/id/metropolitan-district-council/walsall,WC96-619,30/09/2018,Childrens,CARE TODAY CHILDRENS SERVICES,07/09/2018,"10,380.00",74036-EXTERNAL RESIDENTIAL CARE-OTH AGENCY PROVISION,INDEPENDENT RESIDENTIAL HOMES,Third Party Payments,Revenue
Walsall Council,http://opendatacommunities.org/id/metropolitan-district-council/walsall,WC96-620,30/09/2018,Childrens,CARE XY LIMITED,24/09/2018,"1,240.00",63000-PROFESSIONAL FEES AND SERVICES,DIRECTLY COMMISSIONED NURSING SERVICES,Supplies & Services,Revenue
Walsall Council,http://opendatacommunities.org/id/metropolitan-district-council/walsall,WC96-621,30/09/2018,Childrens,CARE XY LIMITED,03/09/2018,"6,080.00",63000-PROFESSIONAL FEES AND SERVICES,DIRECTLY COMMISSIONED NURSING SERVICES,Supplies & Services,Revenue
Walsall Council,http://opendatacommunities.org/id/metropolitan-district-council/walsall,WC96-622,30/09/2018,Adult Social Care,CARE XY LIMITED,26/09/2018,"13,266.71",73025-PROFESSIONAL SERVICES-PRIV CONTRACTOR & OTHER AGENCIES,TRANSITIONAL CARE SUPPORT TEAM,Third Party Payments,Revenue
Walsall Council,http://opendatacommunities.org/id/metropolitan-district-council/walsall,WC96-623,30/09/2018,Adult Social Care,CARE XY LIMITED,26/09/2018,"14,007.85",73025-PROFESSIONAL SERVICES-PRIV CONTRACTOR & OTHER AGENCIES,TRANSITIONAL CARE SUPPORT TEAM,Third Party Payments,Revenue
Walsall Council,http://opendatacommunities.org/id/metropolitan-district-council/walsall,WC96-624,30/09/2018,Adult Social Care,CARE XY LIMITED,07/09/2018,"16,087.25",73025-PROFESSIONAL SERVICES-PRIV CONTRACTOR & OTHER AGENCIES,TRANSITIONAL CARE SUPPORT TEAM,Third Party Payments,Revenue
Walsall Council,http://opendatacommunities.org/id/metropolitan-district-council/walsall,WC96-625,30/09/2018,Childrens,CAREFIRST SERVICES LIMITED,21/09/2018,"1,733.57",76010-ACCOMMODATION AND RELATED COSTS-ASSISTANCE TO S/S CLIENTS,TRANSITION AND LEAVING CARE PLACEMENTS,Transfer Payments,Revenue
Walsall Council,http://opendatacommunities.org/id/metropolitan-district-council/walsall,WC96-626,30/09/2018,Economy & Environment,CARILLION COMMUNICATIONS LIMITED,10/09/2018,313.00,60000-FURNITURE & EQUIPMENT,NAG - TEMPORARY EXHIBITIONS,Supplies & Services,Revenue
Walsall Council,http://opendatacommunities.org/id/metropolitan-district-council/walsall,WC96-627,30/09/2018,Adult Social Care,CARING CARE LIMITED,05/09/2018,252.90,73025-PROFESSIONAL SERVICES-PRIV CONTRACTOR & OTHER AGENCIES,RAPID RESPONSE,Third Party Payments,Revenue
Walsall Council,http://opendatacommunities.org/id/metropolitan-district-council/walsall,WC96-628,30/09/2018,Adult Social Care,CARING CARE LIMITED,07/09/2018,281.00,73025-PROFESSIONAL SERVICES-PRIV CONTRACTOR & OTHER AGENCIES,COMMUNITY INTERMEDIATE CARE,Third Party Payments,Revenue
Walsall Council,http://opendatacommunities.org/id/metropolitan-district-council/walsall,WC96-629,30/09/2018,Adult Social Care,CARING CARE LIMITED,26/09/2018,309.10,73025-PROFESSIONAL SERVICES-PRIV CONTRACTOR & OTHER AGENCIES,RAPID RESPONSE,Third Party Payments,Revenue
Walsall Council,http://opendatacommunities.org/id/metropolitan-district-council/walsall,WC96-630,30/09/2018,Adult Social Care,CARING CARE LIMITED,07/09/2018,316.13,73025-PROFESSIONAL SERVICES-PRIV CONTRACTOR & OTHER AGENCIES,COMMUNITY INTERMEDIATE CARE,Third Party Payments,Revenue
Walsall Council,http://opendatacommunities.org/id/metropolitan-district-council/walsall,WC96-631,30/09/2018,Adult Social Care,CARING CARE LIMITED,26/09/2018,326.66,73025-PROFESSIONAL SERVICES-PRIV CONTRACTOR & OTHER AGENCIES,COMMUNITY INTERMEDIATE CARE,Third Party Payments,Revenue
Walsall Council,http://opendatacommunities.org/id/metropolitan-district-council/walsall,WC96-632,30/09/2018,Adult Social Care,CARING CARE LIMITED,07/09/2018,344.23,73025-PROFESSIONAL SERVICES-PRIV CONTRACTOR & OTHER AGENCIES,COMMUNITY INTERMEDIATE CARE,Third Party Payments,Revenue
Walsall Council,http://opendatacommunities.org/id/metropolitan-district-council/walsall,WC96-633,30/09/2018,Adult Social Care,CARING CARE LIMITED,05/09/2018,365.30,73025-PROFESSIONAL SERVICES-PRIV CONTRACTOR & OTHER AGENCIES,COMMUNITY INTERMEDIATE CARE,Third Party Payments,Revenue
Walsall Council,http://opendatacommunities.org/id/metropolitan-district-council/walsall,WC96-634,30/09/2018,Adult Social Care,CARING CARE LIMITED,05/09/2018,372.33,73025-PROFESSIONAL SERVICES-PRIV CONTRACTOR & OTHER AGENCIES,COMMUNITY INTERMEDIATE CARE,Third Party Payments,Revenue
Walsall Council,http://opendatacommunities.org/id/metropolitan-district-council/walsall,WC96-635,30/09/2018,Adult Social Care,CARING CARE LIMITED,07/09/2018,379.35,73025-PROFESSIONAL SERVICES-PRIV CONTRACTOR & OTHER AGENCIES,COMMUNITY INTERMEDIATE CARE,Third Party Payments,Revenue
Walsall Council,http://opendatacommunities.org/id/metropolitan-district-council/walsall,WC96-636,30/09/2018,Adult Social Care,CARING CARE LIMITED,07/09/2018,386.38,73025-PROFESSIONAL SERVICES-PRIV CONTRACTOR & OTHER AGENCIES,COMMUNITY INTERMEDIATE CARE,Third Party Payments,Revenue
Walsall Council,http://opendatacommunities.org/id/metropolitan-district-council/walsall,WC96-637,30/09/2018,Adult Social Care,CARING CARE LIMITED,26/09/2018,421.50,73025-PROFESSIONAL SERVICES-PRIV CONTRACTOR & OTHER AGENCIES,RAPID RESPONSE,Third Party Payments,Revenue
Walsall Council,http://opendatacommunities.org/id/metropolitan-district-council/walsall,WC96-638,30/09/2018,Adult Social Care,CARING CARE LIMITED,07/09/2018,425.01,73025-PROFESSIONAL SERVICES-PRIV CONTRACTOR & OTHER AGENCIES,COMMUNITY INTERMEDIATE CARE,Third Party Payments,Revenue
Walsall Council,http://opendatacommunities.org/id/metropolitan-district-council/walsall,WC96-639,30/09/2018,Adult Social Care,CARING CARE LIMITED,05/09/2018,442.58,73025-PROFESSIONAL SERVICES-PRIV CONTRACTOR & OTHER AGENCIES,COMMUNITY INTERMEDIATE CARE,Third Party Payments,Revenue
Walsall Council,http://opendatacommunities.org/id/metropolitan-district-council/walsall,WC96-640,30/09/2018,Adult Social Care,CARING CARE LIMITED,07/09/2018,470.68,73025-PROFESSIONAL SERVICES-PRIV CONTRACTOR & OTHER AGENCIES,COMMUNITY INTERMEDIATE CARE,Third Party Payments,Revenue
Walsall Council,http://opendatacommunities.org/id/metropolitan-district-council/walsall,WC96-641,30/09/2018,Adult Social Care,CARING CARE LIMITED,26/09/2018,505.80,73025-PROFESSIONAL SERVICES-PRIV CONTRACTOR & OTHER AGENCIES,RAPID RESPONSE,Third Party Payments,Revenue
Walsall Council,http://opendatacommunities.org/id/metropolitan-district-council/walsall,WC96-642,30/09/2018,Adult Social Care,CARING CARE LIMITED,05/09/2018,544.44,73025-PROFESSIONAL SERVICES-PRIV CONTRACTOR & OTHER AGENCIES,COMMUNITY INTERMEDIATE CARE,Third Party Payments,Revenue
Walsall Council,http://opendatacommunities.org/id/metropolitan-district-council/walsall,WC96-643,30/09/2018,Adult Social Care,CARING CARE LIMITED,07/09/2018,544.44,73025-PROFESSIONAL SERVICES-PRIV CONTRACTOR & OTHER AGENCIES,COMMUNITY INTERMEDIATE CARE,Third Party Payments,Revenue
Walsall Council,http://opendatacommunities.org/id/metropolitan-district-council/walsall,WC96-644,30/09/2018,Adult Social Care,CARING CARE LIMITED,26/09/2018,544.44,73025-PROFESSIONAL SERVICES-PRIV CONTRACTOR & OTHER AGENCIES,TRANSITIONAL CARE SUPPORT TEAM,Third Party Payments,Revenue
Walsall Council,http://opendatacommunities.org/id/metropolitan-district-council/walsall,WC96-645,30/09/2018,Adult Social Care,CARING CARE LIMITED,26/09/2018,576.05,73025-PROFESSIONAL SERVICES-PRIV CONTRACTOR & OTHER AGENCIES,RAPID RESPONSE,Third Party Payments,Revenue
Walsall Council,http://opendatacommunities.org/id/metropolitan-district-council/walsall,WC96-646,30/09/2018,Adult Social Care,CARING CARE LIMITED,07/09/2018,607.66,73025-PROFESSIONAL SERVICES-PRIV CONTRACTOR & OTHER AGENCIES,COMMUNITY INTERMEDIATE CARE,Third Party Payments,Revenue
Walsall Council,http://opendatacommunities.org/id/metropolitan-district-council/walsall,WC96-647,30/09/2018,Adult Social Care,CARING CARE LIMITED,05/09/2018,653.33,73025-PROFESSIONAL SERVICES-PRIV CONTRACTOR & OTHER AGENCIES,COMMUNITY INTERMEDIATE CARE,Third Party Payments,Revenue
Walsall Council,http://opendatacommunities.org/id/metropolitan-district-council/walsall,WC96-648,30/09/2018,Adult Social Care,CARING CARE LIMITED,26/09/2018,653.33,73025-PROFESSIONAL SERVICES-PRIV CONTRACTOR & OTHER AGENCIES,COMMUNITY INTERMEDIATE CARE,Third Party Payments,Revenue
Walsall Council,http://opendatacommunities.org/id/metropolitan-district-council/walsall,WC96-649,30/09/2018,Adult Social Care,CARING CARE LIMITED,26/09/2018,688.45,73025-PROFESSIONAL SERVICES-PRIV CONTRACTOR & OTHER AGENCIES,COMMUNITY INTERMEDIATE CARE,Third Party Payments,Revenue
Walsall Council,http://opendatacommunities.org/id/metropolitan-district-council/walsall,WC96-650,30/09/2018,Adult Social Care,CARING CARE LIMITED,26/09/2018,762.21,73025-PROFESSIONAL SERVICES-PRIV CONTRACTOR & OTHER AGENCIES,TRANSITIONAL CARE SUPPORT TEAM,Third Party Payments,Revenue
Walsall Council,http://opendatacommunities.org/id/metropolitan-district-council/walsall,WC96-651,30/09/2018,Adult Social Care,CARING CARE LIMITED,05/09/2018,772.75,73025-PROFESSIONAL SERVICES-PRIV CONTRACTOR & OTHER AGENCIES,RAPID RESPONSE,Third Party Payments,Revenue
Walsall Council,http://opendatacommunities.org/id/metropolitan-district-council/walsall,WC96-652,30/09/2018,Adult Social Care,CARING CARE LIMITED,05/09/2018,885.15,73025-PROFESSIONAL SERVICES-PRIV CONTRACTOR & OTHER AGENCIES,RAPID RESPONSE,Third Party Payments,Revenue
Walsall Council,http://opendatacommunities.org/id/metropolitan-district-council/walsall,WC96-653,30/09/2018,Adult Social Care,CARING CARE LIMITED,07/09/2018,930.81,73025-PROFESSIONAL SERVICES-PRIV CONTRACTOR & OTHER AGENCIES,COMMUNITY INTERMEDIATE CARE,Third Party Payments,Revenue
Walsall Council,http://opendatacommunities.org/id/metropolitan-district-council/walsall,WC96-654,30/09/2018,Adult Social Care,CARING CARE LIMITED,07/09/2018,979.99,73025-PROFESSIONAL SERVICES-PRIV CONTRACTOR & OTHER AGENCIES,COMMUNITY INTERMEDIATE CARE,Third Party Payments,Revenue
Walsall Council,http://opendatacommunities.org/id/metropolitan-district-council/walsall,WC96-655,30/09/2018,Adult Social Care,CARING CARE LIMITED,26/09/2018,979.99,73025-PROFESSIONAL SERVICES-PRIV CONTRACTOR & OTHER AGENCIES,TRANSITIONAL CARE SUPPORT TEAM,Third Party Payments,Revenue
Walsall Council,http://opendatacommunities.org/id/metropolitan-district-council/walsall,WC96-656,30/09/2018,Adult Social Care,CARING CARE LIMITED,26/09/2018,979.99,73025-PROFESSIONAL SERVICES-PRIV CONTRACTOR & OTHER AGENCIES,COMMUNITY INTERMEDIATE CARE,Third Party Payments,Revenue
Walsall Council,http://opendatacommunities.org/id/metropolitan-district-council/walsall,WC96-657,30/09/2018,Adult Social Care,CARING CARE LIMITED,26/09/2018,"1,011.60",73025-PROFESSIONAL SERVICES-PRIV CONTRACTOR & OTHER AGENCIES,RAPID RESPONSE,Third Party Payments,Revenue
Walsall Council,http://opendatacommunities.org/id/metropolitan-district-council/walsall,WC96-658,30/09/2018,Adult Social Care,CARING CARE LIMITED,26/09/2018,"1,011.60",73025-PROFESSIONAL SERVICES-PRIV CONTRACTOR & OTHER AGENCIES,RAPID RESPONSE,Third Party Payments,Revenue
Walsall Council,http://opendatacommunities.org/id/metropolitan-district-council/walsall,WC96-659,30/09/2018,Adult Social Care,CARING CARE LIMITED,26/09/2018,"1,095.90",73025-PROFESSIONAL SERVICES-PRIV CONTRACTOR & OTHER AGENCIES,TRANSITIONAL CARE SUPPORT TEAM,Third Party Payments,Revenue
Walsall Council,http://opendatacommunities.org/id/metropolitan-district-council/walsall,WC96-660,30/09/2018,Adult Social Care,CARING CARE LIMITED,05/09/2018,"1,131.03",73025-PROFESSIONAL SERVICES-PRIV CONTRACTOR & OTHER AGENCIES,RAPID RESPONSE,Third Party Payments,Revenue
Walsall Council,http://opendatacommunities.org/id/metropolitan-district-council/walsall,WC96-661,30/09/2018,Adult Social Care,CARING CARE LIMITED,07/09/2018,"1,138.06",73025-PROFESSIONAL SERVICES-PRIV CONTRACTOR & OTHER AGENCIES,COMMUNITY INTERMEDIATE CARE,Third Party Payments,Revenue
Walsall Council,http://opendatacommunities.org/id/metropolitan-district-council/walsall,WC96-662,30/09/2018,Adult Social Care,CARING CARE LIMITED,25/09/2018,"1,152.10",73025-PROFESSIONAL SERVICES-PRIV CONTRACTOR & OTHER AGENCIES,RAPID RESPONSE,Third Party Payments,Revenue
Walsall Council,http://opendatacommunities.org/id/metropolitan-district-council/walsall,WC96-663,30/09/2018,Adult Social Care,CARING CARE LIMITED,05/09/2018,"1,303.14",73025-PROFESSIONAL SERVICES-PRIV CONTRACTOR & OTHER AGENCIES,COMMUNITY INTERMEDIATE CARE,Third Party Payments,Revenue
Walsall Council,http://opendatacommunities.org/id/metropolitan-district-council/walsall,WC96-664,30/09/2018,Adult Social Care,CARING CARE LIMITED,05/09/2018,"1,433.10",73025-PROFESSIONAL SERVICES-PRIV CONTRACTOR & OTHER AGENCIES,RAPID RESPONSE,Third Party Payments,Revenue
Walsall Council,http://opendatacommunities.org/id/metropolitan-district-council/walsall,WC96-665,30/09/2018,Adult Social Care,CARING CARE LIMITED,05/09/2018,"1,671.95",73025-PROFESSIONAL SERVICES-PRIV CONTRACTOR & OTHER AGENCIES,COMMUNITY INTERMEDIATE CARE,Third Party Payments,Revenue
Walsall Council,http://opendatacommunities.org/id/metropolitan-district-council/walsall,WC96-666,30/09/2018,Adult Social Care,CARING CARE LIMITED,05/09/2018,"1,742.20",73025-PROFESSIONAL SERVICES-PRIV CONTRACTOR & OTHER AGENCIES,COMMUNITY INTERMEDIATE CARE,Third Party Payments,Revenue
Walsall Council,http://opendatacommunities.org/id/metropolitan-district-council/walsall,WC96-667,30/09/2018,Adult Social Care,CARING CARE LIMITED,26/09/2018,"1,742.20",73025-PROFESSIONAL SERVICES-PRIV CONTRACTOR & OTHER AGENCIES,TRANSITIONAL CARE SUPPORT TEAM,Third Party Payments,Revenue
Walsall Council,http://opendatacommunities.org/id/metropolitan-district-council/walsall,WC96-668,30/09/2018,Adult Social Care,CARING CARE LIMITED,26/09/2018,"1,742.20",73025-PROFESSIONAL SERVICES-PRIV CONTRACTOR & OTHER AGENCIES,TRANSITIONAL CARE SUPPORT TEAM,Third Party Payments,Revenue
Walsall Council,http://opendatacommunities.org/id/metropolitan-district-council/walsall,WC96-669,30/09/2018,Adult Social Care,CARING CARE LIMITED,19/09/2018,"1,784.35",73025-PROFESSIONAL SERVICES-PRIV CONTRACTOR & OTHER AGENCIES,RAPID RESPONSE,Third Party Payments,Revenue
Walsall Council,http://opendatacommunities.org/id/metropolitan-district-council/walsall,WC96-670,30/09/2018,Adult Social Care,CARING CARE LIMITED,05/09/2018,"1,910.80",73025-PROFESSIONAL SERVICES-PRIV CONTRACTOR & OTHER AGENCIES,RAPID RESPONSE,Third Party Payments,Revenue
Walsall Council,http://opendatacommunities.org/id/metropolitan-district-council/walsall,WC96-671,30/09/2018,Adult Social Care,CARING CARE LIMITED,26/09/2018,"1,910.80",73025-PROFESSIONAL SERVICES-PRIV CONTRACTOR & OTHER AGENCIES,TRANSITIONAL CARE SUPPORT TEAM,Third Party Payments,Revenue
Walsall Council,http://opendatacommunities.org/id/metropolitan-district-council/walsall,WC96-672,30/09/2018,Adult Social Care,CARING CARE LIMITED,05/09/2018,"1,959.98",73025-PROFESSIONAL SERVICES-PRIV CONTRACTOR & OTHER AGENCIES,COMMUNITY INTERMEDIATE CARE,Third Party Payments,Revenue
Walsall Council,http://opendatacommunities.org/id/metropolitan-district-council/walsall,WC96-673,30/09/2018,Adult Social Care,CARING CARE LIMITED,05/09/2018,"1,959.98",73025-PROFESSIONAL SERVICES-PRIV CONTRACTOR & OTHER AGENCIES,COMMUNITY INTERMEDIATE CARE,Third Party Payments,Revenue
Walsall Council,http://opendatacommunities.org/id/metropolitan-district-council/walsall,WC96-674,30/09/2018,Adult Social Care,CARING CARE LIMITED,05/09/2018,"1,959.98",73025-PROFESSIONAL SERVICES-PRIV CONTRACTOR & OTHER AGENCIES,COMMUNITY INTERMEDIATE CARE,Third Party Payments,Revenue
Walsall Council,http://opendatacommunities.org/id/metropolitan-district-council/walsall,WC96-675,30/09/2018,Adult Social Care,CARING CARE LIMITED,19/09/2018,"3,034.80",73025-PROFESSIONAL SERVICES-PRIV CONTRACTOR & OTHER AGENCIES,RAPID RESPONSE,Third Party Payments,Revenue
Walsall Council,http://opendatacommunities.org/id/metropolitan-district-council/walsall,WC96-676,30/09/2018,Adult Social Care,CARING CARE LIMITED,19/09/2018,"5,339.00",73025-PROFESSIONAL SERVICES-PRIV CONTRACTOR & OTHER AGENCIES,RAPID RESPONSE,Third Party Payments,Revenue
Walsall Council,http://opendatacommunities.org/id/metropolitan-district-council/walsall,WC96-677,30/09/2018,Adult Social Care,CARING CARE LIMITED,05/09/2018,"9,778.80",73025-PROFESSIONAL SERVICES-PRIV CONTRACTOR & OTHER AGENCIES,COMMUNITY INTERMEDIATE CARE,Third Party Payments,Revenue
Walsall Council,http://opendatacommunities.org/id/metropolitan-district-council/walsall,WC96-678,30/09/2018,Adult Social Care,CARING CARE LIMITED,11/09/2018,"78,659.96",73372-DOMICILIARY CARE,OP PACKAGE/PLACEMENT COSTS,Third Party Payments,Revenue
Walsall Council,http://opendatacommunities.org/id/metropolitan-district-council/walsall,WC96-679,30/09/2018,Adult Social Care,CARING HANDS LIMITED,25/09/2018,710.50,73372-DOMICILIARY CARE,MENTAL HEALTH PACKAGE/PLACEMENT COSTS,Third Party Payments,Revenue
Walsall Council,http://opendatacommunities.org/id/metropolitan-district-council/walsall,WC96-680,30/09/2018,Childrens,REDACTED,17/09/2018,"1,461.60",66505-OTHER-GRANTS TO OTHER ORGS,EARLY YEARS - 3 YR OLDS,Third Party Payments,Revenue
Walsall Council,http://opendatacommunities.org/id/metropolitan-district-council/walsall,WC96-681,30/09/2018,Adult Social Care,REDACTED,12/09/2018,"1,658.80",73506-DIRECT PAYMENT,SOCIAL SUPPORT,Third Party Payments,Revenue
Walsall Council,http://opendatacommunities.org/id/metropolitan-district-council/walsall,WC96-682,30/09/2018,Adult Social Care,REDACTED,03/09/2018,"1,637.40",73372-DOMICILIARY CARE,LD PACKAGE/PLACEMENT COSTS,Third Party Payments,Revenue
Walsall Council,http://opendatacommunities.org/id/metropolitan-district-council/walsall,WC96-683,30/09/2018,Adult Social Care,REDACTED,03/09/2018,"1,637.40",73372-DOMICILIARY CARE,LD PACKAGE/PLACEMENT COSTS,Third Party Payments,Revenue
Walsall Council,http://opendatacommunities.org/id/metropolitan-district-council/walsall,WC96-684,30/09/2018,Adult Social Care,REDACTED,18/09/2018,"1,637.40",73372-DOMICILIARY CARE,LD PACKAGE/PLACEMENT COSTS,Third Party Payments,Revenue
Walsall Council,http://opendatacommunities.org/id/metropolitan-district-council/walsall,WC96-685,30/09/2018,Adult Social Care,REDACTED,18/09/2018,"1,637.40",73372-DOMICILIARY CARE,LD PACKAGE/PLACEMENT COSTS,Third Party Payments,Revenue
Walsall Council,http://opendatacommunities.org/id/metropolitan-district-council/walsall,WC96-686,30/09/2018,Childrens,REDACTED,07/09/2018,9.24,60006-NEW-FURNITURE & EQUIPMENT,INTERNAL FOSTER CARE PROVISION,Supplies & Services,Revenue
Walsall Council,http://opendatacommunities.org/id/metropolitan-district-council/walsall,WC96-687,30/09/2018,Childrens,REDACTED,07/09/2018,473.00,74510-RESIDENTS ORDERS,ADOPTION ALLOWANCES,Third Party Payments,Revenue
Walsall Council,http://opendatacommunities.org/id/metropolitan-district-council/walsall,WC96-688,30/09/2018,Childrens,REDACTED,07/09/2018,530.96,74508-INTERNAL FOSTER CARERS-CARER FEES,INTERNAL FOSTER CARE PROVISION,Transfer Payments,Revenue
Walsall Council,http://opendatacommunities.org/id/metropolitan-district-council/walsall,WC96-689,30/09/2018,Childrens,REDACTED,24/09/2018,361.12,74509-SPECIAL GUARDIANSHIP ORDERS,ADOPTION ALLOWANCES,Transfer Payments,Revenue
Walsall Council,http://opendatacommunities.org/id/metropolitan-district-council/walsall,WC96-690,30/09/2018,Childrens,CARTER BROWN THE EXPERT SERVICE LTD,12/09/2018,211.00,73014-LEGAL FEES-PRIV CONTRACTOR FEES,GENERAL MANAGEMENT SUPPORT (INC LEGAL),Third Party Payments,Revenue
Walsall Council,http://opendatacommunities.org/id/metropolitan-district-council/walsall,WC96-691,30/09/2018,Economy & Environment,CARTER SYNERGY LTD,01/09/2018,242.00,"40000-REPAIRS,ALTERATIONS & MAINTENANCE-PREM",NAG - MAINTENANCE,Premises,Revenue
Walsall Council,http://opendatacommunities.org/id/metropolitan-district-council/walsall,WC96-692,30/09/2018,Economy & Environment,CARTER SYNERGY LTD,06/09/2018,"3,441.94",40216-OTHER-PLAN MTCE,NAG - MAINTENANCE,Premises,Revenue
Walsall Council,http://opendatacommunities.org/id/metropolitan-district-council/walsall,WC96-693,30/09/2018,Economy & Environment,CARTER SYNERGY LTD,06/09/2018,"4,727.80",40216-OTHER-PLAN MTCE,NAG - MAINTENANCE,Premises,Revenue
Walsall Council,http://opendatacommunities.org/id/metropolitan-district-council/walsall,WC96-694,30/09/2018,Childrens,CATERPILLAR CARE SERVICES,18/09/2018,"5,490.25",76010-ACCOMMODATION AND RELATED COSTS-ASSISTANCE TO S/S CLIENTS,TRANSITION AND LEAVING CARE PLACEMENTS,Transfer Payments,Revenue
Walsall Council,http://opendatacommunities.org/id/metropolitan-district-council/walsall,WC96-695,30/09/2018,Adult Social Care,REDACTED,12/09/2018,"1,158.50",73506-DIRECT PAYMENT,LEARNING DISABILITY SUPPORT,Third Party Payments,Revenue
Walsall Council,http://opendatacommunities.org/id/metropolitan-district-council/walsall,WC96-696,30/09/2018,Childrens,REDACTED,24/09/2018,425.08,74009-ADOPTION ALLOWANCE,ADOPTION ALLOWANCES,Transfer Payments,Revenue
Walsall Council,http://opendatacommunities.org/id/metropolitan-district-council/walsall,WC96-697,30/09/2018,Adult Social Care,REDACTED,12/09/2018,459.00,73506-DIRECT PAYMENT,LEARNING DISABILITY SUPPORT,Third Party Payments,Revenue
Walsall Council,http://opendatacommunities.org/id/metropolitan-district-council/walsall,WC96-698,30/09/2018,Childrens,REDACTED,12/09/2018,"1,267.85",73506-DIRECT PAYMENT,FAMILY SUPPORT - DIRECT PAYMENTS,Third Party Payments,Revenue
Walsall Council,http://opendatacommunities.org/id/metropolitan-district-council/walsall,WC96-699,30/09/2018,Childrens,REDACTED,24/09/2018,425.08,74510-RESIDENTS ORDERS,ADOPTION ALLOWANCES,Third Party Payments,Revenue
Walsall Council,http://opendatacommunities.org/id/metropolitan-district-council/walsall,WC96-700,30/09/2018,Resources and Transformation,CCS MEDIA LTD,26/09/2018,315.00,63800-COMPUTER EQUIPMENT AND SUPPLIES,RECHARGEABLE EQUIPMENT,Supplies & Services,Revenue
Walsall Council,http://opendatacommunities.org/id/metropolitan-district-council/walsall,WC96-701,30/09/2018,Resources and Transformation,CCS MEDIA LTD,25/09/2018,945.00,63800-COMPUTER EQUIPMENT AND SUPPLIES,RECHARGEABLE EQUIPMENT,Supplies & Services,Revenue
Walsall Council,http://opendatacommunities.org/id/metropolitan-district-council/walsall,WC96-702,30/09/2018,Resources and Transformation,CCS MEDIA LTD,19/09/2018,"34,720.00",63800-COMPUTER EQUIPMENT AND SUPPLIES,RECHARGEABLE EQUIPMENT,Supplies & Services,Revenue
Walsall Council,http://opendatacommunities.org/id/metropolitan-district-council/walsall,WC96-703,30/09/2018,Resources and Transformation,CCS MEDIA LTD,19/09/2018,"43,400.00",63800-COMPUTER EQUIPMENT AND SUPPLIES,RECHARGEABLE EQUIPMENT,Supplies & Services,Revenue
Walsall Council,http://opendatacommunities.org/id/metropolitan-district-council/walsall,WC96-704,30/09/2018,Adult Social Care,REDACTED,12/09/2018,737.45,73506-DIRECT PAYMENT,PHYSICAL SUPPORT,Third Party Payments,Revenue
Walsall Council,http://opendatacommunities.org/id/metropolitan-district-council/walsall,WC96-705,30/09/2018,Economy & Environment,CENTRAL CONSTRUCTION TRAINING LTD,14/09/2018,497.50,63000-PROFESSIONAL FEES AND SERVICES,YEI (IMPACT) PROGRAMME,Supplies & Services,Revenue
Walsall Council,http://opendatacommunities.org/id/metropolitan-district-council/walsall,WC96-706,30/09/2018,Economy & Environment,CENTRAL CONSTRUCTION TRAINING LTD,14/09/2018,497.50,63000-PROFESSIONAL FEES AND SERVICES,YEI ESF FUNDING,Supplies & Services,Revenue
Walsall Council,http://opendatacommunities.org/id/metropolitan-district-council/walsall,WC96-707,30/09/2018,Economy & Environment,CENTRAL THEATRE SUPPLIES,19/09/2018,295.12,60008-MAINTENANCE-FURNITURE & EQUIPMENT,FOREST ARTS CENTRE,Supplies & Services,Revenue
Walsall Council,http://opendatacommunities.org/id/metropolitan-district-council/walsall,WC96-708,30/09/2018,Economy & Environment,CENTRAL THEATRE SUPPLIES,18/09/2018,604.60,62523-EVENTS,ARBORETUM,Supplies & Services,Revenue
Walsall Council,http://opendatacommunities.org/id/metropolitan-district-council/walsall,WC96-709,30/09/2018,Childrens,REDACTED,07/09/2018,600.00,74501-MAINTENANCE ALLOWANCE-FOSTER CARERS,INTERNAL FOSTER CARE PROVISION,Transfer Payments,Revenue
Walsall Council,http://opendatacommunities.org/id/metropolitan-district-council/walsall,WC96-710,30/09/2018,Childrens,REDACTED,07/09/2018,800.00,74508-INTERNAL FOSTER CARERS-CARER FEES,INTERNAL FOSTER CARE PROVISION,Transfer Payments,Revenue
Walsall Council,http://opendatacommunities.org/id/metropolitan-district-council/walsall,WC96-711,30/09/2018,Economy & Environment,CERTAS ENERGY UK LIMITED,19/09/2018,239.97,50301-FUEL-TRANSPORT RUN COSTS,TARMAC,Transport,Revenue
Walsall Council,http://opendatacommunities.org/id/metropolitan-district-council/walsall,WC96-712,30/09/2018,Economy & Environment,CERTAS ENERGY UK LIMITED,19/09/2018,"1,684.07",50301-FUEL-TRANSPORT RUN COSTS,FUEL STOCK ACCOUNT,Transport,Revenue
Walsall Council,http://opendatacommunities.org/id/metropolitan-district-council/walsall,WC96-713,30/09/2018,Economy & Environment,CERTAS ENERGY UK LIMITED,12/09/2018,"20,890.33",50301-FUEL-TRANSPORT RUN COSTS,FUEL STOCK ACCOUNT,Transport,Revenue
Walsall Council,http://opendatacommunities.org/id/metropolitan-district-council/walsall,WC96-714,30/09/2018,Economy & Environment,CERTAS ENERGY UK LIMITED,26/09/2018,"21,286.24",50301-FUEL-TRANSPORT RUN COSTS,FUEL STOCK ACCOUNT,Transport,Revenue
Walsall Council,http://opendatacommunities.org/id/metropolitan-district-council/walsall,WC96-715,30/09/2018,Resources and Transformation,CH FURNITURE SUPPLIES LTD T/A CRAZY HOUSE FURNITURE,03/09/2018,245.00,60000-FURNITURE & EQUIPMENT,WALSALL CRISIS SUPPORT SCHEME,Supplies & Services,Revenue
Walsall Council,http://opendatacommunities.org/id/metropolitan-district-council/walsall,WC96-716,30/09/2018,Resources and Transformation,CH FURNITURE SUPPLIES LTD T/A CRAZY HOUSE FURNITURE,03/09/2018,280.00,60000-FURNITURE & EQUIPMENT,WALSALL CRISIS SUPPORT SCHEME,Supplies & Services,Revenue
Walsall Council,http://opendatacommunities.org/id/metropolitan-district-council/walsall,WC96-717,30/09/2018,Resources and Transformation,CH FURNITURE SUPPLIES LTD T/A CRAZY HOUSE FURNITURE,25/09/2018,280.00,60000-FURNITURE & EQUIPMENT,WALSALL CRISIS SUPPORT SCHEME,Supplies & Services,Revenue
Walsall Council,http://opendatacommunities.org/id/metropolitan-district-council/walsall,WC96-718,30/09/2018,Resources and Transformation,CH FURNITURE SUPPLIES LTD T/A CRAZY HOUSE FURNITURE,25/09/2018,280.00,60000-FURNITURE & EQUIPMENT,WALSALL CRISIS SUPPORT SCHEME,Supplies & Services,Revenue
Walsall Council,http://opendatacommunities.org/id/metropolitan-district-council/walsall,WC96-719,30/09/2018,Resources and Transformation,CH FURNITURE SUPPLIES LTD T/A CRAZY HOUSE FURNITURE,25/09/2018,285.00,60000-FURNITURE & EQUIPMENT,WALSALL CRISIS SUPPORT SCHEME,Supplies & Services,Revenue
Walsall Council,http://opendatacommunities.org/id/metropolitan-district-council/walsall,WC96-720,30/09/2018,Resources and Transformation,CH FURNITURE SUPPLIES LTD T/A CRAZY HOUSE FURNITURE,03/09/2018,310.00,60000-FURNITURE & EQUIPMENT,WALSALL CRISIS SUPPORT SCHEME,Supplies & Services,Revenue
Walsall Council,http://opendatacommunities.org/id/metropolitan-district-council/walsall,WC96-721,30/09/2018,Resources and Transformation,CH FURNITURE SUPPLIES LTD T/A CRAZY HOUSE FURNITURE,06/09/2018,345.00,60000-FURNITURE & EQUIPMENT,WALSALL CRISIS SUPPORT SCHEME,Supplies & Services,Revenue
Walsall Council,http://opendatacommunities.org/id/metropolitan-district-council/walsall,WC96-722,30/09/2018,Resources and Transformation,CH FURNITURE SUPPLIES LTD T/A CRAZY HOUSE FURNITURE,25/09/2018,375.00,60000-FURNITURE & EQUIPMENT,WALSALL CRISIS SUPPORT SCHEME,Supplies & Services,Revenue
Walsall Council,http://opendatacommunities.org/id/metropolitan-district-council/walsall,WC96-723,30/09/2018,Childrens,CH FURNITURE SUPPLIES LTD T/A CRAZY HOUSE FURNITURE,25/09/2018,380.00,74500-CARE LEAVERS MTCE PAYMENTS,TRANSITION AND LEAVING CARE PLACEMENTS,Third Party Payments,Revenue
Walsall Council,http://opendatacommunities.org/id/metropolitan-district-council/walsall,WC96-724,30/09/2018,Resources and Transformation,CH FURNITURE SUPPLIES LTD T/A CRAZY HOUSE FURNITURE,25/09/2018,535.00,60000-FURNITURE & EQUIPMENT,WALSALL CRISIS SUPPORT SCHEME,Supplies & Services,Revenue
Walsall Council,http://opendatacommunities.org/id/metropolitan-district-council/walsall,WC96-725,30/09/2018,Resources and Transformation,CH FURNITURE SUPPLIES LTD T/A CRAZY HOUSE FURNITURE,06/09/2018,580.00,60000-FURNITURE & EQUIPMENT,WALSALL CRISIS SUPPORT SCHEME,Supplies & Services,Revenue
Walsall Council,http://opendatacommunities.org/id/metropolitan-district-council/walsall,WC96-726,30/09/2018,Resources and Transformation,CH FURNITURE SUPPLIES LTD T/A CRAZY HOUSE FURNITURE,12/09/2018,635.00,60000-FURNITURE & EQUIPMENT,WALSALL CRISIS SUPPORT SCHEME,Supplies & Services,Revenue
Walsall Council,http://opendatacommunities.org/id/metropolitan-district-council/walsall,WC96-727,30/09/2018,Resources and Transformation,CH FURNITURE SUPPLIES LTD T/A CRAZY HOUSE FURNITURE,12/09/2018,670.00,60000-FURNITURE & EQUIPMENT,WALSALL CRISIS SUPPORT SCHEME,Supplies & Services,Revenue
Walsall Council,http://opendatacommunities.org/id/metropolitan-district-council/walsall,WC96-728,30/09/2018,Resources and Transformation,CH FURNITURE SUPPLIES LTD T/A CRAZY HOUSE FURNITURE,12/09/2018,"1,135.00",60000-FURNITURE & EQUIPMENT,WALSALL CRISIS SUPPORT SCHEME,Supplies & Services,Revenue
Walsall Council,http://opendatacommunities.org/id/metropolitan-district-council/walsall,WC96-729,30/09/2018,Adult Social Care,REDACTED,12/09/2018,459.00,73506-DIRECT PAYMENT,LEARNING DISABILITY SUPPORT,Third Party Payments,Revenue
Walsall Council,http://opendatacommunities.org/id/metropolitan-district-council/walsall,WC96-730,30/09/2018,Adult Social Care,REDACTED,12/09/2018,"1,650.90",73506-DIRECT PAYMENT,LEARNING DISABILITY SUPPORT,Third Party Payments,Revenue
Walsall Council,http://opendatacommunities.org/id/metropolitan-district-council/walsall,WC96-731,30/09/2018,Childrens,CHANGE GROW LIVE (CGL),20/09/2018,"-8,895.75",63102-CONSULTANTS FEES - CORPORATE,EDGE OF CARE TEAM,Supplies & Services,Revenue
Walsall Council,http://opendatacommunities.org/id/metropolitan-district-council/walsall,WC96-732,30/09/2018,Childrens,CHANGE GROW LIVE (CGL),20/09/2018,"8,895.75",63102-CONSULTANTS FEES - CORPORATE,EDGE OF CARE TEAM,Supplies & Services,Revenue
Walsall Council,http://opendatacommunities.org/id/metropolitan-district-council/walsall,WC96-733,30/09/2018,Adult Social Care,REDACTED,12/09/2018,990.00,73506-DIRECT PAYMENT,PHYSICAL SUPPORT,Third Party Payments,Revenue
Walsall Council,http://opendatacommunities.org/id/metropolitan-district-council/walsall,WC96-734,30/09/2018,Childrens,REDACTED,24/09/2018,368.76,74509-SPECIAL GUARDIANSHIP ORDERS,ADOPTION ALLOWANCES,Transfer Payments,Revenue
Walsall Council,http://opendatacommunities.org/id/metropolitan-district-council/walsall,WC96-735,30/09/2018,Childrens,CHARLIE CATERPILLAR'S DAY NURSERY,01/09/2018,"12,423.60",66505-OTHER-GRANTS TO OTHER ORGS,EARLY YEARS - 3 YR OLDS,Third Party Payments,Revenue
Walsall Council,http://opendatacommunities.org/id/metropolitan-district-council/walsall,WC96-736,30/09/2018,Childrens,CHARLIE CATERPILLAR'S DAY NURSERY,01/09/2018,"14,616.00",66505-OTHER-GRANTS TO OTHER ORGS,EARLY YEARS - 3 YR OLDS,Third Party Payments,Revenue
Walsall Council,http://opendatacommunities.org/id/metropolitan-district-council/walsall,WC96-737,30/09/2018,Childrens,CHARLIE CATERPILLAR'S DAY NURSERY,01/09/2018,"18,486.72",66505-OTHER-GRANTS TO OTHER ORGS,EARLY YEARS - 2 YR OLDS,Third Party Payments,Revenue
Walsall Council,http://opendatacommunities.org/id/metropolitan-district-council/walsall,WC96-738,30/09/2018,Childrens,REDACTED,12/09/2018,323.70,73506-DIRECT PAYMENT,FAMILY SUPPORT - DIRECT PAYMENTS,Third Party Payments,Revenue
Walsall Council,http://opendatacommunities.org/id/metropolitan-district-council/walsall,WC96-739,30/09/2018,Childrens,CHARLIE'S SOS,06/09/2018,269.70,63000-PROFESSIONAL FEES AND SERVICES,CENTRAL EXP-2 YR OLD TRAJECTORY FUNDING,Supplies & Services,Revenue
Walsall Council,http://opendatacommunities.org/id/metropolitan-district-council/walsall,WC96-740,30/09/2018,Adult Social Care,CHARTER CARE,06/09/2018,924.76,73025-PROFESSIONAL SERVICES-PRIV CONTRACTOR & OTHER AGENCIES,COMMUNITY INTERMEDIATE CARE,Third Party Payments,Revenue
Walsall Council,http://opendatacommunities.org/id/metropolitan-district-council/walsall,WC96-741,30/09/2018,Adult Social Care,CHARTER CARE,21/09/2018,"50,569.99",73372-DOMICILIARY CARE,OP PACKAGE/PLACEMENT COSTS,Third Party Payments,Revenue
Walsall Council,http://opendatacommunities.org/id/metropolitan-district-council/walsall,WC96-742,30/09/2018,Resources and Transformation,CHARTERHOUSE VOICE & DATA,03/09/2018,"1,150.60",63800-COMPUTER EQUIPMENT AND SUPPLIES,RECHARGEABLE EQUIPMENT,Supplies & Services,Revenue
Walsall Council,http://opendatacommunities.org/id/metropolitan-district-council/walsall,WC96-743,30/09/2018,Resources and Transformation,CHARTERHOUSE VOICE & DATA,03/09/2018,"11,506.00",63800-COMPUTER EQUIPMENT AND SUPPLIES,ADVANCED LICENSING,Supplies & Services,Revenue
Walsall Council,http://opendatacommunities.org/id/metropolitan-district-council/walsall,WC96-744,30/09/2018,Adult Social Care,CHASEVIEW CARE HOME,25/09/2018,364.23,73019-PSE'S-PRIV CONTRACTOR FEES,TRANSITIONAL CARE SUPPORT TEAM,Third Party Payments,Revenue
Walsall Council,http://opendatacommunities.org/id/metropolitan-district-council/walsall,WC96-745,30/09/2018,Adult Social Care,CHASEVIEW CARE HOME,10/09/2018,"1,608.45",73373-RESIDENTIAL & NURSING CARE PLACEMENTS,OP PACKAGE/PLACEMENT COSTS,Third Party Payments,Revenue
Walsall Council,http://opendatacommunities.org/id/metropolitan-district-council/walsall,WC96-746,30/09/2018,Adult Social Care,CHASEVIEW CARE HOME,10/09/2018,"1,748.30",73373-RESIDENTIAL & NURSING CARE PLACEMENTS,OP PACKAGE/PLACEMENT COSTS,Third Party Payments,Revenue
Walsall Council,http://opendatacommunities.org/id/metropolitan-district-council/walsall,WC96-747,30/09/2018,Adult Social Care,CHASEVIEW CARE HOME,10/09/2018,"1,748.30",73373-RESIDENTIAL & NURSING CARE PLACEMENTS,OP PACKAGE/PLACEMENT COSTS,Third Party Payments,Revenue
Walsall Council,http://opendatacommunities.org/id/metropolitan-district-council/walsall,WC96-748,30/09/2018,Adult Social Care,CHASEVIEW CARE HOME,10/09/2018,"2,077.58",73373-RESIDENTIAL & NURSING CARE PLACEMENTS,OP PACKAGE/PLACEMENT COSTS,Third Party Payments,Revenue
Walsall Council,http://opendatacommunities.org/id/metropolitan-district-council/walsall,WC96-749,30/09/2018,Childrens,CHEEKY MONKEY CHILDMINDING,17/09/2018,"1,461.60",66505-OTHER-GRANTS TO OTHER ORGS,EARLY YEARS - 3 YR OLDS,Third Party Payments,Revenue
Walsall Council,http://opendatacommunities.org/id/metropolitan-district-council/walsall,WC96-750,30/09/2018,Adult Social Care,CHERISH HOME CARE,03/09/2018,393.68,73372-DOMICILIARY CARE,OP PACKAGE/PLACEMENT COSTS,Third Party Payments,Revenue
Walsall Council,http://opendatacommunities.org/id/metropolitan-district-council/walsall,WC96-751,30/09/2018,Adult Social Care,CHERISH HOME CARE,04/09/2018,759.24,73372-DOMICILIARY CARE,PD PACKAGE/PLACEMENT COSTS,Third Party Payments,Revenue
Walsall Council,http://opendatacommunities.org/id/metropolitan-district-council/walsall,WC96-752,30/09/2018,Adult Social Care,CHERISH HOME CARE,05/09/2018,885.64,73372-DOMICILIARY CARE,OP PACKAGE/PLACEMENT COSTS,Third Party Payments,Revenue
Walsall Council,http://opendatacommunities.org/id/metropolitan-district-council/walsall,WC96-753,30/09/2018,Adult Social Care,CHERISH HOME CARE,03/09/2018,"1,377.60",73372-DOMICILIARY CARE,OP PACKAGE/PLACEMENT COSTS,Third Party Payments,Revenue
Walsall Council,http://opendatacommunities.org/id/metropolitan-district-council/walsall,WC96-754,30/09/2018,Adult Social Care,CHERISH HOME CARE,04/09/2018,"1,475.60",73372-DOMICILIARY CARE,LD PACKAGE/PLACEMENT COSTS,Third Party Payments,Revenue
Walsall Council,http://opendatacommunities.org/id/metropolitan-district-council/walsall,WC96-755,30/09/2018,Adult Social Care,CHERISH HOME CARE,04/09/2018,"1,771.28",73372-DOMICILIARY CARE,OP PACKAGE/PLACEMENT COSTS,Third Party Payments,Revenue
Walsall Council,http://opendatacommunities.org/id/metropolitan-district-council/walsall,WC96-756,30/09/2018,Childrens,REDACTED,17/09/2018,880.32,66505-OTHER-GRANTS TO OTHER ORGS,EARLY YEARS - 2 YR OLDS,Third Party Payments,Revenue
Walsall Council,http://opendatacommunities.org/id/metropolitan-district-council/walsall,WC96-757,30/09/2018,Childrens,REDACTED,21/09/2018,282.75,66505-OTHER-GRANTS TO OTHER ORGS,EARLY YEARS - 3 YR OLDS,Third Party Payments,Revenue
Walsall Council,http://opendatacommunities.org/id/metropolitan-district-council/walsall,WC96-758,30/09/2018,Childrens,CHESTERTON COMMUNITY SPORTS COLLEGE,14/09/2018,420.00,77300-ISB-FORMULA ALLOCATION,OUT OF BOROUGH SCHOOLS,Transfer Payments,Revenue
Walsall Council,http://opendatacommunities.org/id/metropolitan-district-council/walsall,WC96-759,30/09/2018,Childrens,CHILDCARE BUREAU LTD,07/09/2018,"2,900.00",74037-INDEPENDENT FOSTER CARE-OTH AGENCY PROVISION,EXTERNAL FOSTER CARE PROVISION,Third Party Payments,Revenue
